Workbook

Sheet Settings (hidden)
C1: Department Database | D1: Entities name ENE Publication | E1: Entities name Database | F1: Examiner | G1: ExamTel | H1: ExamMail | I1: TechName | J1: TechTel | K1: TechMail | L1: Type | M1: Consol | N1: PFMA | O1: PE_No1 | P1: PE_No | Q1: Entity Abbreviation | S1: FinYear
C2: =INDEX(($C$17:$C$239),MATCH($E$2,$E$17:$E$239,0)) -> Mineral Resources and Energy | D2: =INDEX(($D$17:$D$239),MATCH($E$2,$E$17:$E$239,0)) -> CEF (Proprietary) Limited | E2: =Information!A14 -> CEF (Pty) Ltd | F2: =INDEX(($F$17:$F$239),MATCH($E$2,$E$17:$E$239,0)) -> Nomagugu Madikane | G2: =INDEX(($G$17:$G$239),MATCH($E$2,$E$17:$E$239,0)) -> (012) 315 5312 | H2: =INDEX(($H$17:$H$239),MATCH($E$2,$E$17:$E$239,0)) -> Nomagugu.Madikane@treasury.gov.za | I2: =INDEX(($I$17:$I$239),MATCH($E$2,$E$17:$E$239,0)) -> Mpho Ntshole | J2: =INDEX(($J$17:$J$239),MATCH($E$2,$E$17:$E$239,0)) -> 0 | K2: =INDEX(($K$17:$K$239),MATCH($E$2,$E$17:$E$239,0)) -> Mpho.Ntshole@treasury.gov.za | L2: =INDEX(($L$17:$L$239),MATCH($E$2,$E$17:$E$239,0)) -> 3 | M2: =INDEX(($M$17:$M$239),MATCH($E$2,$E$17:$E$239,0)) -> 3 | N2: =INDEX(($N$17:$N$239),MATCH($E$2,$E$17:$E$239,0)) -> 2 | O2: =INDEX(($O$17:$O$239),MATCH($E$2,$E$17:$E$239,0)) -> PE18 | P2: =INDEX(($P$17:$P$239),MATCH($E$2,$E$17:$E$239,0)) -> 18 | Q2: =INDEX(($Q$17:$Q$239),MATCH($E$2,$E$17:$E$239,0)) -> CEF | R2: =INDEX(($R$17:$R$239),MATCH($E$2,$E$17:$E$239,0)) -> 3 | S2: =INDEX(($S$17:$S$239),MATCH($E$2,$E$17:$E$239,0)) -> 202425
AA14: Related Party | AO14: Personnel | BG14: Infrastructure
AC15: =COUNTA(AC18:AC236) -> 42 | AD15: =COUNTA(AD18:AD235) -> 188 | AE15: =COUNTA(AE18:AE235) -> 16 | AF15: =COUNTA(AF18:AF236) -> 14 | AG15: 16 | AH15: 14 | AI15: 13 | AJ15: 14 | AK15: 15 | AL15: 14 | AM15: 15 | AT15: =COUNTA(AT18:AT20) -> 3 | AU15: =COUNTA(AU18:AU20) -> 3 | AV15: =COUNTA(AV18:AV19) -> 2 | AW15: 2 | AX15: 2 | AY15: 2 | AZ15: 2 | BA15: 2
C16: Department | D16: EntityNameENE | E16: EntityName | F16: Examiner | G16: ExamTel | H16: ExamMail | I16: TechName | J16: TechTel | K16: TechMail | L16: Type_Code | M16: ConsolIndi | N16: PFMA | O16: PE_No1 | P16: PE_No | Q16: ENT_Abrev | R16: RelatedPartyID | S16: FinYear | U16: Years | X16: Priorities | AA16: Entity revenue | AB16: Related Party category | AC16: Related Party Name | AO16: FinYear_Pers | AP16: Level | AQ16: Salary Level 202324 | AR16: Salary Level 202223 | AS16: Occupation | BB16: Category | BC16: Occupation | BD16: Components of Remuneration | BG16: SIP Category | BH16: InfraList1 | BI16: InfraList2 | BJ16: InfraList3 | BK16: InfraList4 | BL16: SCOA level | BP16: Headings
C17: Science and Innovation | D17: Academy of Science of South Africa | E17: Academy of Science of South Africa | F17: Humbelani Ramuedzisi | G17: (012) 315 5585 | H17: Humbelani.Ramuedzisi@treasury.gov.za | I17: Patrick Mbedzi | J17: (012) 315 5912 | K17: Patrick.Mbedzi@treasury.gov.za | L17: 1 | M17: 1 | N17: Not listed | O17: PE8 | P17: 8 | Q17: ASSAF | R17: 3 | S17: 202425 | U17: 2020/21 | X17: Priority 1: A Capable, Ethical and Developmental State | AA17: Advertising | AB17: National Department | AC17: National Department | AD17: Other Public Entities | AE17: Eastern Cape | AF17: Free State | AG17: Gauteng | AH17: Kwazulu-Natal | AI17: Limpopo | AJ17: Mpumalanga | AK17: Northern Cape | AL17: North West | AM17: Western Cape | AO17: 2021 | AP17: 1 | AQ17: ≤123 741 | AR17: ≤107195 | AS17: Executive Board Members | AT17: Executive Board Members | AU17: Executive Management | AV17: Senior Management | AW17: Middle Management | AX17: Professionals | AY17: Skilled | AZ17: Semi-skilled | BA17: Very low skilled | BB17: Permanent | BC17: Actors | BD17: Guaranteed package | BG17: Not related to SIPs | BH17: Programme | BI17: New infrastructure assets | BJ17: Site identification | BK17: Mega | BL17: Residential buildings | BP17: Audited outcome
C18: National Treasury | D18: Accounting Standards Board | E18: Accounting Standards Board | F18: Mokgatla Tema | G18: (012) 315 5948 | H18: Mokgatla.Tema@treasury.gov.za | I18: Patrick Mbedzi | J18: (012) 315 5912 | K18: Patrick.Mbedzi@treasury.gov.za | L18: 1 | M18: 1 | N18: 3A | O18: PE7 | P18: 7 | Q18: ASB | R18: 3 | S18: 202425 | U18: 2021/22 | X18: Priority 2: Economic Transformation and Job Creation | AA18: Communication (G&S) | AB18: Other Public Entities | AC18: The Presidency | AD18: Academy of Science of South Africa | AE18: Education | AF18: Education | AG18: Education | AH18: Education | AI18: Education | AJ18: Education | AK18: Education | AL18: Education | AM18: Education | AO18: 2022 | AP18: 2 | AQ18: 123 742 - 145 077 | AR18: 107 196 - 128 165 | AS18: Executive Management | AT18: Guaranteed package | AU18: Guaranteed package | AV18: Guaranteed package | AW18: Guaranteed package | AX18: Guaranteed package | AY18: Guaranteed package | AZ18: Guaranteed package | BA18: Guaranteed package | BB18: Temporary/Contract | BC18: Adjudicators | BD18: Performance bonus | BG18: SIP 1: Unlocking the northern mineral belt with Waterberg as Catalyst | BH18: Project | BI18: Upgrading and additions | BJ18: Pre-feasibility | BK18: Large | BL18: Non-residential buildings | BP18: Audited outcome
C19: International Relations and Cooperation | D19: African Renaissance and International Cooperation Fund | E19: African Renaissance and International Cooperation Fund | F19: George Tembo | G19: (012) 315 5514 | H19: George.Tembo@treasury.gov.za | I19: Patrick Mbedzi | J19: (012) 315 5912 | K19: Patrick.Mbedzi@treasury.gov.za | L19: 3 | M19: 1 | N19: 3A | O19: PE2 | P19: 2 | Q19: ARICF | R19: 3 | S19: 202425 | U19: 2022/23 | X19: Priority 3: Education, Skills and Health | AA19: Computer services | AB19: Eastern Cape | AC19: Parliament | AD19: Accounting Standards Board | AE19: Health | AF19: Health | AG19: Health | AH19: Health | AI19: Health | AJ19: Health | AK19: Health | AL19: Health | AM19: Health | AO19: 2023 | AP19: 3 | AQ19: 145 078 - 170 598 | AR19: 128 166 - 151 883 | AS19: Senior Management | AT19: Performance bonus | AU19: Performance bonus | AV19: Other | AW19: Other | AX19: Other | AY19: Other | AZ19: Other | BA19: Other | BC19: Administrative and related professionals | BD19: Other | BG19: SIP 2: Durban-Free State Gauteng Logistics and Industrial Corridor | BI19: Rehabilitation and refurbishment | BJ19: Feasibility | BK19: Small | BL19: Investment property | BP19: Budget
C20: Public Works and Infrastructure | D20: Agrément South Africa | E20: Agrément South Africa | F20: George Tembo | G20: (012) 315 5514 | H20: George.Tembo@treasury.gov.za | I20: Patrick Mbedzi | J20: (012) 315 5912 | K20: Patrick.Mbedzi@treasury.gov.za | L20: 1 | M20: 1 | N20: 3A | O20: PE246 | P20: 246 | Q20: ASA | R20: 3 | S20: 202425 | U20: 2023/24 | X20: Priority 4: Consolidating the Social Wage through Reliable and Quality Basic Services | AA20: Consultants: Business and advisory services | AB20: Free State | AC20: Cooperative Governance | AD20: African Renaissance and International Cooperation Fund | AE20: Social Development and Special Programmes | AF20: Social Development | AG20: Social Development | AH20: Social Development | AI20: Social Development | AJ20: Social Development | AK20: Social Development | AL20: Social Development | AM20: Social Development | AO20: 2024 | AP20: 4 | AQ20: 170 599 - 199 461 | AR20: 151 884 - 181 598 | AS20: Middle Management | AT20: Other | AU20: Other | BC20: Agriculture related | BG20: Sip 3: South eastern note and corridor development | BI20: Maintenance and repair | BJ20: Design | BL20: Heritage assets | BP20: Audited outcome
C21: Agriculture, Land Reform and Rural Development | D21: Agricultural land holding account | E21: Agricultural Land Holding Account | F21: Bothwell Deka | G21: (012) 395 6784 | H21: Bothwell.Deka@treasury.gov.za | I21: Nymrot Sholoko | J21: 0 | K21: Nymrot.Sholoko@treasury.gov.za | L21: 1 | M21: 1 | N21: Not listed | O21: PE62 | P21: 62 | Q21: ALHA | R21: 3 | S21: 202425 | U21: 2024/25 | X21: Priority 5: Spatial Integration, Human Settlements and Local Government | AA21: Infrastructure and planning services | AB21: Gauteng | AC21: Government Communication and Information System | AD21: Agrément South Africa | AE21: Office of the Premier | AF21: Premier | AG21: Office of the Premier | AH21: Office of the Premier | AI21: Office of the Premier | AJ21: Office of the Premier | AK21: Office of the Premier | AL21: Office of the Premier | AM21: Premier | AO21: 2025 | AP21: 5 | AQ21: 199 462 - 235 611 | AR21: 181 599 - 218 063 | AS21: Professionals | BC21: Analysts | BG21: SIP 4: Unlocking the economic opportunities in the Both West Province | BJ21: Tender | BL21: Other fixed structures | BP21: Budget estimate
C22: Agriculture, Land Reform and Rural Development | D22: Agricultural Research Council | E22: Agricultural Research Council | F22: Bothwell Deka | G22: (012) 395 6785 | H22: Bothwell.Deka@treasury.gov.za | I22: Nymrot Sholoko | J22: 0 | K22: Nymrot.Sholoko@treasury.gov.za | L22: 1 | M22: 1 | N22: 3A | O22: PE5 | P22: 5 | Q22: ARC | R22: 1 | S22: 202425 | U22: 2025/26 | X22: Priority 6: Social Cohesion and Safer Communities | AA22: Laboratory services | AB22: Kwazulu-Natal | AC22: Home Affairs | AD22: Agricultural Land Holding Account | AE22: Provincial Legislature | AF22: Free State Legislature | AG22: Gauteng Provincial Legislature | AH22: Provincial Legislature | AI22: Provincial Legislature | AJ22: Provincial Legislature | AK22: Provincial Legislature | AL22: Provincial Legislature | AM22: Provincial Parliament | AO22: 2026 | AP22: 6 | AQ22: 235 612 - 281 559 | AR22: 218 064 - 269 213 | AS22: Skilled | BC22: Appraisers-valuers and related professionals | BG22: SIP 5: Saldanha-Northern Cape Development Corridor | BJ22: Construction | BP22: Approved budget
C23: Higher Education and Training | D23: Agricultural Sector Education and Training Authority | E23: Agricultural Sector Education and Training Authority | F23: Spencer Janari | G23: (012) 315 5436 | H23: Spencer.Janari@treasury.gov.za | I23: Lionel Botsane | J23: (012) 315 5749 | K23: Lionel.Botsane@treasury.gov.za | L23: 2 | M23: 3 | N23: 3A | O23: PE214 | P23: 214 | Q23: AgriSETA | R23: 3 | S23: 202425 | U23: 2026/27 | X23: Priority 7: A Better Africa and World | AA23: Legal services (G&S) | AB23: Limpopo | AC23: International Relations and Cooperation | AD23: Agricultural Research Council | AE23: Public Works | AF23: Economic Development & Small Business Development, Tourism & Environmental Affairs | AG23: Economic Development | AH23: Agriculture and Rural Development | AI23: Agriculture | AJ23: Provincial Treasury | AK23: Transport, Safety and Liaison | AL23: Arts, Culture, Sports and Recreation | AM23: Provincial Treasury | AP23: 7 | AQ23: 281 560 - 343 815 | AR23: 269 214 - 331 187 | AS23: Semi-skilled | BC23: Architects and related professionals | BG23: SIP 6: Integrated municipal infrastructure project | BJ23: Hand over | BP23: Changes from budget estimate
C24: Transport | D24: Air Traffic and Navigation Services Company Limited | E24: Air Traffic and Navigation Services Company | F24: Luyolo Ntlangula | G24: (012) 315 5571 | H24: Luyolo.Ntlangula@treasury.gov.za | I24: Lionel Botsane | J24: (012) 315 5749 | K24: Lionel.Botsane@treasury.gov.za | L24: 1 | M24: 3 | N24: 2 | O24: PE9 | P24: 9 | Q24: ATNS | R24: 3 | S24: 202425 | U24: 2027/28 | AA24: Science and technological services | AB24: Mpumalanga | AC24: National School of Government | AD24: Agricultural Sector Education and Training Authority | AE24: Cooperative Governance and Traditional Affairs | AF24: Provincial Treasury | AG24: Cooperative Governance and Traditional Affairs | AH24: Economic Development, Tourism and Environmental Affairs | AI24: Provincial Treasury | AJ24: Co-Operative Governance and Traditional Affairs | AK24: Roads and Public Works | AL24: Community Safety and Transport Management | AM24: Community Safety | AP24: 8 | AQ24: 343 816 - 420 402 | AR24: 331 188 - 393 710 | AS24: Very low skilled | BC24: Archivists and related professionals | BG24: SIP 7: Integrated urban space and public transport programme | BJ24: Handed over | BP24: Budget estimate
C25: Transport | D25: The Airports Company Limited | E25: Airports Company | F25: Luyolo Ntlangula | G25: (012) 315 5571 | H25: Luyolo.Ntlangula@treasury.gov.za | I25: Lionel Botsane | J25: (012) 315 5749 | K25: Lionel.Botsane@treasury.gov.za | L25: 1 | M25: 3 | N25: 2 | O25: PE1 | P25: 1 | Q25: ACSA | R25: 3 | S25: 202425 | U25: 2028/29 | AA25: Contractors | AB25: Northern Cape | AC25: National Treasury | AD25: Amatola Water Board | AE25: Rural Development and Agrarian Reform | AF25: Cooperative Governance and Traditional Affairs | AG25: Human Settlements | AH25: Provincial Treasury | AI25: Economic Development, Environment and Tourism | AJ25: Agriculture, Rural Development, Land and Environmental Affairs | AK25: Economic Development and Tourism | AL25: Economic Development, Environment, Conservation and Tourism | AM25: Human Settlements | AP25: 9 | AQ25: 420 403 - 508 692 | AR25: 393 711 - 491 402 | BC25: Artisans and related professionals | BG25: SIP 8: Green energy in support of the South African economy | BJ25: On hold | BP25: Revised budget estimate
C26: Public Enterprises | D26: Alexkor Limited | E26: Alexkor Limited | F26: Isaac Kurasha | G26: (012) 315 5213 | H26: Isaac.Kurasha@treasury.gov.za | I26: Mntazi Msiza | J26: (012) 315 5876 | K26: Mntazi.Msiza@treasury.gov.za | L26: 1 | M26: 3 | N26: 2 | O26: PE4 | P26: 4 | Q26: Alexkor | R26: 3 | S26: 202425 | U26: 2029/30 | AA26: Agency and support/outsourced services | AB26: North West | AC26: Planning, Monitoring and Evaluation | AD26: Amazwi – South African Museum of Literature | AE26: Economic Development, Environmental Affairs and Tourism | AF26: Public Works & Infrastructure | AG26: Roads and Transport | AH26: Human Settlements | AI26: Transport and Community Safety | AJ26: Economic Development and Tourism | AK26: Sport, Arts and Culture | AL26: Provincial Treasury | AM26: Environmental Affairs and Development Planning | AP26: 10 | AQ26: 508 693 - 811 559 | AR26: 491 403 - 766 583 | BC26: Arts and culture related | BG26: SIP 9: Electricity generations to support socio-economic development | BJ26: Complete | BP26: Changes from budget estimate
C27: Water and Sanitation | D27: Amatola Water Board | E27: Amatola Water Board | F27: Iqbal Mahomed Alli | G27: (012) 315 5809 | H27: Iqbal.Mahomedalli@treasury.gov.za | I27: Mntazi Msiza | J27: (012) 315 5876 | K27: Mntazi.Msiza@treasury.gov.za | L27: 1 | M27: 3 | N27: 3B | O27: PE215 | P27: 215 | Q27: Amatola | R27: 3 | S27: 202425 | U27: 2030/31 | AA27: Fleet services (including government motor transport) | AB27: Western Cape | AC27: Public Enterprises | AD27: Armaments Corporation of South Africa Limited | AE27: Transport | AF27: Police, Roads and Transport | AG27: Community Safety | AH27: Community Safety and Liaison | AI27: Public Works, Roads and Infrastructure | AJ27: Public Works, Roads and Transport | AK27: Provincial Treasury | AL27: Cooperative Governance and Traditional Affairs | AM27: Transport and Public Works | AP27: 11 | AQ27: 811 560 - 952 485 | AR27: 766 584 - 908 501 | BC27: Asset controllers and related professionals | BG27: SIP 10: Electricity transmission and distribution for all | BJ27: On-going | BP27: Budget estimate
C28: Sport, Arts and Culture | D28: National English Literary Museum | E28: Amazwi – South African Museum of Literature | F28: Judy Naidoo | G28: (012) 315 5269 | H28: Judy.Naidoo@treasury.gov.za | I28: Vuyo Ngqukumba | J28: (012) 315 5760 | K28: Vuyo.Ngqukumba@treasury.gov.za | L28: 1 | M28: 3 | N28: 3A | O28: PE191 | P28: 191 | Q28: Amazwi | R28: 3 | S28: 202425 | U28: 2031/32 | AA28: Housing | AC28: Public Service and Administration | AD28: Artscape | AE28: Human Settlements | AF28: Agriculture and Rural Development | AG28: Agriculture and Rural Development | AH28: Co-Operative Governance and Traditional Affairs | AI28: Cooperative Governance, Human Settlements and Traditional Affairs | AJ28: Community Safety, Security and Liaison | AK28: Cooperative Governance, Human Settlements and Traditional Affairs | AL28: Human Settlements | AM28: Agriculture | AP28: 12 | AQ28: 952 486 - 1 125 825 | AR28: 908 502 - 1 105 382 | BC28: Attendants | BG28: SIP 11: Agri-logistics and rural infrastructure | BP28: Revised budget estimate
C29: Defence | D29: Armaments Corporation of South Africa, Limited | E29: Armaments Corporation of South Africa Limited | F29: Mashudu Bidzha | G29: (012) 315 5344 | H29: Mashudu.Bidzha@treasury.gov.za | I29: Mpho Ntshole | J29: 0 | K29: Mpho.Ntshole@treasury.gov.za | L29: 1 | M29: 1 | N29: 2 | O29: PE6 | P29: 6 | Q29: ARMSCOR | R29: 1 | S29: 202425 | U29: 2032/34 | AA29: Inventory: Clothing material and accessories | AC29: Public Service Commission | AD29: Banking Sector Education and Training Authority | AE29: Provincial Treasury | AF29: Sport, Arts, Culture and Recreation | AG29: Sport, Arts, Culture and Recreation | AH29: Transport | AI29: Sport, Arts and Culture | AJ29: Culture, Sport and Recreation | AK29: Agriculture, Environmental Affairs, Rural Development and Land Reform | AL29: Public Works and Roads | AM29: Economic Development and Tourism | AP29: 13 | AQ29: 1 125 826 - 1 371 556 | AR29: 1 105 383 - 1 308 050 | BC29: Auditors and related professionals | BG29: SIP 12: Revitalisation of public hospitals and other health facilities | BP29: Changes from budget estimate
C30: Sport, Arts and Culture | D30: Artscape | E30: Artscape | F30: Judy Naidoo | G30: (012) 315 5269 | H30: Judy.Naidoo@treasury.gov.za | I30: Vuyo Ngqukumba | J30: (012) 315 5760 | K30: Vuyo.Ngqukumba@treasury.gov.za | L30: 1 | M30: 3 | N30: 3A | O30: PE217 | P30: 217 | Q30: Artscape | R30: 3 | S30: 202425 | AA30: Inventory: Farming supplies | AC30: Public Works and Infrastructure | AD30: Bloem Water | AE30: Sport, Recreation, Arts and Culture | AF30: Human Settlements | AG30: E-Government | AH30: Public Works | AJ30: Human Settlements | AL30: Agriculture and Rural Development | AM30: Cultural Affairs and Sport | AP30: 14 | AQ30: 1 371 557 - 1 663 581 | AR30: 1 308 051 - 1 590 746 | BC30: Authors journalists and other writers | BG30: SIP 13: National school build programme | BP30: Planning budget estimate
C31: Higher Education and Training | D31: Banking Sector Education and Training Authority | E31: Banking Sector Education and Training Authority | F31: Spencer Janari | G31: (012) 315 5436 | H31: Spencer.Janari@treasury.gov.za | I31: Lionel Botsane | J31: (012) 315 5749 | K31: Lionel.Botsane@treasury.gov.za | L31: 2 | M31: 3 | N31: 3A | O31: PE218 | P31: 218 | Q31: BankSETA | R31: 3 | S31: 202425 | AA31: Inventory: Food and food supplies | AC31: Statistics South Africa | AD31: Boxing South Africa | AE31: Safety and Liaison | AG31: Gauteng Provincial Treasury | AH31: Sport, Arts and Culture | AM31: Local Government | AP31: 15 | AQ31: 1 663 582 - 2 157 056 | AR31: 1 590 747 - 2 068 457 | BC31: Auxiliary and related workers | BG31: SIP 14: Higher education infrastructure
C32: Home Affairs | D32: Border Management Authority | E32: Border Management Authority | F32: Timothy Murwa | G32: (012) 315 5002 | H32: Timothy.Murwa@treasury.gov.za | I32: Patrick Mbedzi | J32: (012) 315 5912 | K32: Patrick.Mbedzi@treasury.gov.za | L32: 1 | M32: 2 | N32: Not listed | O32: PE253 | P32: 253 | Q32: BMA | R32: 3 | S32: 202425 | AA32: Inventory: Fuel, oil and gas | AC32: Traditional Affairs | AD32: Brand SA | AG32: Infrastructure Development | AP32: 16 | AQ32: 2 157 057 - 2 428 831 | AR32: 2 068 458 - 2 330 121 | BC32: Aviation related | BG32: SIP 15: Expanding access to communication technology
C33: Sport, Arts and Culture | D33: Boxing SA | E33: Boxing South Africa | F33: Judy Naidoo | G33: (012) 315 5269 | H33: Judy.Naidoo@treasury.gov.za | I33: Vuyo Ngqukumba | J33: (012) 315 5760 | K33: Vuyo.Ngqukumba@treasury.gov.za | L33: 1 | M33: 1 | N33: 3A | O33: PE12 | P33: 12 | Q33: BSA | R33: 3 | S33: 202425 | AA33: Inventory: Learner and teacher support material | AC33: Basic Education | AD33: Breede-Gouritz Catchment Management Agency | AP33: 17 | AQ33: 2 428 832 - 2 742 374 | AR33: 2 330 122 - 2 633 648 | BC33: Board Members | BG33: SIP 16: SKA and Meerkat
C34: Government Communication and Information System | D34: Brand South Africa | E34: Brand SA | F34: Mokgatla Tema | G34: (012) 315 5948 | H34: Mokgatla.Tema@treasury.gov.za | I34: Patrick Mbedzi | J34: (012) 315 5912 | K34: Patrick.Mbedzi@treasury.gov.za | L34: 1 | M34: 1 | N34: 3A | O34: PE51 | P34: 51 | Q34: BrandSA | R34: 3 | S34: 202425 | AA34: Inventory: Materials and supplies | AC34: Higher Education and Training | AD34: Castle Control Board | AP34: 18 | AQ34: 2 742 375 - 3 098 220 | AR34: 2 633 649 - 2 978 126 | BC34: Business support and related professionals | BG34: SIP 17: Regional integration for African Cooperation and development
C35: Water and Sanitation | D35: Breede-Gouritz Catchment Management Agency | E35: Breede-Gouritz Catchment Management Agency | F35: Iqbal Mahomed Alli | G35: (012) 315 5809 | H35: Iqbal.Mahomedalli@treasury.gov.za | I35: Mntazi Msiza | J35: (012) 315 5876 | K35: Mntazi.Msiza@treasury.gov.za | L35: 1 | M35: 1 | N35: 3A | O35: PE225 | P35: 225 | Q35: BGCMA | R35: 3 | S35: 202425 | AA35: Inventory: Medical supplies | AC35: Health | AD35: Chemical Industries Education and Training Authority | AP35: 19 | AQ35: 3 098 221 - 3 502 101 | AR35: 2 978 127 - 3 369 105 | BC35: CAE (Chief Audit Executive) | BG35: SIP 18. Water and sanitation master plan
C36: Communications and Digital Technologies | D36: Broadband Infraco (Proprietary) Limited | E36: Broadband Infraco Limited | F36: Keitumetse Motshegwe | G36: (012) 395 6750 | H36: Keitumetse.Motshegwe@treasury.gov.za | I36: Mntazi Msiza | J36: (012) 315 5876 | K36: Mntazi.Msiza@treasury.gov.za | L36: 1 | M36: 3 | N36: 3A | O36: PE224 | P36: 224 | Q36: Broadband | R36: 3 | S36: 202425 | AA36: Inventory: Medicine | AC36: Social Development | AD36: Commission for Conciliation Mediation & Arbitration | AP36: 20 | AQ36: 3 502 102 - 3 960 512 | AR36: 3 369 106 - 3 812 871 | BC36: Call centre operator
C37: Defence | D37: Castle Control Board | E37: Castle Control Board | F37: Mashudu Bidzha | G37: (012) 315 5344 | H37: Mashudu.Bidzha@treasury.gov.za | I37: Mpho Ntshole | J37: 0 | K37: Mpho.Ntshole@treasury.gov.za | L37: 1 | M37: 1 | N37: 3A | O37: PE16 | P37: 16 | Q37: CCB | R37: 3 | S37: 202425 | AA37: Medsas inventory interface | AC37: Women, Youth and Persons with Disabilities | AD37: Community Schemes Ombud Service | AP37: 21 | AQ37: 3 960 513 - 4 480 801 | AR37: 3 812 872 - 4 316 539 | BC37: Caretakers
C38: Mineral Resources and Energy | D38: CEF (Proprietary) Limited | E38: CEF (Pty) Ltd | F38: Nomagugu Madikane | G38: (012) 315 5312 | H38: Nomagugu.Madikane@treasury.gov.za | I38: Mpho Ntshole | J38: 0 | K38: Mpho.Ntshole@treasury.gov.za | L38: 3 | M38: 3 | N38: 2 | O38: PE18 | P38: 18 | Q38: CEF | R38: 3 | S38: 202425 | AA38: Inventory: Other supplies | AC38: Civilian Secretariat for the Police Service | AD38: Companies and Intellectual Property Commission | AP38: 22 | AQ38: ≥4 480 802 | AR38: ≥4 316 540 | BC38: Cartographers surveyors and related technicaians
C39: Higher Education and Training | D39: Chemical Industries Education and Training Authority | E39: Chemical Industries Education and Training Authority | F39: Spencer Janari | G39: (012) 315 5436 | H39: Spencer.Janari@treasury.gov.za | I39: Lionel Botsane | J39: (012) 315 5749 | K39: Lionel.Botsane@treasury.gov.za | L39: 2 | M39: 3 | N39: 3A | O39: PE165 | P39: 165 | Q39: CHIETA | R39: 3 | S39: 202425 | AA39: Consumable supplies | AC39: Correctional Services | AD39: Companies Tribunal | BC39: Case management officer
C40: Employment and Labour | D40: Commission for Conciliation, Mediation and Arbitration | E40: Commission for Conciliation Mediation & Arbitration | F40: Judy Naidoo | G40: (012) 315 5269 | H40: Judy.Naidoo@treasury.gov.za | I40: Vuyo Ngqukumba | J40: (012) 315 5760 | K40: Vuyo.Ngqukumba@treasury.gov.za | L40: 1 | M40: 1 | N40: 3A | O40: PE17 | P40: 17 | Q40: CCMA | R40: 3 | S40: 202425 | AA40: Consumables: Stationery, printing and office supplies | AC40: Defence | AD40: Competition Commission | BC40: Case officer
C41: Human Settlements | D41: Community Schemes Ombud Service | E41: Community Schemes Ombud Service | F41: Lindiwe Ngcongwane | G41: (012) 315 5357 | H41: Lindiwe.Ngcongwane@treasury.gov.za | I41: Vuyo Ngqukumba | J41: (012) 315 5760 | K41: Vuyo.Ngqukumba@treasury.gov.za | L41: 1 | M41: 1 | N41: 3A | O41: PE240 | P41: 240 | Q41: CSOS | R41: 3 | S41: 202425 | AA41: Operating leases | AC41: Independent Police Investigative Directorate | AD41: Competition Tribunal | BC41: Catering and related
C42: Trade, Industry and Competition | D42: Companies and Intellectual Property Commission | E42: Companies and Intellectual Property Commission | F42: Isaac Kurasha | G42: (012) 315 5213 | H42: Isaac.Kurasha@treasury.gov.za | I42: Nymrot Sholoko | J42: 0 | K42: Nymrot.Sholoko@treasury.gov.za | L42: 1 | M42: 1 | N42: 3A | O42: PE22 | P42: 22 | Q42: CIPC | R42: 3 | S42: 202425 | AA42: Rental and hiring | AC42: Justice and Constitutional Development | AD42: Construction Education and Training Authority | BC42: CEO (Chief Executive Officer)
C43: Trade, Industry and Competition | D43: Companies Tribunal | E43: Companies Tribunal | F43: Isaac Kurasha | G43: (012) 315 5213 | H43: Isaac.Kurasha@treasury.gov.za | I43: Nymrot Sholoko | J43: 0 | K43: Nymrot.Sholoko@treasury.gov.za | L43: 1 | M43: 1 | N43: 3A | O43: PE230 | P43: 230 | Q43: CT | R43: 3 | S43: 202425 | AA43: Property payments | AC43: Military Veterans | AD43: Construction Industry Development Board | BC43: CFO (Chief Financial Officer)
C44: Employment and Labour | D44: Compensation Fund | E44: Compensation Fund, including Reserve Fund | F44: Judy Naidoo | G44: (012) 315 5269 | H44: Judy.Naidoo@treasury.gov.za | I44: Vuyo Ngqukumba | J44: (012) 315 5760 | K44: Vuyo.Ngqukumba@treasury.gov.za | L44: 4 | M44: 4 | N44: 3A | O44: PE26 | P44: 26 | Q44: CompFund | R44: 3 | S44: 202425 | AA44: Transport provided: Departmental activity | AC44: Office of the Chief Justice | AD44: Council for Geoscience | BC44: Chairperson
C45: Trade, Industry and Competition | D45: Competition Commission | E45: Competition Commission | F45: Isaac Kurasha | G45: (012) 315 5213 | H45: Isaac.Kurasha@treasury.gov.za | I45: Nymrot Sholoko | J45: 0 | K45: Nymrot.Sholoko@treasury.gov.za | L45: 1 | M45: 1 | N45: 3A | O45: PE25 | P45: 25 | Q45: CC | R45: 1 | S45: 202425 | AA45: Training and development | AC45: Police | AD45: Council for Medical Schemes | BC45: CIO (Chief Information Officer)
C46: Trade, Industry and Competition | D46: Competition Tribunal | E46: Competition Tribunal | F46: Isaac Kurasha | G46: (012) 315 5213 | H46: Isaac.Kurasha@treasury.gov.za | I46: Nymrot Sholoko | J46: 0 | K46: Nymrot.Sholoko@treasury.gov.za | L46: 1 | M46: 1 | N46: 3A | O46: PE27 | P46: 27 | Q46: CT | R46: 1 | S46: 202425 | AA46: Operating payments | AC46: Agriculture, Land Reform and Rural Development | AD46: Council for Scientific and Industrial Research | BC46: Cleaners
C47: Higher Education and Training | D47: Construction Education and Training Authority | E47: Construction Education and Training Authority | F47: Spencer Janari | G47: (012) 315 5436 | H47: Spencer.Janari@treasury.gov.za | I47: Lionel Botsane | J47: (012) 315 5749 | K47: Lionel.Botsane@treasury.gov.za | L47: 2 | M47: 3 | N47: 3A | O47: PE223 | P47: 223 | Q47: CETA | R47: 3 | S47: 202425 | AA47: Venues and facilities | AC47: Communications and Digital Technologies | AD47: Council for the Built Environment | BC47: Commissioners
C48: Public Works and Infrastructure | D48: Construction Industry Development Board | E48: Construction Industry Development Board | F48: George Tembo | G48: (012) 315 5514 | H48: George.Tembo@treasury.gov.za | I48: Patrick Mbedzi | J48: (012) 315 5912 | K48: Patrick.Mbedzi@treasury.gov.za | L48: 1 | M48: 1 | N48: 3A | O48: PE21 | P48: 21 | Q48: CIDB | R48: 3 | S48: 202425 | AC48: Employment and Labour | AD48: Council on Higher Education | BC48: Committee officials
C49: Mineral Resources and Energy | D49: Council for Geoscience | E49: Council for Geoscience | F49: Nomagugu Madikane | G49: (012) 315 5312 | H49: Nomagugu.Madikane@treasury.gov.za | I49: Mpho Ntshole | J49: 0 | K49: Mpho.Ntshole@treasury.gov.za | L49: 1 | M49: 1 | N49: 3A | O49: PE43 | P49: 43 | Q49: GeoScience | R49: 3 | S49: 202425 | AC49: Forestry, Fisheries and the Environment | AD49: Cross-Border Road Transport Agency | BC49: Communication and information related
C50: Health | D50: Council for Medical Schemes | E50: Council for Medical Schemes | F50: Refiloe Thokoa | G50: (012) 395 6559 | H50: Refiloe.Thokoa@treasury.gov.za | I50: Mpho Ntshole | J50: 0 | K50: Mpho.Ntshole@treasury.gov.za | L50: 1 | M50: 1 | N50: 3A | O50: PE24 | P50: 24 | Q50: CMS | R50: 3 | S50: 202425 | AC50: Human Settlements | AD50: Culture, Arts, Tourism, Hospitality and Sports Education and Training Authority | BC50: Compliance officers
C51: Science and Innovation | D51: Council for Scientific and Industrial Research | E51: Council for Scientific and Industrial Research | F51: Humbelani Ramuedzisi | G51: (012) 315 5585 | H51: Humbelani.Ramuedzisi@treasury.gov.za | I51: Patrick Mbedzi | J51: (012) 315 5912 | K51: Patrick.Mbedzi@treasury.gov.za | L51: 1 | M51: 1 | N51: 3B | O51: PE29 | P51: 29 | Q51: CSIR | R51: 3 | S51: 202425 | AC51: Mineral Resources and Energy | AD51: Die Afrikaanse Taal Museum | BC51: Consultants
C52: Public Works and Infrastructure | D52: Council for the Built Environment | E52: Council for the Built Environment | F52: George Tembo | G52: (012) 315 5514 | H52: George.Tembo@treasury.gov.za | I52: Patrick Mbedzi | J52: (012) 315 5912 | K52: Patrick.Mbedzi@treasury.gov.za | L52: 1 | M52: 1 | N52: 3A | O52: PE14 | P52: 14 | Q52: CBE | R52: 3 | S52: 202425 | AC52: Science and Innovation | AD52: Ditsong: Museums of South Africa | BC52: COO (Chief Operating Officer)
C53: Higher Education and Training | D53: Council on Higher Education | E53: Council on Higher Education | F53: Spencer Janari | G53: (012) 315 5436 | H53: Spencer.Janari@treasury.gov.za | I53: Lionel Botsane | J53: (012) 315 5749 | K53: Lionel.Botsane@treasury.gov.za | L53: 1 | M53: 1 | N53: 3A | O53: PE20 | P53: 20 | Q53: CHE | R53: 3 | S53: 202425 | AC53: Small Business Development | AD53: Driving License Card Account | BC53: Council members
C54: Transport | D54: Cross-Border Road Transport Agency | E54: Cross-Border Road Transport Agency | F54: Luyolo Ntlangula | G54: (012) 315 5571 | H54: Luyolo.Ntlangula@treasury.gov.za | I54: Lionel Botsane | J54: (012) 315 5749 | K54: Lionel.Botsane@treasury.gov.za | L54: 1 | M54: 1 | N54: 3A | O54: PE15 | P54: 15 | Q54: CBRTA | R54: 3 | S54: 202425 | AC54: Sport, Arts and Culture | AD54: Education, Training and Development Practices SETA | BC54: Data analyst
C55: Higher Education and Training | D55: Culture, Arts, Tourism, Hospitality and Sports Education and Training Authority | E55: Culture, Arts, Tourism, Hospitality and Sports Education and Training Authority | F55: Spencer Janari | G55: (012) 315 5436 | H55: Spencer.Janari@treasury.gov.za | I55: Lionel Botsane | J55: (012) 315 5749 | K55: Lionel.Botsane@treasury.gov.za | L55: 2 | M55: 3 | N55: 3A | O55: PE206 | P55: 206 | Q55: CATHSETA | R55: 3 | S55: 202425 | AC55: Tourism | AD55: Energy and Water Sector Education and Training Authority | BC55: Data capturer
C56: Public Enterprises | D56: DENEL (Pty) Ltd | E56: DENEL (Pty) Ltd | F56: Isaac Kurasha | G56: (012) 315 5213 | H56: Isaac.Kurasha@treasury.gov.za | I56: Mntazi Msiza | J56: (012) 315 5876 | K56: Mntazi.Msiza@treasury.gov.za | L56: 1 | M56: 3 | N56: 2 | O56: PE32 | P56: 32 | Q56: DENEL | R56: 3 | S56: 202425 | AC56: Trade, Industry and Competition | AD56: Estate Agency Affairs Board | BC56: Deeds officer
C57: National Treasury | D57: Development Bank of Southern Africa | E57: Development Bank of Southern Africa | F57: Mokgatla Tema | G57: (012) 315 5948 | H57: Mokgatla.Tema@treasury.gov.za | I57: Patrick Mbedzi | J57: (012) 315 5912 | K57: Patrick.Mbedzi@treasury.gov.za | L57: 3 | M57: 3 | N57: 2 | O57: PE30 | P57: 30 | Q57: DBSA | R57: 3 | S57: 202425 | AC57: Transport | AD57: Estate Agents Fidelity Fund | BC57: Distribution offer
C58: Sport, Arts and Culture | D58: Afrikaans Language Museum and Language Monument | E58: Die Afrikaanse Taal Museum | F58: Judy Naidoo | G58: (012) 315 5269 | H58: Judy.Naidoo@treasury.gov.za | I58: Vuyo Ngqukumba | J58: (012) 315 5760 | K58: Vuyo.Ngqukumba@treasury.gov.za | L58: 1 | M58: 3 | N58: 3A | O58: PE213 | P58: 213 | Q58: TaalMuseum | R58: 3 | S58: 202425 | AC58: Water and Sanitation | AD58: Fibre Processing Manufacturing Sector Education and Training Authority | BC58: Draught and related trades
C59: Sport, Arts and Culture | D59: Ditsong: Museums of South Africa | E59: Ditsong: Museums of South Africa | F59: Judy Naidoo | G59: (012) 315 5269 | H59: Judy.Naidoo@treasury.gov.za | I59: Vuyo Ngqukumba | J59: (012) 315 5760 | K59: Vuyo.Ngqukumba@treasury.gov.za | L59: 1 | M59: 3 | N59: 3A | O59: PE193 | P59: 193 | Q59: DitsongM | R59: 3 | S59: 202425 | AC59: Centre for Public Service Innovation | AD59: Film and Publication Board | BC59: Drivers
C60: Transport | D60: Driving License Card Account | E60: Driving License Card Account | F60: Luyolo Ntlangula | G60: (012) 315 5571 | H60: Luyolo.Ntlangula@treasury.gov.za | I60: Lionel Botsane | J60: (012) 315 5749 | K60: Lionel.Botsane@treasury.gov.za | L60: 1 | M60: 1 | N60: Not listed | O60: PE162 | P60: 162 | Q60: DLCA | R60: 3 | S60: 202425 | AD60: Financial and Accounting Services SETA | BC60: Earth moving and related plant operator
C61: Dummy | D61: Dummy | E61: Dummy | F61: Dummy | G61: Dummy | H61: 0 | I61: 0 | J61: 0 | K61: 0 | L61: 0 | M61: 0 | N61: 0 | O61: 0 | P61: 0 | Q61: 0 | R61: 0 | S61: 202425 | AD61: Financial Intelligence Centre | BC61: Earth science and related professionals
C62: Higher Education and Training | D62: Education, Training and Development Practices SETA | E62: Education, Training and Development Practices SETA | F62: Spencer Janari | G62: (012) 315 5436 | H62: Spencer.Janari@treasury.gov.za | I62: Lionel Botsane | J62: (012) 315 5749 | K62: Lionel.Botsane@treasury.gov.za | L62: 2 | M62: 3 | N62: 3A | O62: PE168 | P62: 168 | Q62: ETDP | R62: 3 | S62: 202425 | AD62: Financial Sector Conduct Authority | BC62: Economists
C63: Higher Education and Training | D63: Energy and Water Sector Education and Training Authority | E63: Energy and Water Sector Education and Training Authority | F63: Spencer Janari | G63: (012) 315 5436 | H63: Spencer.Janari@treasury.gov.za | I63: Lionel Botsane | J63: (012) 315 5749 | K63: Lionel.Botsane@treasury.gov.za | L63: 2 | M63: 3 | N63: 3A | O63: PE167 | P63: 167 | Q63: EWSETA | R63: 3 | S63: 202425 | AD63: Food and Beverages Manufacturing Industry | BC63: Editor
C64: Public Enterprises | D64: ESKOM | E64: ESKOM | F64: Isaac Kurasha | G64: (012) 315 5213 | H64: Isaac.Kurasha@treasury.gov.za | I64: Mntazi Msiza | J64: (012) 315 5876 | K64: Mntazi.Msiza@treasury.gov.za | L64: 1 | M64: 3 | N64: 2 | O64: PE164 | P64: 164 | Q64: ESKOM | R64: 3 | S64: 202425 | AD64: Freedom Park Trust | BC64: Education Officer
C65: Trade, Industry and Competition | D65: Export Credit Insurance Corporation of South Africa Limited | E65: Export Credit Insurance Corporation of South Africa Limited | F65: Isaac Kurasha | G65: (012) 315 5213 | H65: Isaac.Kurasha@treasury.gov.za | I65: Nymrot Sholoko | J65: 0 | K65: Nymrot.Sholoko@treasury.gov.za | L65: 3 | M65: 3 | N65: 3B | O65: PE34 | P65: 34 | Q65: ECIC | R65: 3 | S65: 202425 | AD65: Government Pensions Administration Agency | BC65: Emergency service related
C66: Higher Education and Training | D66: Fibre Processing Manufacturing Sector Education and Training Authority | E66: Fibre Processing Manufacturing Sector Education and Training Authority | F66: Spencer Janari | G66: (012) 315 5436 | H66: Spencer.Janari@treasury.gov.za | I66: Lionel Botsane | J66: (012) 315 5749 | K66: Lionel.Botsane@treasury.gov.za | L66: 2 | M66: 3 | N66: 3A | O66: PE237 | P66: 237 | Q66: FPMSETA | R66: 3 | S66: 202425 | AD66: Government Printing Works | BC66: Engineers and related professionals
C67: Communications and Digital Technologies | D67: Film and Publication Board | E67: Film and Publication Board | F67: Keitumetse Motshegwe | G67: (012) 395 6750 | H67: Keitumetse.Motshegwe@treasury.gov.za | I67: Mntazi Msiza | J67: (012) 315 5876 | K67: Mntazi.Msiza@treasury.gov.za | L67: 1 | M67: 1 | N67: 3A | O67: PE40 | P67: 40 | Q67: FPB | R67: 3 | S67: 202425 | AD67: Government Technical Advisory Centre | BC67: Examiners
C68: Higher Education and Training | D68: Financial and Accounting Services SETA | E68: Financial and Accounting Services SETA | F68: Spencer Janari | G68: (012) 315 5436 | H68: Spencer.Janari@treasury.gov.za | I68: Lionel Botsane | J68: (012) 315 5749 | K68: Lionel.Botsane@treasury.gov.za | L68: 2 | M68: 3 | N68: 3A | O68: PE169 | P68: 169 | Q68: FASSETA | R68: 3 | S68: 202425 | AD68: Health and Welfare Sector Education and Training Authority | BC68: Executive assistant
C69: National Treasury | D69: Financial Intelligence Centre | E69: Financial Intelligence Centre | F69: Mokgatla Tema | G69: (012) 315 5948 | H69: Mokgatla.Tema@treasury.gov.za | I69: Patrick Mbedzi | J69: (012) 315 5912 | K69: Patrick.Mbedzi@treasury.gov.za | L69: 1 | M69: 1 | N69: 3A | O69: PE39 | P69: 39 | Q69: FIC | R69: 3 | S69: 202425 | AD69: Housing Development Agency | BC69: Executive Director
C70: National Treasury | D70: Financial Sector Conduct Authority | E70: Financial Sector Conduct Authority | F70: Mokgatla Tema | G70: (012) 315 5948 | H70: Mokgatla.Tema@treasury.gov.za | I70: Patrick Mbedzi | J70: (012) 315 5912 | K70: Patrick.Mbedzi@treasury.gov.za | L70: 1 | M70: 1 | N70: 3A | O70: PE249 | P70: 249 | Q70: FSCA | R70: 3 | S70: 202425 | AD70: Human Sciences Research Council | BC70: Executives (Exco Members)
C71: Higher Education and Training | D71: Food and Beverages Manufacturing Industry | E71: Food and Beverages Manufacturing Industry | F71: Spencer Janari | G71: (012) 315 5436 | H71: Spencer.Janari@treasury.gov.za | I71: Lionel Botsane | J71: (012) 315 5749 | K71: Lionel.Botsane@treasury.gov.za | L71: 2 | M71: 3 | N71: 3A | O71: PE171 | P71: 171 | Q71: FoodBev | R71: 3 | S71: 202425 | AD71: Independent Development Trust | BC71: Facilities Officer
C72: Sport, Arts and Culture | D72: Freedom Park Trust | E72: Freedom Park Trust | F72: Judy Naidoo | G72: (012) 315 5269 | H72: Judy.Naidoo@treasury.gov.za | I72: Vuyo Ngqukumba | J72: (012) 315 5760 | K72: Vuyo.Ngqukumba@treasury.gov.za | L72: 1 | M72: 3 | N72: 3A | O72: PE41 | P72: 41 | Q72: FPT | R72: 3 | S72: 202425 | AD72: Independent Regulatory Board for Auditors | BC72: Financial and related professionals
C73: National Treasury | D73: Government Pensions Administration Agency | E73: Government Pensions Administration Agency | F73: Mokgatla Tema | G73: (012) 315 5948 | H73: Mokgatla.Tema@treasury.gov.za | I73: Patrick Mbedzi | J73: (012) 315 5912 | K73: Patrick.Mbedzi@treasury.gov.za | L73: 1 | M73: 1 | N73: Not listed | O73: PE61 | P73: 61 | Q73: GPAA | R73: 1 | S73: 202425 | AD73: Ingonyama Trust Board | BC73: Geography and environmental sciences related
C74: Home Affairs | D74: Government Printing Works | E74: Government Printing Works | F74: Timothy Murwa | G74: (012) 315 5002 | H74: Timothy.Murwa@treasury.gov.za | I74: Patrick Mbedzi | J74: (012) 315 5912 | K74: Patrick.Mbedzi@treasury.gov.za | L74: 1 | M74: 1 | N74: Not listed | O74: PE44 | P74: 44 | Q74: GPW | R74: 1 | S74: 202425 | AD74: Inkomati-Usuthu Catchment Management Agency | BC74: Health related
C75: National Treasury | D75: Government Technical Advisory Centre | E75: Government Technical Advisory Centre | F75: Mokgatla Tema | G75: (012) 315 5948 | H75: Mokgatla.Tema@treasury.gov.za | I75: Patrick Mbedzi | J75: (012) 315 5912 | K75: Patrick.Mbedzi@treasury.gov.za | L75: 1 | M75: 1 | N75: Not listed | O75: PE245 | P75: 245 | Q75: GTAC | R75: 3 | S75: 202425 | AD75: Insurance Sector Education and Training Authority | BC75: Human resources and related professionals
C76: Higher Education and Training | D76: Health and Welfare Sector Education and Training Authority | E76: Health and Welfare Sector Education and Training Authority | F76: Spencer Janari | G76: (012) 315 5436 | H76: Spencer.Janari@treasury.gov.za | I76: Lionel Botsane | J76: (012) 315 5749 | K76: Lionel.Botsane@treasury.gov.za | L76: 2 | M76: 3 | N76: 3A | O76: PE172 | P76: 172 | Q76: HWSETA | R76: 3 | S76: 202425 | AD76: International Trade Administration Commission | BC76: ICT (Information and Communications Technology)
C77: Human Settlements | D77: Housing Development Agency | E77: Housing Development Agency | F77: Lindiwe Ngcongwane | G77: (012) 315 5357 | H77: Lindiwe.Ngcongwane@treasury.gov.za | I77: Vuyo Ngqukumba | J77: (012) 315 5760 | K77: Vuyo.Ngqukumba@treasury.gov.za | L77: 1 | M77: 1 | N77: 3A | O77: PE139 | P77: 139 | Q77: HDA | R77: 3 | S77: 202425 | AD77: iSimangaliso Wetland Park | BC77: Inspectors/Investigators
C78: Science and Innovation | D78: Human Sciences Research Council | E78: Human Sciences Research Council | F78: Humbelani Ramuedzisi | G78: (012) 315 5585 | H78: Humbelani.Ramuedzisi@treasury.gov.za | I78: Patrick Mbedzi | J78: (012) 315 5912 | K78: Patrick.Mbedzi@treasury.gov.za | L78: 1 | M78: 1 | N78: 3A | O78: PE46 | P78: 46 | Q78: HSRC | R78: 1 | S78: 202425 | AD78: Iziko Museums of Cape Town | BC78: Interns/Trainees
C79: Public Works and Infrastructure | D79: The Independent Development Trust | E79: Independent Development Trust | F79: George Tembo | G79: (012) 315 5514 | H79: George.Tembo@treasury.gov.za | I79: Patrick Mbedzi | J79: (012) 315 5912 | K79: Patrick.Mbedzi@treasury.gov.za | L79: 3 | M79: 1 | N79: 2 | O79: PE49 | P79: 49 | Q79: IDT | R79: 3 | S79: 202425 | AD79: KwaZulu-Natal Museum | BC79: Judges
C80: National Treasury | D80: Independent Regulatory Board for Auditors | E80: Independent Regulatory Board for Auditors | F80: Mokgatla Tema | G80: (012) 315 5948 | H80: Mokgatla.Tema@treasury.gov.za | I80: Patrick Mbedzi | J80: (012) 315 5912 | K80: Patrick.Mbedzi@treasury.gov.za | L80: 1 | M80: 1 | N80: 3A | O80: PE53 | P80: 53 | Q80: IRBA | R80: 3 | S80: 202425 | AD80: Legal Aid South Africa | BC80: Labour related
C81: Trade, Industry and Competition | D81: Industrial Development Corporation of South Africa, Limited | E81: Industrial Development Corporation of South Africa Limited | F81: Isaac Kurasha | G81: (012) 315 5213 | H81: Isaac.Kurasha@treasury.gov.za | I81: Nymrot Sholoko | J81: 0 | K81: Nymrot.Sholoko@treasury.gov.za | L81: 3 | M81: 3 | N81: 2 | O81: PE48 | P81: 48 | Q81: IDC | R81: 3 | S81: 202425 | AD81: Lepelle Northern Water | BC81: Language practitioners interpreters & other commun
C82: Agriculture, Land Reform and Rural Development | D82: KwaZulu-Natal Ingonyama Trust Board | E82: Ingonyama Trust Board | F82: Bothwell Deka | G82: (012) 395 6786 | H82: Bothwell.Deka@treasury.gov.za | I82: Nymrot Sholoko | J82: 0 | K82: Nymrot.Sholoko@treasury.gov.za | L82: 1 | M82: 1 | N82: 3A | O82: PE52 | P82: 52 | Q82: ITB | R82: 3 | S82: 202425 | AD82: Local Government Education and Training Authority | BC82: Lecturer
C83: Water and Sanitation | D83: Inkomati-Usuthu Catchment Management Agency | E83: Inkomati-Usuthu Catchment Management Agency | F83: Iqbal Mahomed Alli | G83: (012) 315 5809 | H83: Iqbal.Mahomedalli@treasury.gov.za | I83: Mntazi Msiza | J83: (012) 315 5876 | K83: Mntazi.Msiza@treasury.gov.za | L83: 1 | M83: 1 | N83: 3A | O83: PE156 | P83: 156 | Q83: IUCMA | R83: 3 | S83: 202425 | AD83: Luthuli Museum | BC83: Legal related
C84: Higher Education and Training | D84: Insurance Sector Education and Training Authority | E84: Insurance Sector Education and Training Authority | F84: Spencer Janari | G84: (012) 315 5436 | H84: Spencer.Janari@treasury.gov.za | I84: Lionel Botsane | J84: (012) 315 5749 | K84: Lionel.Botsane@treasury.gov.za | L84: 2 | M84: 3 | N84: 3A | O84: PE174 | P84: 174 | Q84: ISETA | R84: 3 | S84: 202425 | AD84: Magalies Water | BC84: Librarians and related
C85: Trade, Industry and Competition | D85: International Trade Administration Commission | E85: International Trade Administration Commission | F85: Isaac Kurasha | G85: (012) 315 5213 | H85: Isaac.Kurasha@treasury.gov.za | I85: Nymrot Sholoko | J85: 0 | K85: Nymrot.Sholoko@treasury.gov.za | L85: 1 | M85: 1 | N85: 3A | O85: PE55 | P85: 55 | Q85: ITAC | R85: 3 | S85: 202425 | AD85: Mandela Bay Theatre Complex | BC85: Life sciences related
C86: Forestry, Fisheries and the Environment | D86: iSimangaliso Wetland Park Authority | E86: iSimangaliso Wetland Park | F86: Humbelani Ramuedzisi | G86: (012) 315 5585 | H86: Humbelani.Ramuedzisi@treasury.gov.za | I86: Nymrot Sholoko | J86: 0 | K86: Nymrot.Sholoko@treasury.gov.za | L86: 1 | M86: 1 | N86: 3A | O86: PE54 | P86: 54 | Q86: ISIMANGALISO | R86: 3 | S86: 202425 | AD86: Manufacturing, Engineering and Related Services Education and Training Authority | BC86: Marketing related
C87: Sport, Arts and Culture | D87: Iziko Museums of South Africa | E87: Iziko Museums of Cape Town | F87: Judy Naidoo | G87: (012) 315 5269 | H87: Judy.Naidoo@treasury.gov.za | I87: Vuyo Ngqukumba | J87: (012) 315 5760 | K87: Vuyo.Ngqukumba@treasury.gov.za | L87: 1 | M87: 3 | N87: 3A | O87: PE176 | P87: 176 | Q87: Iziko | R87: 3 | S87: 202425 | AD87: Marine Living Resources Fund | BC87: Mathematicians and related professionals
C88: Sport, Arts and Culture | D88: Natal Museum | E88: KwaZulu-Natal Museum | F88: Judy Naidoo | G88: (012) 315 5269 | H88: Judy.Naidoo@treasury.gov.za | I88: Vuyo Ngqukumba | J88: (012) 315 5760 | K88: Vuyo.Ngqukumba@treasury.gov.za | L88: 1 | M88: 3 | N88: 3A | O88: PE188 | P88: 188 | Q88: Kwa-ZuluM | R88: 3 | S88: 202425 | AD88: Market Theatre Foundation | BC88: Medical officer
C89: National Treasury | D89: Land and Agricultural Development Bank of South Africa | E89: Land and Agricultural Development Bank of South Africa | F89: Mokgatla Tema | G89: (012) 315 5948 | H89: Mokgatla.Tema@treasury.gov.za | I89: Patrick Mbedzi | J89: (012) 315 5912 | K89: Patrick.Mbedzi@treasury.gov.za | L89: 3 | M89: 3 | N89: 2 | O89: PE59 | P89: 59 | Q89: Land Bank | R89: 3 | S89: 202425 | AD89: Media Development Diversity Agency | BC89: Medical related
C90: Justice and Constitutional Development | D90: Legal Aid South Africa | E90: Legal Aid South Africa | F90: Werner Krause | G90: (012) 315 5211 | H90: Werner.Krause@treasury.gov.za | I90: Mpho Ntshole | J90: 0 | K90: Mpho.Ntshole@treasury.gov.za | L90: 1 | M90: 1 | N90: 3A | O90: PE58 | P90: 58 | Q90: LASA | R90: 3 | S90: 202425 | AD90: Media, Information and Communication Technologies Sector Education and Training Authority | BC90: Messengers
C91: Water and Sanitation | D91: Lepelle Northern Water Board | E91: Lepelle Northern Water | F91: Iqbal Mahomed Alli | G91: (012) 315 5809 | H91: Iqbal.Mahomedalli@treasury.gov.za | I91: Mntazi Msiza | J91: (012) 315 5876 | K91: Mntazi.Msiza@treasury.gov.za | L91: 1 | M91: 3 | N91: 3B | O91: PE177 | P91: 177 | Q91: Lepelle | R91: 3 | S91: 202425 | AD91: Mhlathuze Water | BC91: Ombudsman
C92: Higher Education and Training | D92: Local Government Education and Training Authority | E92: Local Government Education and Training Authority | F92: Spencer Janari | G92: (012) 315 5436 | H92: Spencer.Janari@treasury.gov.za | I92: Lionel Botsane | J92: (012) 315 5749 | K92: Lionel.Botsane@treasury.gov.za | L92: 2 | M92: 3 | N92: 3A | O92: PE178 | P92: 178 | Q92: LGSETA | R92: 3 | S92: 202425 | AD92: Mine Health and Safety Council | BC92: Pathologist
C93: Sport, Arts and Culture | D93: Luthuli Museum | E93: Luthuli Museum | F93: Judy Naidoo | G93: (012) 315 5269 | H93: Judy.Naidoo@treasury.gov.za | I93: Vuyo Ngqukumba | J93: (012) 315 5760 | K93: Vuyo.Ngqukumba@treasury.gov.za | L93: 1 | M93: 3 | N93: 3A | O93: PE180 | P93: 180 | Q93: LuthuliM | R93: 3 | S93: 202425 | AD93: Mining Qualifications Authority | BC93: Personal Assistants
C94: Water and Sanitation | D94: Magalies Water Board | E94: Magalies Water | F94: Iqbal Mahomed Alli | G94: (012) 315 5809 | H94: Iqbal.Mahomedalli@treasury.gov.za | I94: Mntazi Msiza | J94: (012) 315 5876 | K94: Mntazi.Msiza@treasury.gov.za | L94: 1 | M94: 3 | N94: 3B | O94: PE181 | P94: 181 | Q94: Magalies | R94: 3 | S94: 202425 | AD94: Mintek | BC94: Pharmacists
C95: Sport, Arts and Culture | D95: Mandela Bay Theatre Complex | E95: Mandela Bay Theatre Complex | F95: Judy Naidoo | G95: (012) 315 5269 | H95: Judy.Naidoo@treasury.gov.za | I95: Vuyo Ngqukumba | J95: (012) 315 5760 | K95: Vuyo.Ngqukumba@treasury.gov.za | L95: 1 | M95: 3 | N95: Not listed | O95: PE251 | P95: 251 | Q95: MBTC | R95: 3 | S95: 202425 | AD95: Municipal Infrastructure Support Agency | BC95: Physicists
C96: Higher Education and Training | D96: Manufacturing, Engineering and Related Services Education and Training Authority | E96: Manufacturing, Engineering and Related Services Education and Training Authority | F96: Spencer Janari | G96: (012) 315 5436 | H96: Spencer.Janari@treasury.gov.za | I96: Lionel Botsane | J96: (012) 315 5749 | K96: Lionel.Botsane@treasury.gov.za | L96: 2 | M96: 3 | N96: 3A | O96: PE184 | P96: 184 | Q96: MERSETA | R96: 3 | S96: 202425 | AD96: National Agricultural Marketing Council | BC96: Police
C97: Forestry, Fisheries and the Environment | D97: Marine Living Resources Fund | E97: Marine Living Resources Fund | F97: Humbelani Ramuedzisi | G97: (012) 315 5585 | H97: Humbelani.Ramuedzisi@treasury.gov.za | I97: Nymrot Sholoko | J97: 0 | K97: Nymrot.Sholoko@treasury.gov.za | L97: 1 | M97: 1 | N97: 3A | O97: PE66 | P97: 66 | Q97: MLRF | R97: 3 | S97: 202425 | AD97: National Arts Council | BC97: Programmers and related professionals
C98: Sport, Arts and Culture | D98: Market Theatre Foundation | E98: Market Theatre Foundation | F98: Judy Naidoo | G98: (012) 315 5269 | H98: Judy.Naidoo@treasury.gov.za | I98: Vuyo Ngqukumba | J98: (012) 315 5760 | K98: Vuyo.Ngqukumba@treasury.gov.za | L98: 1 | M98: 3 | N98: 3A | O98: PE183 | P98: 183 | Q98: Marketh | R98: 3 | S98: 202425 | AD98: National Consumer Commission | BC98: Records management related
C99: Government Communication and Information System | D99: Media Development Diversity Agency | E99: Media Development Diversity Agency | F99: Mokgatla Tema | G99: (012) 315 5948 | H99: Mokgatla.Tema@treasury.gov.za | I99: Patrick Mbedzi | J99: (012) 315 5912 | K99: Patrick.Mbedzi@treasury.gov.za | L99: 1 | M99: 1 | N99: 3A | O99: PE63 | P99: 63 | Q99: MDDA | R99: 3 | S99: 202425 | AD99: National Consumer Tribunal | BC99: Researchers
C100: Higher Education and Training | D100: Media, Information and Communication Technologies Sector Education and Training Authority | E100: Media, Information and Communication Technologies Sector Education and Training Authority | F100: Spencer Janari | G100: (012) 315 5436 | H100: Spencer.Janari@treasury.gov.za | I100: Lionel Botsane | J100: (012) 315 5749 | K100: Lionel.Botsane@treasury.gov.za | L100: 2 | M100: 3 | N100: 3A | O100: PE175 | P100: 175 | Q100: MICTSETTA | R100: 3 | S100: 202425 | AD100: National Credit Regulator | BC100: Risk management related
C101: Water and Sanitation | D101: Mhlathuze Water Board | E101: Mhlathuze Water | F101: Iqbal Mahomed Alli | G101: (012) 315 5809 | H101: Iqbal.Mahomedalli@treasury.gov.za | I101: Mntazi Msiza | J101: (012) 315 5876 | K101: Mntazi.Msiza@treasury.gov.za | L101: 1 | M101: 3 | N101: 3B | O101: PE185 | P101: 185 | Q101: Mhlathuze | R101: 3 | S101: 202425 | AD101: National Development Agency | BC101: Safety and security related
C102: Mineral Resources and Energy | D102: Mine Health and Safety Council | E102: Mine Health and Safety Council | F102: Nomagugu Madikane | G102: (012) 315 5312 | H102: Nomagugu.Madikane@treasury.gov.za | I102: Mpho Ntshole | J102: 0 | K102: Mpho.Ntshole@treasury.gov.za | L102: 1 | M102: 1 | N102: 3A | O102: PE64 | P102: 64 | Q102: MHSC | R102: 3 | S102: 202425 | AD102: National Economic Development and Labour Council | BC102: Sales related
C103: Health | D103: Mines and Works Compensation Fund | E103: Mines and Works Compensation Fund | F103: Refiloe Thokoa | G103: (012) 395 6559 | H103: Refiloe.Thokoa@treasury.gov.za | I103: Vuyo Ngqukumba | J103: (012) 315 5760 | K103: Vuyo.Ngqukumba@treasury.gov.za | L103: 4 | M103: 4 | N103: Not listed | O103: PE60 | P103: 60 | Q103: Mines and Works Compensation Fund | R103: 3 | S103: 202425 | AD103: National Electronic Media Institute of South Africa | BC103: Seamstress
C104: Higher Education and Training | D104: Mining Qualifications Authority | E104: Mining Qualifications Authority | F104: Spencer Janari | G104: (012) 315 5436 | H104: Spencer.Janari@treasury.gov.za | I104: Lionel Botsane | J104: (012) 315 5749 | K104: Lionel.Botsane@treasury.gov.za | L104: 2 | M104: 3 | N104: 3A | O104: PE186 | P104: 186 | Q104: MQA | R104: 3 | S104: 202425 | AD104: National Empowerment Fund | BC104: Social work and related professionals
C105: Mineral Resources and Energy | D105: Council for Mineral Technology | E105: Mintek | F105: Nomagugu Madikane | G105: (012) 315 5312 | H105: Nomagugu.Madikane@treasury.gov.za | I105: Mpho Ntshole | J105: 0 | K105: Mpho.Ntshole@treasury.gov.za | L105: 1 | M105: 1 | N105: 3B | O105: PE65 | P105: 65 | Q105: Mintek | R105: 1 | S105: 202425 | AD105: National Energy Regulator of South Africa | BC105: Statisticians and related professionals
C106: Cooperative Governance | D106: Municipal Infrastructure Support Agent | E106: Municipal Infrastructure Support Agency | F106: Millicent Mulaudzi | G106: (012) 395 6576 | H106: Millicent.Mulaudzi@treasury.gov.za | I106: Mntazi Msiza | J106: (012) 315 5876 | K106: Mntazi.Msiza@treasury.gov.za | L106: 1 | M106: 1 | N106: Not listed | O106: PE244 | P106: 244 | Q106: MISA | R106: 3 | S106: 202425 | AD106: National Film and Video Foundation | BC106: Supply chain related
C107: Agriculture, Land Reform and Rural Development | D107: National Agricultural Marketing Council | E107: National Agricultural Marketing Council | F107: Bothwell Deka | G107: (012) 395 6787 | H107: Bothwell.Deka@treasury.gov.za | I107: Nymrot Sholoko | J107: 0 | K107: Nymrot.Sholoko@treasury.gov.za | L107: 1 | M107: 1 | N107: 3A | O107: PE68 | P107: 68 | Q107: NAMC | R107: 3 | S107: 202425 | AD107: National Gambling Board of South Africa | BC107: Teachers
C108: Sport, Arts and Culture | D108: National Arts Council | E108: National Arts Council | F108: Judy Naidoo | G108: (012) 315 5269 | H108: Judy.Naidoo@treasury.gov.za | I108: Vuyo Ngqukumba | J108: (012) 315 5760 | K108: Vuyo.Ngqukumba@treasury.gov.za | L108: 1 | M108: 1 | N108: 3A | O108: PE67 | P108: 67 | Q108: NAC | R108: 3 | S108: 202425 | AD108: National Health Laboratory Service | BC108: Technicians
C109: Trade, Industry and Competition | D109: National Consumer Commission | E109: National Consumer Commission | F109: Isaac Kurasha | G109: (012) 315 5213 | H109: Isaac.Kurasha@treasury.gov.za | I109: Nymrot Sholoko | J109: 0 | K109: Nymrot.Sholoko@treasury.gov.za | L109: 1 | M109: 1 | N109: 3A | O109: PE124 | P109: 124 | Q109: NCC | R109: 3 | S109: 202425 | AD109: National Heritage Council | BC109: Tour Guide
C110: Trade, Industry and Competition | D110: National Consumer Tribunal | E110: National Consumer Tribunal | F110: Isaac Kurasha | G110: (012) 315 5213 | H110: Isaac.Kurasha@treasury.gov.za | I110: Nymrot Sholoko | J110: 0 | K110: Nymrot.Sholoko@treasury.gov.za | L110: 1 | M110: 1 | N110: 3A | O110: PE71 | P110: 71 | Q110: NCT | R110: 3 | S110: 202425 | AD110: National Home Builders Registration Council | BC110: Training and development related
C111: Trade, Industry and Competition | D111: National Credit Regulator | E111: National Credit Regulator | F111: Isaac Kurasha | G111: (012) 315 5213 | H111: Isaac.Kurasha@treasury.gov.za | I111: Nymrot Sholoko | J111: 0 | K111: Nymrot.Sholoko@treasury.gov.za | L111: 1 | M111: 1 | N111: 3A | O111: PE70 | P111: 70 | Q111: NCR | R111: 3 | S111: 202425 | AD111: National Housing Finance Corporation Limited | BC111: Tribunal member
C112: Social Development | D112: National Development Agency | E112: National Development Agency | F112: Lindi Mzankomo | G112: (012) 315 5256 | H112: Lindi.Mzankomo@treasury.gov.za | I112: Mpho Ntshole | J112: 0 | K112: Mpho.Ntshole@treasury.gov.za | L112: 1 | M112: 1 | N112: 3A | O112: PE72 | P112: 72 | Q112: NDA | R112: 3 | S112: 202425 | AD112: National Library of South Africa | BC112: Ushers
C113: Employment and Labour | D113: National Economic, Development and Labour Council | E113: National Economic Development and Labour Council | F113: Judy Naidoo | G113: (012) 315 5269 | H113: Judy.Naidoo@treasury.gov.za | I113: Vuyo Ngqukumba | J113: (012) 315 5760 | K113: Vuyo.Ngqukumba@treasury.gov.za | L113: 1 | M113: 1 | N113: 3A | O113: PE74 | P113: 74 | Q113: NEDLAC | R113: 3 | S113: 202425 | AD113: National Lotteries Commission | BC113: Wardrobe specialist
C114: Communications and Digital Technologies | D114: National Electronic Media Institute of South Africa | E114: National Electronic Media Institute of South Africa | F114: Keitumetse Motshegwe | G114: (012) 395 6750 | H114: Keitumetse.Motshegwe@treasury.gov.za | I114: Mntazi Msiza | J114: (012) 315 5876 | K114: Mntazi.Msiza@treasury.gov.za | L114: 1 | M114: 1 | N114: 3A | O114: PE76 | P114: 76 | Q114: NEMISA | R114: 3 | S114: 202425 | AD114: National Lotteries Commission Distribution Trust Fund | BC114: Workshop officer
C115: Trade, Industry and Competition | D115: National Empowerment Fund | E115: National Empowerment Fund | F115: Isaac Kurasha | G115: (012) 315 5213 | H115: Isaac.Kurasha@treasury.gov.za | I115: Nymrot Sholoko | J115: 0 | K115: Nymrot.Sholoko@treasury.gov.za | L115: 3 | M115: 1 | N115: 3A | O115: PE75 | P115: 75 | Q115: NEF | R115: 3 | S115: 202425 | AD115: National Metrology Institute of South Africa | BC115: Other: Please specify
C116: Mineral Resources and Energy | D116: National Energy Regulator | E116: National Energy Regulator of South Africa | F116: Nomagugu Madikane | G116: (012) 315 5312 | H116: Nomagugu.Madikane@treasury.gov.za | I116: Mpho Ntshole | J116: 0 | K116: Mpho.Ntshole@treasury.gov.za | L116: 1 | M116: 1 | N116: 3A | O116: PE77 | P116: 77 | Q116: NERSA | R116: 3 | S116: 202425 | AD116: National Museum, Bloemfontein
C117: Sport, Arts and Culture | D117: National Film and Video Foundation | E117: National Film and Video Foundation | F117: Judy Naidoo | G117: (012) 315 5269 | H117: Judy.Naidoo@treasury.gov.za | I117: Vuyo Ngqukumba | J117: (012) 315 5760 | K117: Vuyo.Ngqukumba@treasury.gov.za | L117: 1 | M117: 1 | N117: 3A | O117: PE78 | P117: 78 | Q117: NFVF | R117: 3 | S117: 202425 | AD117: National Nuclear Regulator
C118: Trade, Industry and Competition | D118: National Gambling Board | E118: National Gambling Board of South Africa | F118: Isaac Kurasha | G118: (012) 315 5213 | H118: Isaac.Kurasha@treasury.gov.za | I118: Nymrot Sholoko | J118: 0 | K118: Nymrot.Sholoko@treasury.gov.za | L118: 1 | M118: 1 | N118: 3A | O118: PE79 | P118: 79 | Q118: NGB | R118: 3 | S118: 202425 | AD118: National Regulator for Compulsory Specifications
C119: Health | D119: National Health Laboratory Service | E119: National Health Laboratory Service | F119: Refiloe Thokoa | G119: (012) 395 6559 | H119: Refiloe.Thokoa@treasury.gov.za | I119: Mpho Ntshole | J119: 0 | K119: Mpho.Ntshole@treasury.gov.za | L119: 1 | M119: 1 | N119: 3A | O119: PE83 | P119: 83 | Q119: NHLS | R119: 1 | S119: 202425 | AD119: National Research Foundation
C120: Sport, Arts and Culture | D120: National Heritage Council | E120: National Heritage Council | F120: Judy Naidoo | G120: (012) 315 5269 | H120: Judy.Naidoo@treasury.gov.za | I120: Vuyo Ngqukumba | J120: (012) 315 5760 | K120: Vuyo.Ngqukumba@treasury.gov.za | L120: 1 | M120: 1 | N120: 3A | O120: PE81 | P120: 81 | Q120: NHC | R120: 3 | S120: 202425 | AD120: National school of government
C121: Human Settlements | D121: National Home Builders Registration Council | E121: National Home Builders Registration Council | F121: Lindiwe Ngcongwane | G121: (012) 315 5357 | H121: Lindiwe.Ngcongwane@treasury.gov.za | I121: Vuyo Ngqukumba | J121: (012) 315 5760 | K121: Vuyo.Ngqukumba@treasury.gov.za | L121: 1 | M121: 1 | N121: 3A | O121: PE80 | P121: 80 | Q121: NHBRC | R121: 3 | S121: 202425 | AD121: National Student Financial Aid Scheme
C122: Human Settlements | D122: National Housing Finance Corporation | E122: National Housing Finance Corporation Limited | F122: Lindiwe Ngcongwane | G122: (012) 315 5357 | H122: Lindiwe.Ngcongwane@treasury.gov.za | I122: Vuyo Ngqukumba | J122: (012) 315 5760 | K122: Vuyo.Ngqukumba@treasury.gov.za | L122: 3 | M122: 1 | N122: 3A | O122: PE82 | P122: 82 | Q122: NHFC | R122: 3 | S122: 202425 | AD122: National Youth Development Agency
C123: Sport, Arts and Culture | D123: National Library of South Africa | E123: National Library of South Africa | F123: Judy Naidoo | G123: (012) 315 5269 | H123: Judy.Naidoo@treasury.gov.za | I123: Vuyo Ngqukumba | J123: (012) 315 5760 | K123: Vuyo.Ngqukumba@treasury.gov.za | L123: 1 | M123: 3 | N123: 3A | O123: PE189 | P123: 189 | Q123: NLSA | R123: 3 | S123: 202425 | AD123: Nelson Mandela National Museum
C124: Trade, Industry and Competition | D124: National Lotteries Commission | E124: National Lotteries Commission | F124: Isaac Kurasha | G124: (012) 315 5213 | H124: Isaac.Kurasha@treasury.gov.za | I124: Nymrot Sholoko | J124: 0 | K124: Nymrot.Sholoko@treasury.gov.za | L124: 1 | M124: 1 | N124: 3A | O124: PE84 | P124: 84 | Q124: NLB | R124: 3 | S124: 202425 | AD124: Office of Health Standards Compliance
C125: Trade, Industry and Competition | D125: National Lotteries Commission Distribution Trust Fund | E125: National Lotteries Commission Distribution Trust Fund | F125: Isaac Kurasha | G125: (012) 315 5213 | H125: Isaac.Kurasha@treasury.gov.za | I125: Nymrot Sholoko | J125: 0 | K125: Nymrot.Sholoko@treasury.gov.za | L125: 1 | M125: 1 | N125: Not listed | O125: PE227 | P125: 227 | Q125: NLBDTF | R125: 3 | S125: 202425 | AD125: Office of the Ombud for Financial Service Providers
C126: Trade, Industry and Competition | D126: National Metrology Institute of South Africa | E126: National Metrology Institute of South Africa | F126: Isaac Kurasha | G126: (012) 315 5213 | H126: Isaac.Kurasha@treasury.gov.za | I126: Nymrot Sholoko | J126: 0 | K126: Nymrot.Sholoko@treasury.gov.za | L126: 1 | M126: 1 | N126: 3A | O126: PE85 | P126: 85 | Q126: NMISA | R126: 3 | S126: 202425 | AD126: Office of the Pension Funds Adjudicator
C127: Sport, Arts and Culture | D127: Naional Museum | E127: National Museum, Bloemfontein | F127: Judy Naidoo | G127: (012) 315 5269 | H127: Judy.Naidoo@treasury.gov.za | I127: Vuyo Ngqukumba | J127: (012) 315 5760 | K127: Vuyo.Ngqukumba@treasury.gov.za | L127: 1 | M127: 3 | N127: 3A | O127: PE190 | P127: 190 | Q127: NationalM | R127: 3 | S127: 202425 | AD127: Office of the Valuer-General
C128: Mineral Resources and Energy | D128: National Nuclear Regulator | E128: National Nuclear Regulator | F128: Nomagugu Madikane | G128: (012) 315 5312 | H128: Nomagugu.Madikane@treasury.gov.za | I128: Mpho Ntshole | J128: 0 | K128: Mpho.Ntshole@treasury.gov.za | L128: 1 | M128: 1 | N128: 3A | O128: PE86 | P128: 86 | Q128: NNR | R128: 3 | S128: 202425 | AD128: Onderstepoort Biological Products
C129: Trade, Industry and Competition | D129: National Regulator for Compulsory Specifications of South Africa | E129: National Regulator for Compulsory Specifications | F129: Isaac Kurasha | G129: (012) 315 5213 | H129: Isaac.Kurasha@treasury.gov.za | I129: Nymrot Sholoko | J129: 0 | K129: Nymrot.Sholoko@treasury.gov.za | L129: 1 | M129: 1 | N129: 3A | O129: PE159 | P129: 159 | Q129: NRCS | R129: 3 | S129: 202425 | AD129: Overberg Water
C130: Science and Innovation | D130: National Research Foundation | E130: National Research Foundation | F130: Humbelani Ramuedzisi | G130: (012) 315 5585 | H130: Humbelani.Ramuedzisi@treasury.gov.za | I130: Patrick Mbedzi | J130: (012) 315 5912 | K130: Patrick.Mbedzi@treasury.gov.za | L130: 1 | M130: 1 | N130: 3A | O130: PE88 | P130: 88 | Q130: NRF | R130: 3 | S130: 202425 | AD130: Passenger Rail Agency of South Africa
C131: National School of Government | D131: The National School of Government Trading Account | E131: National school of government | F131: George Tembo | G131: (012) 315 5514 | H131: George.Tembo@treasury.gov.za | I131: Patrick Mbedzi | J131: (012) 315 5912 | K131: Patrick.Mbedzi@treasury.gov.za | L131: 1 | M131: 1 | N131: Not listed | O131: PE115 | P131: 115 | Q131: PALAMA | R131: 1 | S131: 202425 | AD131: Performing Arts Council of the Free State
C132: Higher Education and Training | D132: National Student Financial Aid Scheme | E132: National Student Financial Aid Scheme | F132: Spencer Janari | G132: (012) 315 5436 | H132: Spencer.Janari@treasury.gov.za | I132: Lionel Botsane | J132: (012) 315 5749 | K132: Lionel.Botsane@treasury.gov.za | L132: 3 | M132: 1 | N132: 3A | O132: PE90 | P132: 90 | Q132: NSFAS | R132: 3 | S132: 202425 | AD132: Perishable Products Export Control Board
C133: Women, Youth and Persons with Disabilities | D133: National Youth Development Agency | E133: National Youth Development Agency | F133: Lindi Mzankomo | G133: (012) 315 5256 | H133: Lindi.Mzankomo@treasury.gov.za | I133: Patrick Mbedzi | J133: (012) 315 5912 | K133: Patrick.Mbedzi@treasury.gov.za | L133: 3 | M133: 1 | N133: 3A | O133: PE92 | P133: 92 | Q133: NYDA | R133: 3 | S133: 202425 | AD133: Ports Regulator of South Africa
C134: Sport, Arts and Culture | D134: Nelson Mandela Museum | E134: Nelson Mandela National Museum | F134: Judy Naidoo | G134: (012) 315 5269 | H134: Judy.Naidoo@treasury.gov.za | I134: Vuyo Ngqukumba | J134: (012) 315 5760 | K134: Vuyo.Ngqukumba@treasury.gov.za | L134: 1 | M134: 3 | N134: 3A | O134: PE192 | P134: 192 | Q134: NelsonM | R134: 3 | S134: 202425 | AD134: Private Security Industry Regulatory Authority
C135: Health | D135: Office of Health Standards Compliance | E135: Office of Health Standards Compliance | F135: Refiloe Thokoa | G135: (012) 395 6559 | H135: Refiloe.Thokoa@treasury.gov.za | I135: Mpho Ntshole | J135: 0 | K135: Mpho.Ntshole@treasury.gov.za | L135: 1 | M135: 1 | N135: 3A | O135: PE242 | P135: 242 | Q135: OHSC | R135: 3 | S135: 202425 | AD135: Productivity SA
C136: National Treasury | D136: Office of the Ombudsman for Financial Services Providers | E136: Office of the Ombud for Financial Service Providers | F136: Mokgatla Tema | G136: (012) 315 5948 | H136: Mokgatla.Tema@treasury.gov.za | I136: Patrick Mbedzi | J136: (012) 315 5912 | K136: Patrick.Mbedzi@treasury.gov.za | L136: 1 | M136: 1 | N136: 3A | O136: PE37 | P136: 37 | Q136: FAIS | R136: 3 | S136: 202425 | AD136: Property Management Trading Entity
C137: National Treasury | D137: Office of the Pension Funds Adjudicator | E137: Office of the Pension Funds Adjudicator | F137: Mokgatla Tema | G137: (012) 315 5948 | H137: Mokgatla.Tema@treasury.gov.za | I137: Patrick Mbedzi | J137: (012) 315 5912 | K137: Patrick.Mbedzi@treasury.gov.za | L137: 1 | M137: 1 | N137: 3A | O137: PE232 | P137: 232 | Q137: OPFA | R137: 3 | S137: 202425 | AD137: Public Investment Corporation Limited
C138: Agriculture, Land Reform and Rural Development | D138: Office of the Valuer-General | E138: Office of the Valuer-General | F138: Bothwell Deka | G138: (012) 395 6788 | H138: Bothwell.Deka@treasury.gov.za | I138: Nymrot Sholoko | J138: 0 | K138: Nymrot.Sholoko@treasury.gov.za | L138: 1 | M138: 1 | N138: 3A | O138: PE248 | P138: 248 | Q138: OVG | R138: 3 | S138: 202425 | AD138: Public Service Sector Education and Training Authority
C139: Agriculture, Land Reform and Rural Development | D139: Onderstepoort Biological Products | E139: Onderstepoort Biological Products | F139: Bothwell Deka | G139: (012) 395 6789 | H139: Bothwell.Deka@treasury.gov.za | I139: Nymrot Sholoko | J139: 0 | K139: Nymrot.Sholoko@treasury.gov.za | L139: 1 | M139: 1 | N139: 3B | O139: PE93 | P139: 93 | Q139: OBP | R139: 3 | S139: 202425 | AD139: Quality Council for Trades and Occupations
C140: Water and Sanitation | D140: Overberg Water Board | E140: Overberg Water | F140: Iqbal Mahomed Alli | G140: (012) 315 5809 | H140: Iqbal.Mahomedalli@treasury.gov.za | I140: Mntazi Msiza | J140: (012) 315 5876 | K140: Mntazi.Msiza@treasury.gov.za | L140: 1 | M140: 3 | N140: 3B | O140: PE194 | P140: 194 | Q140: Overberg | R140: 3 | S140: 202425 | AD140: Railway Safety Regulator
C141: Transport | D141: Passenger Rail Agency of South Africa | E141: Passenger Rail Agency of South Africa | F141: Luyolo Ntlangula | G141: (012) 315 5571 | H141: Luyolo.Ntlangula@treasury.gov.za | I141: Lionel Botsane | J141: (012) 315 5749 | K141: Lionel.Botsane@treasury.gov.za | L141: 1 | M141: 1 | N141: 3B | O141: PE125 | P141: 125 | Q141: PRASA | R141: 3 | S141: 202425 | AD141: Rand Water
C142: Sport, Arts and Culture | D142: Performing Arts Council of the Free State | E142: Performing Arts Council of the Free State | F142: Judy Naidoo | G142: (012) 315 5269 | H142: Judy.Naidoo@treasury.gov.za | I142: Vuyo Ngqukumba | J142: (012) 315 5760 | K142: Vuyo.Ngqukumba@treasury.gov.za | L142: 1 | M142: 3 | N142: 3A | O142: PE195 | P142: 195 | Q142: PACOFS | R142: 3 | S142: 202425 | AD142: Registration of Deeds Trading Entity
C143: Agriculture, Land Reform and Rural Development | D143: Perishable Products Export Control Board Ltd | E143: Perishable Products Export Control Board | F143: Bothwell Deka | G143: (012) 395 6790 | H143: Bothwell.Deka@treasury.gov.za | I143: Nymrot Sholoko | J143: 0 | K143: Nymrot.Sholoko@treasury.gov.za | L143: 1 | M143: 1 | N143: 3A | O143: PE99 | P143: 99 | Q143: PPECB | R143: 3 | S143: 202425 | AD143: Road Traffic Infringement Agency
C144: Transport | D144: Ports Regulator of South Africa | E144: Ports Regulator of South Africa | F144: Luyolo Ntlangula | G144: (012) 315 5571 | H144: Luyolo.Ntlangula@treasury.gov.za | I144: Lionel Botsane | J144: (012) 315 5749 | K144: Lionel.Botsane@treasury.gov.za | L144: 1 | M144: 1 | N144: 3A | O144: PE10 | P144: 10 | Q144: Ports Reg | R144: 3 | S144: 202425 | AD144: Road Traffic Management Corporation
C145: Communications and Digital Technologies | D145: PostBank | E145: PostBank | F145: Keitumetse Motshegwe | G145: (012) 395 6750 | H145: Keitumetse.Motshegwe@treasury.gov.za | I145: Mntazi Msiza | J145: (012) 315 5876 | K145: Mntazi.Msiza@treasury.gov.za | L145: 3 | M145: 3 | N145: Not listed | O145: PE252 | P145: 252 | Q145: PostBank | R145: 3 | S145: 202425 | AD145: Robben Island Museum
C146: Police | D146: Private Security Industry Regulatory Authority | E146: Private Security Industry Regulatory Authority | F146: Nompumelelo Radebe | G146: (012) 315 5957 | H146: Nompumelelo.Radebe@treasury.gov.za | I146: Mpho Ntshole | J146: 0 | K146: Mpho.Ntshole@treasury.gov.za | L146: 1 | M146: 1 | N146: 3A | O146: PE11 | P146: 11 | Q146: PSIRA | R146: 3 | S146: 202425 | AD146: SA Bureau of Standards
C147: Employment and Labour | D147: Productivity South Africa | E147: Productivity SA | F147: Judy Naidoo | G147: (012) 315 5269 | H147: Judy.Naidoo@treasury.gov.za | I147: Vuyo Ngqukumba | J147: (012) 315 5760 | K147: Vuyo.Ngqukumba@treasury.gov.za | L147: 1 | M147: 1 | N147: 3A | O147: PE87 | P147: 87 | Q147: ProductivitySA | R147: 3 | S147: 202425 | AD147: SA Institute for Drug-free Sport
C148: Public Works and Infrastructure | D148: The Property Management Trading Account | E148: Property Management Trading Entity | F148: George Tembo | G148: (012) 315 5514 | H148: George.Tembo@treasury.gov.za | I148: Patrick Mbedzi | J148: (012) 315 5912 | K148: Patrick.Mbedzi@treasury.gov.za | L148: 1 | M148: 1 | N148: Not listed | O148: PE98 | P148: 98 | Q148: PMTE | R148: 1 | S148: 202425 | AD148: SA Medical Research Council
C149: Human Settlements | D149: Estate Agents Fidelity Fund | E149: Property Practitioners Fidelity Fund | F149: Lindiwe Ngcongwane | G149: (012) 315 5357 | H149: Lindiwe.Ngcongwane@treasury.gov.za | I149: Vuyo Ngqukumba | J149: (012) 315 5760 | K149: Vuyo.Ngqukumba@treasury.gov.za | L149: 1 | M149: 1 | N149: Not listed | O149: PE241 | P149: 241 | Q149: EAFF | R149: 3 | S149: 202425 | AD149: SA National Roads Agency
C150: Human Settlements | D150: Estate Agency Affairs Board | E150: Property Practitioners Regulatory Authority | F150: Lindiwe Ngcongwane | G150: (012) 315 5357 | H150: Lindiwe.Ngcongwane@treasury.gov.za | I150: Vuyo Ngqukumba | J150: (012) 315 5760 | K150: Vuyo.Ngqukumba@treasury.gov.za | L150: 1 | M150: 1 | N150: 3A | O150: PE33 | P150: 33 | Q150: EAAB | R150: 3 | S150: 202425 | AD150: Safety and Security Education and Training Authority
C151: National Treasury | D151: Public Investment Corporation | E151: Public Investment Corporation Limited | F151: Mokgatla Tema | G151: (012) 315 5948 | H151: Mokgatla.Tema@treasury.gov.za | I151: Patrick Mbedzi | J151: (012) 315 5912 | K151: Patrick.Mbedzi@treasury.gov.za | L151: 3 | M151: 1 | N151: 3B | O151: PE97 | P151: 97 | Q151: PIC | R151: 3 | S151: 202425 | AD151: Sedibeng Water
C152: Higher Education and Training | D152: Public Service Sector Education and Training Authority | E152: Public Service Sector Education and Training Authority | F152: Spencer Janari | G152: (012) 315 5436 | H152: Spencer.Janari@treasury.gov.za | I152: Lionel Botsane | J152: (012) 315 5749 | K152: Lionel.Botsane@treasury.gov.za | L152: 2 | M152: 3 | N152: 3A | O152: PE226 | P152: 226 | Q152: PSETA | R152: 3 | S152: 202425 | AD152: Sentech Limited
C153: Higher Education and Training | D153: Quality Council for Trades and Occupations | E153: Quality Council for Trades and Occupations | F153: Spencer Janari | G153: (012) 315 5436 | H153: Spencer.Janari@treasury.gov.za | I153: Lionel Botsane | J153: (012) 315 5749 | K153: Lionel.Botsane@treasury.gov.za | L153: 1 | M153: 1 | N153: 3A | O153: PE235 | P153: 235 | Q153: QCTO | R153: 3 | S153: 202425 | AD153: Services Sector Education and Training Authority
C154: Transport | D154: Railway Safety Regulator | E154: Railway Safety Regulator | F154: Luyolo Ntlangula | G154: (012) 315 5571 | H154: Luyolo.Ntlangula@treasury.gov.za | I154: Lionel Botsane | J154: (012) 315 5749 | K154: Lionel.Botsane@treasury.gov.za | L154: 1 | M154: 1 | N154: 3A | O154: PE103 | P154: 103 | Q154: RSR | R154: 3 | S154: 202425 | AD154: Small Enterprise Development Agency
C155: Water and Sanitation | D155: Rand Water Board | E155: Rand Water | F155: Iqbal Mahomed Alli | G155: (012) 315 5809 | H155: Iqbal.Mahomedalli@treasury.gov.za | I155: Mntazi Msiza | J155: (012) 315 5876 | K155: Mntazi.Msiza@treasury.gov.za | L155: 1 | M155: 3 | N155: 3B | O155: PE199 | P155: 199 | Q155: RandWater | R155: 3 | S155: 202425 | AD155: South African Civil Aviation Authority
C156: Agriculture, Land Reform and Rural Development | D156: Registration of Deeds Trading Account | E156: Registration of Deeds Trading Entity | F156: Bothwell Deka | G156: (012) 395 6791 | H156: Bothwell.Deka@treasury.gov.za | I156: Nymrot Sholoko | J156: 0 | K156: Nymrot.Sholoko@treasury.gov.za | L156: 1 | M156: 1 | N156: Not listed | O156: PE31 | P156: 31 | Q156: DEEDS | R156: 3 | S156: 202425 | AD156: South African Council for Educators
C157: Transport | D157: Road Accident Fund | E157: Road Accident Fund | F157: Luyolo Ntlangula | G157: (012) 315 5571 | H157: Luyolo.Ntlangula@treasury.gov.za | I157: Vuyo Ngqukumba | J157: (012) 315 5760 | K157: Vuyo.Ngqukumba@treasury.gov.za | L157: 4 | M157: 4 | N157: 3A | O157: PE101 | P157: 101 | Q157: RAF | R157: 3 | S157: 202425 | AD157: South African Diamond and Precious Metals Regulator
C158: Transport | D158: Road Traffic Infringement Agency | E158: Road Traffic Infringement Agency | F158: Luyolo Ntlangula | G158: (012) 315 5571 | H158: Luyolo.Ntlangula@treasury.gov.za | I158: Lionel Botsane | J158: (012) 315 5749 | K158: Lionel.Botsane@treasury.gov.za | L158: 1 | M158: 1 | N158: 3A | O158: PE229 | P158: 229 | Q158: RTIA | R158: 3 | S158: 202425 | AD158: South African Health Products Regulatory Authority
C159: Transport | D159: Road Traffic Management Corporation | E159: Road Traffic Management Corporation | F159: Luyolo Ntlangula | G159: (012) 315 5571 | H159: Luyolo.Ntlangula@treasury.gov.za | I159: Lionel Botsane | J159: (012) 315 5749 | K159: Lionel.Botsane@treasury.gov.za | L159: 1 | M159: 1 | N159: 3A | O159: PE104 | P159: 104 | Q159: RTMC | R159: 3 | S159: 202425 | AD159: South African Heritage Resources Agency
C160: Sport, Arts and Culture | D160: Robben Island Museum | E160: Robben Island Museum | F160: Judy Naidoo | G160: (012) 315 5269 | H160: Judy.Naidoo@treasury.gov.za | I160: Vuyo Ngqukumba | J160: (012) 315 5760 | K160: Vuyo.Ngqukumba@treasury.gov.za | L160: 1 | M160: 3 | N160: 3A | O160: PE200 | P160: 200 | Q160: RobbenM | R160: 3 | S160: 202425 | AD160: South African Library for the Blind
C161: Trade, Industry and Competition | D161: South African Bureau of Standards | E161: SA Bureau of Standards | F161: Isaac Kurasha | G161: (012) 315 5213 | H161: Isaac.Kurasha@treasury.gov.za | I161: Nymrot Sholoko | J161: 0 | K161: Nymrot.Sholoko@treasury.gov.za | L161: 1 | M161: 1 | N161: 3B | O161: PE108 | P161: 108 | Q161: SABS | R161: 3 | S161: 202425 | AD161: South African Local Government Association
C162: Sport, Arts and Culture | D162: South African Institute for Drug-Free Sport | E162: SA Institute for Drug-free Sport | F162: Judy Naidoo | G162: (012) 315 5269 | H162: Judy.Naidoo@treasury.gov.za | I162: Vuyo Ngqukumba | J162: (012) 315 5760 | K162: Vuyo.Ngqukumba@treasury.gov.za | L162: 1 | M162: 1 | N162: 3A | O162: PE112 | P162: 112 | Q162: SAIDS | R162: 3 | S162: 202425 | AD162: South African Maritime Safety Authority
C163: Health | D163: South African Medical Research Council | E163: SA Medical Research Council | F163: Refiloe Thokoa | G163: (012) 395 6559 | H163: Refiloe.Thokoa@treasury.gov.za | I163: Mpho Ntshole | J163: 0 | K163: Mpho.Ntshole@treasury.gov.za | L163: 1 | M163: 1 | N163: 3A | O163: PE116 | P163: 116 | Q163: SAMRC | R163: 1 | S163: 202425 | AD163: South African National Accreditation System
C164: Transport | D164: South African National Roads Agency | E164: SA National Roads Agency | F164: Luyolo Ntlangula | G164: (012) 315 5571 | H164: Luyolo.Ntlangula@treasury.gov.za | I164: Lionel Botsane | J164: (012) 315 5749 | K164: Lionel.Botsane@treasury.gov.za | L164: 1 | M164: 1 | N164: 3A | O164: PE121 | P164: 121 | Q164: SANRAL | R164: 3 | S164: 202425 | AD164: South African National Biodiversity Institute
C165: Higher Education and Training | D165: Safety and Security Education and Training Authority | E165: Safety and Security Education and Training Authority | F165: Spencer Janari | G165: (012) 315 5436 | H165: Spencer.Janari@treasury.gov.za | I165: Lionel Botsane | J165: (012) 315 5749 | K165: Lionel.Botsane@treasury.gov.za | L165: 2 | M165: 3 | N165: 3A | O165: PE201 | P165: 201 | Q165: SASSETA | R165: 3 | S165: 202425 | AD165: South African National Energy Development Institute
C166: National Treasury | D166: South African Special Risks Insurance Association | E166: Sasria Limited | F166: Mokgatla Tema | G166: (012) 315 5948 | H166: Mokgatla.Tema@treasury.gov.za | I166: Patrick Mbedzi | J166: (012) 315 5912 | K166: Patrick.Mbedzi@treasury.gov.za | L166: 3 | M166: 3 | N166: 3B | O166: PE128 | P166: 128 | Q166: SASRIA | R166: 3 | S166: 202425 | AD166: South African National Parks
C167: Water and Sanitation | D167: Sedibeng Water Board | E167: Sedibeng Water | F167: Iqbal Mahomed Alli | G167: (012) 315 5809 | H167: Iqbal.Mahomedalli@treasury.gov.za | I167: Mntazi Msiza | J167: (012) 315 5876 | K167: Mntazi.Msiza@treasury.gov.za | L167: 1 | M167: 3 | N167: 3B | O167: PE202 | P167: 202 | Q167: Sedibeng | R167: 3 | S167: 202425 | AD167: South African National Space Agency
C168: Communications and Digital Technologies | D168: Sentech (Pty) Ltd | E168: Sentech Limited | F168: Keitumetse Motshegwe | G168: (012) 395 6750 | H168: Keitumetse.Motshegwe@treasury.gov.za | I168: Mntazi Msiza | J168: (012) 315 5876 | K168: Mntazi.Msiza@treasury.gov.za | L168: 1 | M168: 1 | N168: 3B | O168: PE132 | P168: 132 | Q168: SENTECH | R168: 3 | S168: 202425 | AD168: South African Nuclear Energy Corporation Limited
C169: Higher Education and Training | D169: Services Sector Education and Training Authority | E169: Services Sector Education and Training Authority | F169: Spencer Janari | G169: (012) 315 5436 | H169: Spencer.Janari@treasury.gov.za | I169: Lionel Botsane | J169: (012) 315 5749 | K169: Lionel.Botsane@treasury.gov.za | L169: 2 | M169: 3 | N169: 3A | O169: PE203 | P169: 203 | Q169: SSETA | R169: 3 | S169: 202425 | AD169: South African Qualifications Authority
C170: Small Business Development | D170: Small Enterprise Development Agency | E170: Small Enterprise Development Agency | F170: Bothwell Deka | G170: (012) 395 6791 | H170: Bothwell.Deka@treasury.gov.za | I170: Nymrot Sholoko | J170: 0 | K170: Nymrot.Sholoko@treasury.gov.za | L170: 3 | M170: 1 | N170: 3A | O170: PE131 | P170: 131 | Q170: SEDA | R170: 3 | S170: 202425 | AD170: South African Revenue Service
C171: Trade, Industry and Competition | D171: Small Enterprise Finance Agency | E171: Small Enterprise Finance Agency | F171: Isaac Kurasha | G171: (012) 315 5213 | H171: Isaac.Kurasha@treasury.gov.za | I171: Nymrot Sholoko | J171: 0 | K171: Nymrot.Sholoko@treasury.gov.za | L171: 3 | M171: 3 | N171: 3B | O171: PE238 | P171: 238 | Q171: SAFA | R171: 3 | S171: 202425 | AD171: South African Social Security Agency
C172: Public Enterprises | D172: South African Airways (Pty) Limited | E172: South African Airways (Pty) Limited | F172: Isaac Kurasha | G172: (012) 315 5213 | H172: Isaac.Kurasha@treasury.gov.za | I172: Mntazi Msiza | J172: (012) 315 5876 | K172: Mntazi.Msiza@treasury.gov.za | L172: 1 | M172: 3 | N172: 2 | O172: PE163 | P172: 163 | Q172: SAA | R172: 3 | S172: 202425 | AD172: South African Tourism
C173: Communications and Digital Technologies | D173: South African Broadcasting Corporation Ltd | E173: South African Broadcasting Corporation Limited | F173: Keitumetse Motshegwe | G173: (012) 395 6750 | H173: Keitumetse.Motshegwe@treasury.gov.za | I173: Mntazi Msiza | J173: (012) 315 5876 | K173: Mntazi.Msiza@treasury.gov.za | L173: 1 | M173: 3 | N173: 2 | O173: PE107 | P173: 107 | Q173: SABC | R173: 3 | S173: 202425 | AD173: South African Weather Service
C174: Transport | D174: South African Civil Aviation Authority | E174: South African Civil Aviation Authority | F174: Luyolo Ntlangula | G174: (012) 315 5571 | H174: Luyolo.Ntlangula@treasury.gov.za | I174: Lionel Botsane | J174: (012) 315 5749 | K174: Lionel.Botsane@treasury.gov.za | L174: 1 | M174: 1 | N174: 3A | O174: PE13 | P174: 13 | Q174: CAA | R174: 1 | S174: 202425 | AD174: Special Investigating Unit
C175: Basic Education | D175: South African Council for Educators | E175: South African Council for Educators | F175: Spencer Janari | G175: (012) 315 5436 | H175: Spencer.Janari@treasury.gov.za | I175: Patrick Mbedzi | J175: (012) 315 5912 | K175: Patrick.Mbedzi@treasury.gov.za | L175: 1 | M175: 1 | N175: 3A | O175: PE109 | P175: 109 | Q175: SACE | R175: 3 | S175: 202425 | AD175: State Diamond Trader
C176: Mineral Resources and Energy | D176: South African Diamond and Precious Metals Regulator | E176: South African Diamond and Precious Metals Regulator | F176: Nomagugu Madikane | G176: (012) 315 5312 | H176: Nomagugu.Madikane@treasury.gov.za | I176: Mpho Ntshole | J176: 0 | K176: Mpho.Ntshole@treasury.gov.za | L176: 1 | M176: 1 | N176: 3A | O176: PE105 | P176: 105 | Q176: SADPMR | R176: 3 | S176: 202425 | AD176: State Information Technology Agency
C177: Public Enterprises | D177: South African Express (Pty) Limited | E177: South African Express (Pty) Limited | F177: Isaac Kurasha | G177: (012) 315 5213 | H177: Isaac.Kurasha@treasury.gov.za | I177: Mntazi Msiza | J177: (012) 315 5876 | K177: Mntazi.Msiza@treasury.gov.za | L177: 1 | M177: 3 | N177: 2 | O177: PE160 | P177: 160 | Q177: SAX | R177: 3 | S177: 202425 | AD177: Takeover Regulation Panel
C178: Public Enterprises | D178: South African Forestry Company Limited | E178: South African Forestry Company Limited | F178: Isaac Kurasha | G178: (012) 315 5213 | H178: Isaac.Kurasha@treasury.gov.za | I178: Mntazi Msiza | J178: (012) 315 5876 | K178: Mntazi.Msiza@treasury.gov.za | L178: 1 | M178: 3 | N178: 2 | O178: PE110 | P178: 110 | Q178: SAFCOL | R178: 3 | S178: 202425 | AD178: Technology Innovation Agency
C179: Health | D179: South African Health Products Regulatory Authority | E179: South African Health Products Regulatory Authority | F179: Refiloe Thokoa | G179: (012) 395 6559 | H179: Refiloe.Thokoa@treasury.gov.za | I179: Mpho Ntshole | J179: 0 | K179: Mpho.Ntshole@treasury.gov.za | L179: 1 | M179: 1 | N179: 3A | O179: PE247 | P179: 247 | Q179: SAHPRA | R179: 3 | S179: 202425 | AD179: The Commission for the Promotion and Protection of the Rights of Cultural, Religious and Linguistic Communities
C180: Sport, Arts and Culture | D180: South African Heritage Resources Agency | E180: South African Heritage Resources Agency | F180: Judy Naidoo | G180: (012) 315 5269 | H180: Judy.Naidoo@treasury.gov.za | I180: Vuyo Ngqukumba | J180: (012) 315 5760 | K180: Vuyo.Ngqukumba@treasury.gov.za | L180: 1 | M180: 1 | N180: 3A | O180: PE111 | P180: 111 | Q180: SAHRA | R180: 3 | S180: 202425 | AD180: The Commission on Gender Equality
C181: Sport, Arts and Culture | D181: South African Library for the Blind | E181: South African Library for the Blind | F181: Judy Naidoo | G181: (012) 315 5269 | H181: Judy.Naidoo@treasury.gov.za | I181: Vuyo Ngqukumba | J181: (012) 315 5760 | K181: Vuyo.Ngqukumba@treasury.gov.za | L181: 1 | M181: 3 | N181: 3A | O181: PE179 | P181: 179 | Q181: SALB | R181: 3 | S181: 202425 | AD181: The Co-operative Banks Development Agency
C182: Cooperative Governance | D182: South African Local Government Association | E182: South African Local Government Association | F182: Millicent Mulaudzi | G182: (012) 395 6576 | H182: Millicent.Mulaudzi@treasury.gov.za | I182: Mntazi Msiza | J182: (012) 315 5876 | K182: Mntazi.Msiza@treasury.gov.za | L182: 1 | M182: 1 | N182: 3A | O182: PE113 | P182: 113 | Q182: SALGA | R182: 3 | S182: 202425 | AD182: The Financial and Fiscal Commission
C183: Transport | D183: South African Maritime Safety Authority | E183: South African Maritime Safety Authority | F183: Luyolo Ntlangula | G183: (012) 315 5571 | H183: Luyolo.Ntlangula@treasury.gov.za | I183: Lionel Botsane | J183: (012) 315 5749 | K183: Lionel.Botsane@treasury.gov.za | L183: 1 | M183: 1 | N183: 3A | O183: PE117 | P183: 117 | Q183: SAMSA | R183: 3 | S183: 202425 | AD183: The Independent Communications Authority of South Africa
C184: Trade, Industry and Competition | D184: South African National Accreditation System | E184: South African National Accreditation System | F184: Isaac Kurasha | G184: (012) 315 5213 | H184: Isaac.Kurasha@treasury.gov.za | I184: Nymrot Sholoko | J184: 0 | K184: Nymrot.Sholoko@treasury.gov.za | L184: 1 | M184: 1 | N184: 3A | O184: PE119 | P184: 119 | Q184: SANAS | R184: 3 | S184: 202425 | AD184: The Independent Electoral Commission
C185: Forestry, Fisheries and the Environment | D185: South African National Biodiversity Institute | E185: South African National Biodiversity Institute | F185: Humbelani Ramuedzisi | G185: (012) 315 5585 | H185: Humbelani.Ramuedzisi@treasury.gov.za | I185: Nymrot Sholoko | J185: 0 | K185: Nymrot.Sholoko@treasury.gov.za | L185: 1 | M185: 1 | N185: 3A | O185: PE120 | P185: 120 | Q185: SANBI | R185: 3 | S185: 202425 | AD185: The Municipal Demarcation Board
C186: Mineral Resources and Energy | D186: South African National Energy Development Institute | E186: South African National Energy Development Institute | F186: Nomagugu Madikane | G186: (012) 315 5312 | H186: Nomagugu.Madikane@treasury.gov.za | I186: Mpho Ntshole | J186: 0 | K186: Mpho.Ntshole@treasury.gov.za | L186: 1 | M186: 1 | N186: 3B | O186: PE155 | P186: 155 | Q186: SANEDI | R186: 3 | S186: 202425 | AD186: The National Radioactive Waste Disposal Institute
C187: Forestry, Fisheries and the Environment | D187: South African National Parks | E187: South African National Parks | F187: Humbelani Ramuedzisi | G187: (012) 315 5585 | H187: Humbelani.Ramuedzisi@treasury.gov.za | I187: Nymrot Sholoko | J187: 0 | K187: Nymrot.Sholoko@treasury.gov.za | L187: 1 | M187: 1 | N187: 3A | O187: PE118 | P187: 118 | Q187: SANPARKS | R187: 3 | S187: 202425 | AD187: The National Skills Fund
C188: Science and Innovation | D188: South African National Space Agency | E188: South African National Space Agency | F188: Humbelani Ramuedzisi | G188: (012) 315 5585 | H188: Humbelani.Ramuedzisi@treasury.gov.za | I188: Patrick Mbedzi | J188: (012) 315 5912 | K188: Patrick.Mbedzi@treasury.gov.za | L188: 1 | M188: 1 | N188: 3A | O188: PE233 | P188: 233 | Q188: SANSA | R188: 3 | S188: 202425 | AD188: The Pan South African Language Board
C189: Mineral Resources and Energy | D189: South African Nuclear Energy Corporation Limited | E189: South African Nuclear Energy Corporation Limited | F189: Nomagugu Madikane | G189: (012) 315 5312 | H189: Nomagugu.Madikane@treasury.gov.za | I189: Mpho Ntshole | J189: 0 | K189: Mpho.Ntshole@treasury.gov.za | L189: 1 | M189: 1 | N189: 2 | O189: PE73 | P189: 73 | Q189: NECSA | R189: 1 | S189: 202425 | AD189: The Playhouse Company
C190: Communications and Digital Technologies | D190: South African Post Office SOC Ltd | E190: South African Post Office Limited | F190: Keitumetse Motshegwe | G190: (012) 395 6750 | H190: Keitumetse.Motshegwe@treasury.gov.za | I190: Mntazi Msiza | J190: (012) 315 5876 | K190: Mntazi.Msiza@treasury.gov.za | L190: 1 | M190: 3 | N190: 2 | O190: PE122 | P190: 122 | Q190: SAPO | R190: 3 | S190: 202425 | AD190: The Public Protector of South Africa
C191: Higher Education and Training | D191: South African Qualifications Authority | E191: South African Qualifications Authority | F191: Spencer Janari | G191: (012) 315 5436 | H191: Spencer.Janari@treasury.gov.za | I191: Lionel Botsane | J191: (012) 315 5749 | K191: Lionel.Botsane@treasury.gov.za | L191: 1 | M191: 1 | N191: 3A | O191: PE123 | P191: 123 | Q191: SAQA | R191: 3 | S191: 202425 | AD191: The Social Housing Regulatory Authority
C192: National Treasury | D192: South African Revenue Service | E192: South African Revenue Service | F192: Mokgatla Tema | G192: (012) 315 5948 | H192: Mokgatla.Tema@treasury.gov.za | I192: Patrick Mbedzi | J192: (012) 315 5912 | K192: Patrick.Mbedzi@treasury.gov.za | L192: 1 | M192: 1 | N192: 3A | O192: PE126 | P192: 126 | Q192: SARS | R192: 3 | S192: 202425 | AD192: The South African Human Rights Commission
C193: Social Development | D193: South African Social Security Agency | E193: South African Social Security Agency | F193: Lindi Mzankomo | G193: (012) 315 5256 | H193: Lindi.Mzankomo@treasury.gov.za | I193: Mpho Ntshole | J193: 0 | K193: Mpho.Ntshole@treasury.gov.za | L193: 5 | M193: 1 | N193: 3A | O193: PE129 | P193: 129 | Q193: SASSA | R193: 3 | S193: 202425 | AD193: The South African State Theatre
C194: Tourism | D194: South African Tourism | E194: South African Tourism | F194: Humbelani Ramuedzisi | G194: (012) 315 5585 | H194: Humbelani.Ramuedzisi@treasury.gov.za | I194: Nymrot Sholoko | J194: 0 | K194: Nymrot.Sholoko@treasury.gov.za | L194: 1 | M194: 1 | N194: 3A | O194: PE106 | P194: 106 | Q194: SA TOUR | R194: 3 | S194: 202425 | AD194: The Water Services Trading Entity
C195: Forestry, Fisheries and the Environment | D195: South African Weather Service | E195: South African Weather Service | F195: Humbelani Ramuedzisi | G195: (012) 315 5585 | H195: Humbelani.Ramuedzisi@treasury.gov.za | I195: Nymrot Sholoko | J195: 0 | K195: Nymrot.Sholoko@treasury.gov.za | L195: 1 | M195: 1 | N195: 3A | O195: PE130 | P195: 130 | Q195: SAWS | R195: 3 | S195: 202425 | AD195: Trans-Caledon Tunnel Authority
C196: Justice and Constitutional Development | D196: Special Investigating Unit | E196: Special Investigating Unit | F196: Werner Krause | G196: (012) 315 5211 | H196: Werner.Krause@treasury.gov.za | I196: Mpho Ntshole | J196: 0 | K196: Mpho.Ntshole@treasury.gov.za | L196: 1 | M196: 1 | N196: 3A | O196: PE136 | P196: 136 | Q196: SIU | R196: 1 | S196: 202425 | AD196: Transport Education and Training Authority
C197: Mineral Resources and Energy | D197: State Diamond Trader | E197: State Diamond Trader | F197: Nomagugu Madikane | G197: (012) 315 5312 | H197: Nomagugu.Madikane@treasury.gov.za | I197: Mpho Ntshole | J197: 0 | K197: Mpho.Ntshole@treasury.gov.za | L197: 1 | M197: 1 | N197: 3B | O197: PE23 | P197: 23 | Q197: SDT | R197: 3 | S197: 202425 | AD197: uMalusi Council for Quality Assurance in General and Further Education and Training
C198: Communications and Digital Technologies | D198: State Information Technology Agency (Pty) Ltd | E198: State Information Technology Agency | F198: Keitumetse Motshegwe | G198: (012) 395 6750 | H198: Keitumetse.Motshegwe@treasury.gov.za | I198: Mntazi Msiza | J198: (012) 315 5876 | K198: Mntazi.Msiza@treasury.gov.za | L198: 1 | M198: 1 | N198: 3A | O198: PE135 | P198: 135 | Q198: SITA | R198: 1 | S198: 202425 | AD198: Umgeni Water
C199: Trade, Industry and Competition | D199: Takeover Regulation Panel | E199: Takeover Regulation Panel | F199: Isaac Kurasha | G199: (012) 315 5213 | H199: Isaac.Kurasha@treasury.gov.za | I199: Nymrot Sholoko | J199: 0 | K199: Nymrot.Sholoko@treasury.gov.za | L199: 1 | M199: 1 | N199: 3A | O199: PE254 | P199: 254 | Q199: TRP | R199: 3 | S199: 202425 | AD199: uMsunduzi Museum
C200: Science and Innovation | D200: Technology Innovation Agency | E200: Technology Innovation Agency | F200: Humbelani Ramuedzisi | G200: (012) 315 5585 | H200: Humbelani.Ramuedzisi@treasury.gov.za | I200: Patrick Mbedzi | J200: (012) 315 5912 | K200: Patrick.Mbedzi@treasury.gov.za | L200: 1 | M200: 1 | N200: 3A | O200: PE234 | P200: 234 | Q200: TIA | R200: 3 | S200: 202425 | AD200: Universal Service and Access Agency of South Africa
C201: Traditional Affairs | D201: The Commission for the Promotion and Protection of the Rights of Cultural, Religious and Linguistic Communities | E201: The Commission for the Promotion and Protection of the Rights of Cultural, Religious and Linguistic Communities | F201: Millicent Mulaudzi | G201: (012) 395 6576 | H201: Millicent.Mulaudzi@treasury.gov.za | I201: Mntazi Msiza | J201: (012) 315 5876 | K201: Mntazi.Msiza@treasury.gov.za | L201: 1 | M201: 1 | N201: 1 | O201: PE28 | P201: 28 | Q201: CRCCOM | R201: 3 | S201: 202425 | AD201: Universal Service and Access Fund
C202: Women, Youth and Persons with Disabilities | D202: Commission for Gender Equality | E202: The Commission on Gender Equality | F202: Lindi Mzankomo | G202: (012) 315 5256 | H202: Lindi.Mzankomo@treasury.gov.za | I202: Patrick Mbedzi | J202: (012) 315 5912 | K202: Patrick.Mbedzi@treasury.gov.za | L202: 1 | M202: 1 | N202: 1 | O202: PE19 | P202: 19 | Q202: CGE | R202: 3 | S202: 202425 | AD202: War Museum of the Boer Republics
C203: National Treasury | D203: Cooperatives Banks Development Agency | E203: The Co-operative Banks Development Agency | F203: Mokgatla Tema | G203: (012) 315 5948 | H203: Mokgatla.Tema@treasury.gov.za | I203: Patrick Mbedzi | J203: (012) 315 5912 | K203: Patrick.Mbedzi@treasury.gov.za | L203: 1 | M203: 1 | N203: 3A | O203: PE157 | P203: 157 | Q203: CBDA | R203: 3 | S203: 202425 | AD203: Water Research Commission
C204: National Treasury | D204: Financial and Fiscal Commission | E204: The Financial and Fiscal Commission | F204: Mokgatla Tema | G204: (012) 315 5948 | H204: Mokgatla.Tema@treasury.gov.za | I204: Patrick Mbedzi | J204: (012) 315 5912 | K204: Patrick.Mbedzi@treasury.gov.za | L204: 1 | M204: 1 | N204: 1 | O204: PE38 | P204: 38 | Q204: FFC | R204: 3 | S204: 202425 | AD204: Wholesale and Retail Sector Education and Training Authority
C205: Communications and Digital Technologies | D205: Independent Communications Authority of South Africa | E205: The Independent Communications Authority of South Africa | F205: Keitumetse Motshegwe | G205: (012) 395 6750 | H205: Keitumetse.Motshegwe@treasury.gov.za | I205: Mntazi Msiza | J205: (012) 315 5876 | K205: Mntazi.Msiza@treasury.gov.za | L205: 1 | M205: 1 | N205: 1 | O205: PE47 | P205: 47 | Q205: ICASA | R205: 3 | S205: 202425 | AD205: William Humphreys Art Gallery
C206: Home Affairs | D206: Electoral Commission | E206: The Independent Electoral Commission | F206: Timothy Murwa | G206: (012) 315 5002 | H206: Timothy.Murwa@treasury.gov.za | I206: Patrick Mbedzi | J206: (012) 315 5912 | K206: Patrick.Mbedzi@treasury.gov.za | L206: 1 | M206: 1 | N206: 1 | O206: PE50 | P206: 50 | Q206: IEC | R206: 3 | S206: 202425
C207: Cooperative Governance | D207: Municipal Demarcation Board | E207: The Municipal Demarcation Board | F207: Millicent Mulaudzi | G207: (012) 395 6576 | H207: Millicent.Mulaudzi@treasury.gov.za | I207: Mntazi Msiza | J207: (012) 315 5876 | K207: Mntazi.Msiza@treasury.gov.za | L207: 1 | M207: 1 | N207: 1 | O207: PE154 | P207: 154 | Q207: MDB | R207: 3 | S207: 202425
C208: Mineral Resources and Energy | D208: National Radioactive Waste Disposal Institute | E208: The National Radioactive Waste Disposal Institute | F208: Nomagugu Madikane | G208: (012) 315 5312 | H208: Nomagugu.Madikane@treasury.gov.za | I208: Mpho Ntshole | J208: 0 | K208: Mpho.Ntshole@treasury.gov.za | L208: 1 | M208: 1 | N208: 3A | O208: PE236 | P208: 236 | Q208: NRWDI | R208: 3 | S208: 202425
C209: Higher Education and Training | D209: The National Skills Fund | E209: The National Skills Fund | F209: Spencer Janari | G209: (012) 315 5436 | H209: Spencer.Janari@treasury.gov.za | I209: Lionel Botsane | J209: (012) 315 5749 | K209: Lionel.Botsane@treasury.gov.za | L209: 2 | M209: 1 | N209: 3A | O209: PE89 | P209: 89 | Q209: NSF | R209: 3 | S209: 202425
C210: Sport, Arts and Culture | D210: Pan South African Language Board | E210: The Pan South African Language Board | F210: Judy Naidoo | G210: (012) 315 5269 | H210: Judy.Naidoo@treasury.gov.za | I210: Vuyo Ngqukumba | J210: (012) 315 5760 | K210: Vuyo.Ngqukumba@treasury.gov.za | L210: 1 | M210: 1 | N210: 1 | O210: PE94 | P210: 94 | Q210: PANSALB | R210: 3 | S210: 202425
C211: Sport, Arts and Culture | D211: The Playhouse Company | E211: The Playhouse Company | F211: Judy Naidoo | G211: (012) 315 5269 | H211: Judy.Naidoo@treasury.gov.za | I211: Vuyo Ngqukumba | J211: (012) 315 5760 | K211: Vuyo.Ngqukumba@treasury.gov.za | L211: 1 | M211: 3 | N211: 3A | O211: PE198 | P211: 198 | Q211: Playhouse | R211: 3 | S211: 202425
... 243 more rows

Sheet Information
A13: Name of Entity | C13: Name of Compiling Officer
A14: CEF (Pty) Ltd
A15: Department | C15: Telephone Number of Compiling Officer
A16: =Settings!C2 -> Mineral Resources and Energy
A17: File should be submitted to... | C17: E-Mail Address of Compiling Officer
A18: datafilepe@treasury.gov.za
A21: Budget Examiner: | C21: Technical Assistant:
A22: =Settings!F2 -> Nomagugu Madikane | C22: =Settings!I2 -> Mpho Ntshole
A23: =Settings!G2 -> (012) 315 5312 | C23: =Settings!J2 -> 0
A24: =Settings!H2 -> Nomagugu.Madikane@treasury.gov.za | C24: =Settings!K2 -> Mpho.Ntshole@treasury.gov.za

Sheet Technical Guidelines
F4: Completing the public entities' budget template
F6: This spread sheet is intended to assist the data compilers when completing the budget template to provide background on each sheet to be completed and some relevant notes on items to consider when preparing data for the budget. Any changes effected on the template will be explained in the guidelines below:
F8: Changes effected on the template
F9: Important general notes to consider
F10: Admin and Objectives/Activities 2 to 15 contain the expenditure part of the Statement of Financial Performance as well as the Performance Indicators relating to each objective. Cells Q11-Q25 on all these Objectives/Activities contain a drop down to decide whether the performance indicators should be included in the Pub Table or not. Cells F45 - F97 contain a detailed goods and services list. The "please specify" rows have been removed from the expenditure sheets. Instead there is a list of goods and services items the entity can make use of to capture their expenditure. In the event that the entity is of the view that the provided items do not cater fully to their expenditure type, they should contact the technical assistant for further guidance".
F11: Please note there's conditional formatting to monitor the completion of the outer year. If the outer year is not fully completed the total will be highlighted in Orange. The compiler is advised to fully complete the outer year.
F13: Sheets: Revenue, Objectives, Cash Flow, Financial Position and infrastructure are prepopulated with data submitted in the previous budget process.
F15: The Hide and Unhide Rows buttons are to be used to hide unused rows or unhide rows.
F17: The Do's and Dont's
F19: ONLY the darker blue-shaded areas are to be completed.
F20: All the white areas are FORMULA-DRIVEN and should NEVER be overwritten.
F21: The light blue areas are of DROP DOWN LISTS and should be used to select the relevant items from the list. Entities should REFRAIN from copying data elsewhere and pasting it here.
F22: Column G in Financial Position, Cash Flow and Revenue sheets contain numbers that are of hyperlinks that navigate one to the definitions sheet for explanation of the specific item.
F24: Information to understand about logistics of the template
F25: All sheets should contain information from the audited history years, the budget information for the current year and the budget projections for the MTEF years.
F26: The first year of history numbers that are pre-populated (e.g. for Revenue and Financial Position etc.) will be locked and no changes will be allowed unless there has been restatement of numbers.
F27: The current year data (2023/24) and MTEF years' data may be revised where applicable and the outer year should be completed with data i.e. 2026/27.
F29: Analysis issues possible for queries if not attended to
F31: PFMA schedule 3A entities are NOT allowed to budget for deficit unless a prior approval has been granted to show deficits. This will be queried if approval was not granted.
F32: Accumulated surplus/deficit line in the current year should reflect the increment or depletion of the balance by the surplus or deficit made by the entity in the Income Statement.
F33: The Cash and cash equivalents balance in the financial position should also reflect the movements of increases or decreases in the cash and cash equivalents shown on the Cash Flow Statement.
F34: Projections of interest revenue and interest expenses should be in line with the trends shown on projections for Investments/Cash and cash equivalents and Borrowings respectively.
F35: All highlighted trends on the TrendsAnalysis sheet should be explained in column O of the same sheet, else a query will be raised.
F36: All highlighted trends on the CashFlowDiff sheet should be explained in column O of the same sheet, else a query will be raised.
F37: Chronological order of sheets on the template
F39: The Blue Tabs - reference sheets
F40: Information sheet
F42: The purpose of this sheet is for the compiler to provide National Treasury with their contact details and to verify that the entity name is correct. The contact details of compilers are used for ease of reference when there are queries in the database. Also contained on this sheet are the contact details of the Treasury's Budget Examiner who should be contacted with regards to budget allocation issues and the Technical Assistant who should be contacted with regards to complications on the template.
F44: Technical Guidelines
F46: The purpose of this sheet is to assist the data compiler with the background of each sheet to be completed and to provide some relevant notes on things to consider in preparing data for the template. This sheet should be read carefully for ease of completion of the template.
F48: Economic Definitions
F50: This sheet contains all definitions of the economic classification found on the template. The definitions are hyperlinked from the sheets being completed. These definitions assist in determining how to correctly classify each financial item .
F52: The Purple Tabs - financial data sheets
F54: Note that the Statement of Financial Performance is broken down into different sheets. The sheets from Admin to sheet 15 are what is called objectives of the entity and this is where the expenses part of the Statement of Financial Performance sheet is reflected. Performance Indicators tables are also included at the top of each sheet. Details of the split are detailed below:
F56: Revenue
F58: The Revenue sheet is the normal income part of the Statement of financial perfomance and has been separated from the expenditure part. Note the checks at the bottom of the sheet that check the surplus/deficit line of what the total revenue less the total expenditure will be against what is in the Annual Report. The blue shaded areas are still the areas to be completed and not the white ones.
F60: Admin
F61: Admin sheet is what is also called objective 1 of the entity. This sheet should be used to capture only the information relating to the Administration Objective of the entity. The Administration objective should include the following: Entity Management which includes the salary, allowances and other support costs of the Board and the CEO and the management of the CEO’s office and the Board. Corporate Services that include all costs related to staff in the Human Resources, Legal Services, Communications, Information Technology and Other support services (based on the entity’s decision). Finance Administration which are all costs related to staff in Finance including the CFO and the management of the Office of the Chief Financial Officer. Internal Audit recognising that the reporting channel for the Head of Internal Audit is not through the CFO but directly to the CEO. Office Accommodation which includes activities and costs relating to the provision of office accommodation functions for the entity. Where office accommodation functions relating to other specific objectives of the entity can be identified, they should be assigned to the relevant objective. Residential accommodation that includes activities and costs relating to the provision of housing to employees of the entity. (Note: This does not include the residential benefits of the Accounting Authority). Source: Guidelines on Budget Programmes (National Treasury. 2010.) Content has been amended to suit public entities
F63: The first table to complete on this sheet is the Performance Indicators table. The performance indicators to be completed on this table are only those that relate to the Administration Objective of the entity. The entity should select whether they would like the indicators to be included in the Pub Table or not. The second table that follows is the detail of the expenditure that relates to the Admin objective broken down into economic classification. The entity should then reflect all expenses relating to the Admin objective and the total for all other objectives should balance to the total expenditure of the objective.
F64: New performance indicators to the APPs and changes to old performance indicators must be communicated with the budget examiners before they are included for the purposes of this template.
F65: Objectives 2, 3, 4 .... 15
F66: Objective Sheets from sheet 2 to 15 are exactly the same as the Admin sheet. These should contain the objectives/activities of the entity on rows 37 of each objective, followed by the Performance Indicators. Relevant balances should be made in each i.e row 142.
F68: Cash Flow
F69: The Cash Flow Sheet reflects the Direct Method of the cash flow. However, this method is more detailed than as shown on the Annual Report. The sheet will be prepopulated with available data and the entity should provide a breakdown of its operating cash flow activities and should balance to the numbers shown on the Annual Report by checking against the balances on row 11. The entity is required to provide this detail fully.
F71: Financial Position
F72: This sheet reflects the assets, liabilities and equity of the entity and the information should balance to the Annual Report in the historical numbers. The checks on row 108-109 should be used to ensure the balance.
F74: Related Party Revenue
F75: This sheet is to be used to reflect all related party revenue consisting of receipts from sales of goods and services EXCEPT transfer receipts from government institutions. This means that the entity must be doing business with the government institution and receiving payment for such goods and/or services. Transactions with municipalities have been excluded from this sheet because Local Government is not yet included in the government consolidated account. The compiler should use the drop down list to select the relevant categories in this sheet and should refrain from copying the data elsewhere and pasting it on the sheet.
F76: Please note that the Related Party Revenue sheet is meant to source cash figures. The reported figures should therefore correspond to the Sales by Market Establishment line on the Cash Flow sheet. If for example an entity shows a total of R500 000 for sales by market establishment on the cash flow sheet, the question that should be answered in order to complete this sheet is, how much of the R500 000 is received from other government units (except local government).
F77: On column H, the entity is required to indicate the exact transaction that took place resulting into the particular related party revenue. This should be done by selecting a relevant item from the drop down list provided. The question to ask here would be, what exactly did the entity sell to the other government unit that resulted in the receipt of this revenue? eg computer services.
F79: Personnel
F80: The personnel sheet should be used to record all costs pertaining to employees of an entity. The guidelines for estimating this sheet are in the main budget guideline. The entity is urged to read through the main guideline as it sets out what the overall budget seeks to address and all the main issues to be considered when compiling budgets over the MTEF. For expenditure on compensation, the total should add up to the total compensation on the ENE Summary. Finance officials together with HR officials should work together to complete this sheet. All blue shaded columns should be completed and the light blue drop down lists should be used to select the relevant items required.
F82: DEFINITIONS
F83: Approved Establishment refers to the number of employment positions approved by the Entity's Executive Authority.
F84: Funded Establishment refers to the number of employment positions for which provision is made in the budget.
F85: Permanent refers to employees with work contracts of unlimited duration.
F86: Temporary/Contract refers to employees who are employed for a fixed period of time (e.g. 6 months, 2 years, etc.)
F87: Guaranteed Package refers to the total of fixed and regular income/benefit items and employer contributions (if any) to Employee Benefit Funds (Retirement, Medical and Group Life). (i.e., Fixed Pay)
F88: Performance Bonus refers to the additional compensation paid to an employee for performance that has exceeded expectations. This is typically awarded after a performance appraisal and analysis of projects completed by the employee over a specific period of time. (i.e., Variable Pay)
F89: Other (components of remuneration) refers to the Total Cost to Company less Guaranteed Package less Performance Bonus. E.g. overtime payments (i.e., Variable Pay)
F90: STEPS TO BE FOLLOWED
F91: Column F (Category) - Select the relevant option (whether permanent or temporary/contract - as per definitions above) for a certain group of employees belonging to the salary level in Column G.
F92: Column G (Salary Level) - Select the relevant salary level starting with the lowest. DO NOT ADD OR DELETE ANY INFORMATION IN THIS COLUMN.
F93: Column I (Occupation) - Select the occupation which best describes the officials in the salary level that you have selected. The intention is to see the type of skills that the organisation has and not necessarily the functional job titles of individual employees. If none is relevant, then specify the relevant occupation by typing it in.
F94: Column J (Components of Remuneration) - Select the relevant component of remuneration, starting with the Guaranteed Package followed by the Performance Bonus and then Other (as per definitions above). DO NOT ADD OR DELETE ANY INFORMATION IN THIS COLUMN.
F95: Column K (Number of posts filled on funded establishment) - Include only the number of posts that were filled and funded on the approved establishment.
F96: Column L (Expenditure on posts filled on funded establishment) - Include the expenditure on the above-mentioned posts.
F97: Column M (Unit costs) - Unit costs of the above-mentioned posts. This column is formula driven.
F98: Column N (Number of posts on approved establishment) – This includes both filled and vacant posts and may or may not be funded. This is as approved by the Entity’s Executive Authority.
F99: Column O (Number of funded posts (establishment) – This is a projection from April 2023 to end of March 2024 and includes both filled and vacant posts which are funded.
F100: Column P (Number of posts filled on funded establishment) - This is a projection of posts that will be filled by the end of March 2024 on the funded establishment.
F101: Column Q (Expenditure on posts filled on funded establishment) - Expenditure on the above-mentioned posts.
F102: Column R (Unit costs) - Unit costs of the above-mentioned posts. This column is formula driven.
F103: Columns S to AA - Projections over the MTEF.
F105: Check line:
F106: All figures must be rounded to the nearest thousand and there should be no decimals. Ensure that the CHECKS row show a dash for each of the financial years. If not, look for errors in the captured data - there may be decimals in the figures or some other error.
F108: Expend Summary
F109: The Expenditure summary sheet is formula driven and contains all expenditures from all 15 objectives that the entity would have completed. This is where the entity can verify if its budget is allocated appropriately in the different objectives to sum the total budget allocated and also to check the status of its expenditure in total. All the red checks should balance and where they don't, reference should be made back to the individual objectives to check where the problem could be arising from.
F111: ENE Summary
F112: This sheet summarises all inputs from different sheets in preparation for publication. The first table is where the different objectives are summarised and the check on row 26 checks that the total objectives equals the total expenditure on row 51. The second table is the Statement of Financial Performance having combined the inputs in the Revenue sheet and those in the 15 objectives to complete the statement. The next two tables are of the summary of Cash flow statement and the Financial Position statement as have been completed on their respective sheets. The final table is that which shows the financial performance of the entity by means of ratios. This indicates well how the entity is performing over the years.
F114: Perform Info Pub
F116: The Performance Information Pub sheet is formula-driven and summarises all the performance indicators reflected on the different objectives. This sheet will only reflect those indicators that the entity chose to include when completing columns Q of each objective. This is usually the table that gets published on the ENE publication and reflects the final indicators of the entity.
F118: Personnel Pub
F119: This sheet is formula-driven and summarises the personnel information that is included in the Personnel sheet for publication.
F121: Personnel Trends
F122: Personnel trends with percentage increases and decreases above 10% for headcounts and above 8% increases and decreases for Unit costs must be explained in the trends explaination column (Column O) of the same sheet.
F124: Checks
F125: This sheet should be visited once all has been completed to check and verify that all checks built on the template have been balanced. It highlights any area where a check should have been balanced in a specific sheet and in a case where a check is not balanced, the compiler needs to re-visit the relevant sheet and make corrections to clear the errors. Should an entity submit the template with any of the checks unbalanced, a query will be raised. The entity is urged to attend to all checks in the template and ensure that there are no checks and all relevant sheets are balancing.
F126: Table in row 49 to 55 checks against incompleteness of the outer year. The compiler needs to re-visit the relevant sheets and make corrections to clear the checks where applicable.
F128: The Red Tabs - formula-driven sheets for analysis
F130: Trends Analysis
F131: Please note this sheet contains ONLY growth trends of the cash flow statement. The entity must pay attention on the highlighted percentages and provide explanations in column O. There is a legend that explains the different colours that will be highlighted once a certain concerning trend is reflected. A trend will be concerning if, for an example, a certain goods and services item is increasing or decreasing at a rate different from the average. The entities are urged to peruse this sheet carefully to monitor the trends in their budget submissions.
F133: Cash flow differences
F134: The sheet reflects differences between the figures in the current budget process and the ones in the previous year's budget process. There is a legend that explains the different colours that will be highlighted once a certain concerning trend is reflected. The reasons for changes should be provided in column O.
F136: The Green Tabs - additional financial information on Infrastructure and ODA
F138: Infrastructure
F139: This sheet is to be completed only by entities that are involved in infrastructure projects. The project name, description, stage, cost and all other required information should be provided to ensure completeness. The entity should select the type of project in the options provided in cell I2 to cell I4. The sheet is prepopulated with last years numbers.
F141: When done completing the budget template
F143: Go to the Sign-Off sheet.
F144: Click "create pdf sign off" button in cell E9, print out the sign off page, sign on the signature space, scan and email the document along with the budget planning baseline tool .
D335: Budget approved by the board.

Sheet Economic Definitions
F3: Note | H3: ITEM | I3: DEFINITIONS | J3: EXAMPLES
F4: 1 | H4: Tax receipts | I4: A tax receipt is defined as compulsory, unrequited revenue collected by an entity. Taxes are compulsory because the other party is required by statutory provision to pay taxes in certain circumstances and under certain conditions. Taxes are unrequited in the sense that government does not provide anything directly in return to the party making the tax payment. Not all compulsory, unrequited receipts are recorded as taxes. Excluded are; Fines, penalties and forfeits_ also compulsory, unrequited receipts, but are recorded separately from taxes. Fines, penalties and forfeits are distinguished from taxes by that they are as a result of a volation of a law or administrative rules, while taxes are an implementation of a law. Transfers received_ also unrequited receipts by government but not considered taxes. Taxes are distinguished from transfers received because taxes are compulsory and transfers received are voluntary. [Guidelines for implementing the New Economic Reporting Format] Social (security) contributions_ payments earmarked for unfunded social security schemes, e.g. UIF, that provide benefits other than retirement benefits. These are recorded separately from taxes. | J4: *Casino taxes *Motorvehicle licences tax *Liquor licences tax *Horse racing taxes
F6: 2 | H6: Sales of goods and services: non capital assets | I6: The category consists of all sales by public entities provided that the entity has produced the good or service. It is important to note that sales of capital assets are never included under this category, but under sales of capital assets. Thus, sales of capital assets are excluded from this category even if they have been produced by a public entity. Revenue from ownership of building and fixed structures - rentals - is included in this category. This is because revenue from ownership of buildings implies the provision of a service in the form of maintenance and repair. In contrast, revenue from ownership of land is more passive and is therefore not considered a sale. To note; Revenue from ownership of buildings must be distinguished from revenue from ownership of land and sub-soil assets; the latter is classified as rent of land, which is a separate revenue category. | J6: *Sale of goods and services produced by an entity *Sales: Scrap, Waste, Other goods
F8: 3 | H8: Sale of goods and services produced by an entity | I8: This category consists of sales by entities, provided that the entity produced the goods or services. | J8: *Administrative fees *Sales by market establishments *Other sales
F10: 4 | H10: Administrative fees | I10: This item consists of revenue collected for sales of regulatory or administrative services, and is sometimes referred to as license fees. In this category, government must exercise a regulatory or administrative function. For example, it may verify the competence of a licence holder. Classification provided for under this category includes licence or permits, registration fees and inspection fees (e.g. brands, and travel documents). Note: Regarding license fees, the government should be providing a service to the remitter of this fee, e.g. the use of government-owned land by hunters; otherwise the fee is classified as a tax on goods and services | J10: *Licences/Permits Fees *Registration *Request for information *Inspection fees
F12: 5 | H12: Sales by market establishments | I12: When a public entity sells goods or services at market related prices the transactions should be recorded here. Examples are rent from buildings and equipment charged at the prevailing market prices. Example; rental of produced assets are treated as sales of services and diamond sales are treated as sales of goods. Market prices are prices economically significant enough to influence supply and demand of a good or service. The easiest benchmark is the prevailing price in the private market. | J12: *RENTAL ON BUILDINGS *Rental machinery and equipment *Ticket sales *Research services *Advertising services
F14: 6 | H14: Other sales | I14: This item includes money received from the sale of all other goods and services produces or partially produced by an entity. To be part of this category, the fee charges must be below prices prevailing in the private market. User charges at below market prices are included for example hospital fees, as well as park and museum fees. Examples are rentals of buildings and machinery, as well as hospital, park and museum fees. Sales of seeds and livestock produced by public entities are considered other sales. Sales of items purchased from another economic unit and then resold should also be included under this item; an example would be a postcard sold by a museum. | J14: SERVICES RENDERED: *Health services *Exam certificates * Police service SALES OF GOODS: *Tender documents *Pharmaceutical *Water
F16: 7 | H16: Sales: Scrap, Waste, Other goods | I16: This item includes sales of all items that are not considered capital assets and not produced by entity e.g. used arms sold by the Department of Defence. | J16: *Sales: Scrap and waste *Selling arms and arms support systems
F18: 8 | H18: Transfers Received | I18: This item consists of all unrequited receipts voluntarily given by other parties. Thus, an entry should be made under this item when a public entity does not give a service or good directly in return for the transfer from the other party and the transfer is voluntary. | J18: Transfers Received This item consists of all unrequited receipts voluntarily given by other parties. Thus, an entry should be made under this item when a public entity does not give a service or good directly in return for the transfer from the other party and the transfer is voluntary. Included are; Grants (Not identified as grants in our format) which are voluntary transfers received by a government unit from either another government unit, foreign governments or an international organisation, Social contributions_ payments earmarked for social security agencies and Other transfers (not identified as other transfers in our format)_ gifts and donations from sources other than government units and international organisations. Excluded are; All payments made by government departments or other government units for services provided by the entity. These are sales of goods and services. E.g. if DTI commissions CSIR for some research project and pay for this, this should be rightly classified as Sales.
F20: 9 | H20: Other Government Units | I20: Money received from other governmental units either as a current or capital transfer. | J20: (Not identified as grants in our format) which are voluntary transfers received by a government unit from either another government unit, foreign governments or an international organisation.
F22: 10 | H22: National government units | I22: Money received from national departments either as a current or capital transfer. | J22: Voluntary transfers received by a government unit from either another government unit, foreign governments or an international organisation.
F24: 11 | H24: Departmental Transfers | J24: Voluntary transfers received by a government unit from either another government unit, foreign governments or an international organisation.
F26: 12 | H26: Other National Departments | J26: Voluntary transfers received by a government unit from either another government unit, foreign governments or an international organisation.
F28: 13 | H28: Departmental agencies and accounts | I28: Money received from departmental agencies either as a current or capital transfer.
F30: 14 | H30: Provincial governments | I30: Money received from provincial government as a current or capital transfer.
F32: 15 | H32: Local Governments | I32: Money received from local governments (municipalities or municipal entities) either as a current or capital transfer.
F34: 16 | H34: Higher education institutions | I34: Current and capital transfers received from Higher Education Institutions, deemed to be established or declared as a Technicon or University under the Higher Education Act of 1997. | J34: *(Not identified as other transfers in our format)_ gifts and donations from sources other than government units and international organisations.
F36: 17 | H36: Foreign government and international organisations | I36: Capital and current transfers received from foreign governments. | J36: *(Not identified as grants in our format) which are voluntary transfers received by a government unit from either another government unit, foreign governments or an international organisation.
F38: 18 | H38: Local non-government donors | I38: Donations received from public corporations or private enterprises. | J38: *(Not identified as other transfers in our format)_gifts and donations from sources other than government units and international organisations.
F40: 19 | H40: Fines, penalties and forfeits | I40: This item consists of all compulsory receipts imposed by a court or quasi-judicial body. Out-of-court settlements are also included in this category. As with taxes, this item consists of unrequited, compulsory transactions. Thus, the recipient public entity does not provide anything in return for these receipts. | J40: *Consumer courts fines, courts fines, traffic fines, criminal offence plea&snt fine
F42: 20 | H42: Interest and rent on land | I42: This item consist of the income associated with ownership of interest-bearing financial instruments, such as bank deposits, loans extended to others, and bills and bonds issued by others. A dividend is a sum of money paid regularly (typically annually) by a company to its shareholders out of its profits (or reserves). Rent on land consists of economic rent, interest on capital invested for improvement of land, and reward for the risk taken by the landlord in investing his or her capital. | J42: *Land, Prospecting fees, retension fees, royalties, surface rental
F44: 21 | H44: Interest | I44: This item consist of the income associated with ownership of interest-bearing financial instruments, such as bank deposits, loans extended to others, and bills and bonds issued by others. | J44: *Bank deposits, loans extended to others, and bills and bonds issued by others.
F46: 22 | H46: Dividends | I46: A dividend is a distribution of money or property paid by a corporation out of the corporation's profits to shareholders. Government units are not payers of dividends as a rule. Exceptions may be public corporations. | J46: *Shares and other equity
F48: 23 | H48: Rent on land | I48: The item consists of the money received due to ownership of land. This item also includes all revenue due to ownership of sub-soil assets and other commercially exploitable naturally occurring assets such as virgin forests, game and fisheries. | J48: *Land, Prospecting fees, retension fees, royalties, surface rental
F50: 24 | H50: Unclassified revenue | I50: All revenue items that could not be classified above. Please make sure that the items are clearly specified, i.e. we will not accept "other" as a specification. This is so that we can then classify the revenue in one of the classes given.. Out-of-court settlements are also included in this category. As with taxes, this item consists of unrequited, compulsory transactions. Thus, the recipient public entity does not provide anything in return for these receipts. | J50: *All other revenue items that could not be classified above.
F52: 25 | H52: Tax benefit | I52: A tax benefit is an allowable deduction on a tax return intended to reduce a taxpayer's burden while typically supporting certain types of commercial activity. A tax benefit allows some type of adjustment benefiting a taxpayer's tax liability. | J52: *Tax deductions, credits, and exclusions are benefits that reduce the amount taxpayers owe annually to federal and state governments. Tax shelters are another form of tax benefit that can help to lower taxes through special investments.
F54: 26 | H54: Outside Shareholder's interest | I54: Outside shareholders have no links with the company but have a financial interest in its operating performance
F56: 27 | H56: Compensation of employees | I56: Compensation of employees includes remuneration in cash, including social contributions by employers. Specifically included are basic wages and salaries, overtime, remuneration for nightshift, cost of living allowances, transport, house allowances, bonuses.
F58: 28 | H58: Salaries and wages | I58: This item includes payments to employees, except social contributions. Social contributions are recorded separately. The item, salaries and wages, includes:Salaries or wages payable at regular weekly, monthly or other intervals. Remuneration to staff members employed on a contractual basis is included, provided that these staff members are paid at regular intervals and that they are listed on the government payroll. This also includes payments by results and piecework payments; enhanced payments or special allowances for working overtime, at nights, at weekends or other unusual hours; allowances for working away from home or in disagreeable or hazardous circumstances; and expatriation allowances for working abroad; Supplementary allowances payable regularly, such as housing allowances or allowances to cover the costs of travel to and from work. Salaries or wages payable to employees away from work for short periods, for example, on holiday; Ad hoc bonuses or other exceptional payments made, for example, under incentive schemes. Salaries and wages include the values of any social contributions, income taxes, etc., payable by the employee. This applies even if they are compulsory or withheld by the employer for administrative convenience or other reasons and paid directly to social insurance funds, tax authorities, etc., on behalf of the employee. For example, employees’ contributions to pension funds and medical aid are included in salaries and wages. The item, salaries and wages, does not include: Reimbursements of costs incurred by employees on tools, equipment, uniforms and other items that are needed to enable them to carry out their work. For example, uniforms provided to police officers are not compensation of employees, but use of goods and services. Uniform allowances are classified as use of goods and services if the employee is required to use the funds to purchase a uniform that will mainly be used at work; Relocation costs reimbursement _costs incurred by employees when they take up new jobs or are required by their employers to move their homes, for example, travel and moving expense; Payments for travel and subsistence while on government duty away from duty station. Per Diem and out-of-town allowances fall under this category; Purchases of services provided by people who are not government employees, for example, consultants, architects and occasional workers. The above four items should be classified under use of goods and services Social benefits to employees. These can be in the form of allowances made for accidental injury, severance and incapacity pay. Allowances to employees’ dependants are also considered social benefits. In most cases, payments falling under this category are made from a social insurance fund. Payments to employees or former employees that are not remuneration for work The above two items should be classified under transfers to households, social benefits This item includes payments to employees, except social contributions. Social contributions are recorded separately. The item, salaries and wages, includes: Salaries or wages payable at regular weekly, monthly or other intervals. Remuneration to staff members employed on a contractual basis is included, provided that these staff members are paid at regular intervals and that they are listed on the government payroll. This also includes payments by results and piecework payments; enhanced payments or special allowances for working overtime, at nights, at weekends or other unusual hours; allowances for working away from home or in disagreeable or hazardous circumstances; and expatriation allowances for working abroad; Supplementary allowances payable regularly, such as housing allowances or allowances to cover the costs of travel to and from work. Salaries or wages payable to employees away from work for short periods, for example, on holiday; Ad hoc bonuses or other exceptional payments made, for example, under incentive schemes. Salaries and wages include the values of any social contributions, income taxes, etc., payable by the employee. This applies even if they are compulsory or withheld by the employer for administrative convenience or other reasons and paid directly to social insurance funds, tax authorities, etc., on behalf of the employee. For example, employees’ contributions to pension funds and medical aid are included in salaries and wages. The item, salaries and wages, does not include: Reimbursements of costs incurred by employees on tools, equipment, uniforms and other items that are needed to enable them to carry out their work. For example, uniforms provided to police officers are not compensation of employees, but use of goods and services. Uniform allowances are classified as use of goods and services if the employee is required to use the funds to purchase a uniform that will mainly be used at work; Relocation costs reimbursement _costs incurred by employees when they take up new jobs or are required by their employers to move their homes, for example, travel and moving expense; Payments for travel and subsistence while on government duty away from duty station. Per Diem and out-of-town allowances fall under this category; Purchases of services provided by people who are not government employees, for example, consultants, architects and occasional workers. The above four items should be classified under use of goods and services Social benefits to employees. These can be in the form of allowances made for accidental injury, severance and incapacity pay. Allowances to employees’ dependants are also considered social benefits. In most cases, payments falling under this category are made from a social insurance fund. Payments to employees or former employees that are not remuneration for work The above two items should be classified under transfers to households, social benefits
F60: 29 | H60: Social contributions | I60: This item includes the government’s contribution (but not the employees’ contribution) to social insurance schemes paid on behalf of employees.
F62: 30 | H62: Administrative fees: Payments | I62: An expense incurred in controlling and directing an organization, but not directly identifiable with financing, marketing, or production operations. | J62: *Accredition fees *Appeals fees *Bank charges and card fees *Copy right fees *Firearm handling fees *Licence agency fees *Management/ Handling fees *Personnel agency fees *Registration fees *System access & information fees *Travel agency fees
F64: 31 | H64: Advertising | I64: Costs of the specific formulation and publication of notices to attract prospective service providers and suppliers, promote government activities and/or projects or for filling of vacant positions. Advertising media includes television, radio, movies, magazines, newspapers, video games, internet, billboards. | J64: *Advertising: Auctions *Advertising: Bursaries (Non-employees) *Advertising: Marketing *Advertising: Promotional items *Advertising: Public notices *Advertising: Recruitment *Advertising: Tenders
F66: 32 | H66: Minor assets | I66: This asset category includes machinery and equipment, furniture and computer hardware costing less than R5 000/capitalisation threshold. These assets can be used continuously or repeatedly in production for at least one year. They are treated as current payments and not capitalised.
F68: 33 | H68: Audit cost: external | I68: This item refers to external/ regulatory audits, conducted by the Auditor-General or Private Auditing companies in SA, whereby the audit provides an independent opinion on published information. This is different from internal auditors who do not attest to financial reports but focus mainly on the internal controls of the organization. | J68: *Regularity *External computer audits *External environmental audits *External forensic investigation *External performance audit
F70: 34 | H70: Bursaries (Employees) | I70: Bursaries include payments made to provide direct support to employees for studying at universities or other tertiary institutions, where all the conditions and terms have been complied with in terms of the contract with the bursary holder. Direct support could include fees, text books and other aids and accommodation at the university residence.
F72: 35 | H72: Catering: Internal activities | I72: Expenditure incurred on individuals employed or contracted to the public entity or individuals outside the employ of the public entity, in connection with the activities of a entity, or division within the entity, that directly relates to the achievement of its objectives. | J72: *Catering for conferences, bosberade, workshops, indabas, courses, forums, hearings and meetings held with the intention to discuss the entity’s initiatives; *Catering for a function for the launching/roll-out of an product of the department or division within a department *Catering for interviews or training sessions; *Dinner and drinks supplied at year-end functions; *Eatery provided for members of standing boards, other government bodies and official commissions or committees of enquiry.
F74: 36 | H74: Communication | I74: Payments for the usage of telephones, faxes, telegraphs and telex for communication purposes, including costs for teleconferences. Communication by telephones and faxes includes the sending of messages electronically i.e. the sending of a message, image or document via a fax machine or a telephone or cellular phone. Telex is a communications system using teleprinters that communicate via telephone lines. Teleconference is a meeting via telecommunications equipment: a meeting held among people in different places by means of telecommunications equipment. Telecommunication equipment includes phones, faxes, telegraphs and telex excluding cellular phones refer to "Communication: Cell contract (Subscription and calls). Rental of equipment defined as operating or finance leases should be allocated under the item provided for leases. | J74: *Communication: Airtime and data *Communication: Postage/stamps/franking machines *Communication: Radio and tv transmissions *Communication: Rent private bag and postal box *Communication: Satellite signals *Communication: Telephone, fax, telegraph and telex *Communication: Telephone installation
F76: 37 | H76: Computer services | I76: Expenditure for the utilisation of information technology, information systems and related services provided by an external service provider. | J76: *SITA computer services *External computer services: Data lines *External computer services: Information services *External computer services: Internet charge *External computer services: Mainframe time *External computer services: Software licences *External computer services: Specialised computer services *External computer services: System adviser *External computer services: System development *External computer services: Website design and development
F78: 38 | H78: Consultants: Business and advisory services | I78: Consulting services refer to specialist services and skills provided that are required for the achievement of a specific objective, with the aim of providing expert and professional advise on a time and material basis. It is unnecessary to maintain these skills in-house, since they are required on a once-off or temporary basis. Therefore a consultant is a professional person appointed by the department to provide technical and specialist advise or to assist with he design and implementation of specific projects/programs. The legal status of this person can be an individual, a partnership or a corporation. The fact that a consultant is defined as a professional person implies that the consultant is professionally qualified. The provision of advise or service is in line with a contractual arrangement. Remuneration is usually based on an hourly fee or a fixed fee for a product/deliverable. | J78: *Consultants: Business and advisory services: Accountants and auditors *Consultants: Business and advisory services: Audit committee (non-officials) *Consultants: Business and advisory services: Board members *Consultants: Business and advisory services: Commissions and committees of enquiry *Consultants: Business and advisory services: Communications strategy *Consultants: Business and advisory services: Business management *Consultants: Business and advisory services: Human resource *Consultants: Business and advisory services: Occupational safety and health *Consultants: Business and advisory services: Organisational *Consultants: Business and advisory services: Project management *Consultants: Business and advisory services: Quality control inspectorate *Consultants: Business and advisory services: Qualification verification *Consultants: Business and advisory services: Research and advisory services *Consultants: Business and advisory services: Translations and transcriptions *Consultants: Business and advisory services: Valuer
F80: 39 | H80: Infrastructure and planning services | I80: This group of professional service providers refers to qualified infrastructure and planning professional services. These are specialised services which require expert and professional advice on a time and material basis for the achievement of specific objectives. It is unnecessary to maintain these skills in-house, since they are required on a once-off or temporary basis. This professional person(s) is appointed by the department to provide technical and expert advice or to assist with the design and implementation of specific projects/programmes. The legal status of this person can be an individual, a partnership or a corporation. The provision of advice or service should be in line with a contractual arrangement. | J80: *Infrastructure and planning services: Engineering *Infrastructure and planning services: Agriculture services *Infrastructure and planning services: Architectural services *Infrastructure and planning services: Ecological services *Infrastructure and planning services: Geodetic and control survey services *Infrastructure and planning services: Geoinformatic services *Infrastructure and planning services: Geologist services *Infrastructure and planning services: Landscape designer services *Infrastructure and planning services: Land and quantity surveyors services *Infrastructure and planning services: Town planner services *Maintenance and repairs: buildings: consultants *Maintenance and repairs: other fixed structures: consultants
F82: 40 | H82: Maintenance and repairs: Buildings: Consultants | I82: The costs incurred to bring an asset back to an earlier condition or to keep the asset operating at its present condition (as opposed to improving the asset). For example, if a building is damaged, the cost to repair the damage is immediately debited to repairs and maintenance expense. | J82: *Maintenance and repairs: Buildings: Consultants: Architectural services *Maintenance and repairs: Buildings: Consultants: Engineering civil services *Maintenance and repairs: Buildings: Consultants: Engineering electrical services *Maintenance and repairs: Buildings: Consultants: Engineering mechanical services *Maintenance and repairs: Buildings: Consultants: Engineers structural services *Maintenance and repairs: Buildings: Consultants: Health and safety officers *Maintenance and repairs: Buildings: Consultants: Land and quantity surveyors services *Maintenance and repairs: Buildings: Consultants: Engineering structural services
F84: 41 | H84: Maintenance and repairs: Other fixed structures: Consultants | I84: The costs incurred to bring an asset back to an earlier condition or to keep the asset operating at its present condition (as opposed to improving the asset). For example, if a company truck is damaged, the cost to repair the damage is immediately debited to repairs and maintenance expense. | J84: *Maintenance and repairs: Other fixed structures: Consultants: Architectural services *Maintenance and repairs: Other fixed structures: Consultants: Engineers structural services *Maintenance and repairs: Other fixed structures: Consultants: Engineering civil services *Maintenance and repairs: Other fixed structures: Consultants: Engineering electrical services *Maintenance and repairs: Other fixed structures: Consultants: Engineering mechanical services *Maintenance and repairs: Other fixed structures: Consultants: Health and safety *Maintenance and repairs: Other fixed structures: Consultants: Land and quantity surveyors services *Maintenance and repairs: Other fixed structures: Consultants: Engineering structural services
F86: 42 | H86: Laboratory services | I86: Payments specifically related to laboratory services. This item include the cost associated with making use of professionals or professional services for laboratory services such as scientific experiments, research, manufacturing of drugs or chemicals, observation and testing. | J86: *Laboratory services: Agriculture *Laboratory services: Medical laboratory services *Laboratory services: Roads laboratory services *Laboratory services: Water laboratory services
F88: 43 | H88: Legal services | I88: Payments for any legal services to either private firms or state attorneys. This is for the service cost of attorneys. | J88: Legal cost: Private firm: Legal advice services Legal cost: Private firm: Messenger of court services Legal cost state attorney: Advice services Legal cost state attorney: Conveyancing services Legal cost state attorney: Messenger of court services
F90: 44 | H90: Science and technology services | I90: Scientific and technological services are defined as activities concerned with research and experimental development and contributing to the generation, dissemination and application of scientific and technical knowledge. | J90: *Science and technology services: Special services *Science and technology services: Research and development support services
F92: 45 | H92: Contractors | I92: Contractors are required to provide services that are not the core business of the department. It is normally not cost effective to maintain these skills within the department. Contractors includes costs associated with the use of contracted individuals or businesses on projects or tasks. This does not include amounts payable to contractors in respect of provision of services such as cleaning and security even if a staff element can be identified. Note also that it is common practice that the said contractor provides all the materials required for the project - he/she tenders for the whole project, materials included. | J92: *Contractors: Abbatoir services *Contractors: Aerial photography *Contractors: Artists and performers *Contractors: Auctioneers *Contractors: Audio-visual service *Contractors: Bore waterhole drilling *Contractors: Bottling and packaging *Contractors: Burial services *Contractors: Casual labourers *Maintenance of buildings: Casual labourers *Contractors: Curators *Contractors: Disposal services *Contractors: Editorial services *Contractors: Employee wellness *Contractors: Event promoters *Contractors: Fire fighting services. *Contractors: Forensic investigators *Contractors: Graphic designers *Contractors: Interior decorator *Contractors: Medical services *Contractors: Mint of decoration *Contractors: Photographer *Contractors: Plants, flowers and other decorations *Contractors: Preservation/restoration/dismantling/cleaning services *Contractors: Professional drivers *Contractors: Private firm: legal services *Contractors: Security services *Contractors: Sports and recreation *Contractors: Stage and sound crew *Contractors: Tour guides *Contractors:Tracing agents and debt collectors *Contractors:Transportation/relocation contractor *Contractors: South african social security agency (sassa) payment contractors *Contractors: Maintenance and repairs of other fixed structures *Contractors: Maintenance and repairs of other machinery and equipment *Contractors: Maintenance and repairs of heritage buildings *Contractors: Maintenance and repairs of other heritage fixed structures
F94: 46 | H94: Agency and support/Outsourced services | I94: Agency and support or outsourced services refers to staff appointed through an agency or staff appointed individually on contract or similar binding arrangement. An entity should have the capacity and expertise to carry out certain services, but for some reasons are not utilising their own staff. The services do not form part of Compensation of employees. The reasons might include temporary incapacity or the outsourcing of services to save costs, for example cleaning, security and recruitment. In evaluating the classification of agency/outsourced services it should be established whether the services being procured could have been provided by the entity itself. | J94: Agency and support/Outsourced services: Adjudicators Agency and support/Outsourced services: Administration and support staff Agency and support/Outsourced services: Agricultural services Agency and support/Outsourced services: Biocontrol services Agency and support/Outsourced services: Burial services Agency and support/Outsourced services: Census field staff Agency and support/Outsourced services: Covid cleaners and screeners Agency and support/Outsourced services: Editorial services Agency and support/Outsourced services: Education / General assistants Agency and support/Outsourced services: EPWP workers Agency and support/Outsourced services: Facilitators Agency and support/Outsourced services: Financial management Agency and support/Outsourced services: Fire services Agency and support/Outsourced services: Health professional allied Agency and support/Outsourced services: International institute of communications Agency and support/Outsourced services: Inmates recovery fee Agency and support/Outsourced services: Investigation services Agency and support/Outsourced services: Land claim verification Agency and support/Outsourced services: Lectures Agency and support/Outsourced services: Legal services Agency and support/Outsourced services: Medical and chemical waste removal Agency and support/Outsourced services: Medical doctor Agency and support/Outsourced services: Medical services Agency and support/Outsourced services: Nursing staff Agency and support/Outsourced services: Nutritional services Agency and support/Outsourced services: Personnel and labour Agency and support/Outsourced services: Pharmacy professionals Agency and support/Outsourced services: Photographers Agency and support/Outsourced services: Porter services Agency and support/Outsourced services: Postmortem Agency and support/Outsourced services: Researcher Agency and support/Outsourced services: Security services Agency and support/Outsourced services: Social care services Agency and support/Outsourced services: Statisticians Agency and support/Outsourced services: Steam provision Agency and support/Outsourced services: Universities certification Agency and support/Outsourced services: Universities Agency and support/Outsourced services: Veterinary services Agency and support/Outsourced services: Waste services
F96: 47 | H96: Entertainment | I96: This item includes entertainment expenditure incurred by members of the Senior Management Service (SMS) as well as Ministers and his/her office bearers in performance of their duties. | J96: *Luncheon meetings held with colleagues, foreign delegations and/or other individuals in and outside the public sector; *Purchase of dinner during authorised overtime, if no compensation in the form of time off or additional pay is approved, provided that the closing time is later than 20h00.
F98: 48 | H98: Fleet services(Fleet/Services) | I98: Cost relating to operation and maintenance of fleet services including entity owned vehicles, leased or rented vehicles. The lease amount will be classified accordingly under the Lease payments category. This item caters for charges over and above the lease payment (flat rate). | J98: Fleet services: Computer time-license Fleet services: Development fees Fleet services: Tracking (physical cs) Fleet services: Batteries Fleet services: Car valet and washing services Fleet services: Depreciation Fleet services: Depreciation equipment Fleet services: Fuel, oil and grease Fleet services: Kilometres Fleet services: Licence plates Fleet services: Repairs Fleet services: Spares and accessories Fleet services: Toll fees Fleet services: Towing costs Fleet services: Transaction costs Fleet services: Tyres and tubes Maintenance: Fleet services: Operating payments Maintenance: Machinery and equipment: Operating payments Fleet services: Loss sale equipment Fleet services: Loss sale fleet
F100: 49 | H100: Housing | I100: Department of Housing - specific accounts for interfacing accounts. | J100: *Housing: Capital adjustments *Housing: Devolution of debtors *Housing: Devolution of proper *Housing: Rebate R75 *Housing: Subsidy
F102: 50 | H102: Inventory: Clothing material and accessories | I102: The category includes corporate gear, Uniforms and Protective Clothing and Needlework's Accessories | J102: *Inventory: Clothing material and accessories: Corporate gear *Inventory: Clothing material and accessories: Uniform and protective clothing *Inventory: Clothing material and accessories: Needlework accessories
F104: 51 | H104: Inventory: Farming supplies | I104: This item includes farming animal supplements, plastic bags for seedlings, packaging for produce, labels & tags for identification and marking of animals and plants, etc. excluding items specifically identified such as fertilizer, gardening supplies, insecticides, animal fodder and feed, seed and seedlings and irrigation material. | J104: *Inventory: Farming supplies: Farming supplies *Inventory: Farming supplies: Fertilizer *Inventory: Farming supplies: Gardening supplies *Inventory: Farming supplies: Insecticides *Inventory: Farming supplies: Livestock and plant consumption *Inventory: Farming supplies: Livestock food and animal feed *Inventory: Farming supplies: Seeds and seedlings
F106: 52 | H106: Inventory: Food and food supplies | I106: Food and food supplies includes items like baby and special foods, bread and confectionary, eggs and egg products, fruits (fresh and frozen), groceries, meat, poultry and fish and milk and milk products. Limited for use by DOH, DCS, DSD. This category will not be distributed for use by other departments. Similar expenses incurred by other departments will be allocated under Consumable Supplies; Household Supplies; Groceries | J106: *Inventory: Food and food supplies: Baby and special foods *Inventory: Food and food supplies: Bread and baked confectionery *Inventory: Food and food supplies: Eggs and egg products *Inventory: Food and food supplies: Fruit and vegetables *Inventory: Food and food supplies: Groceries *Inventory: Food and food supplies: Meat, poultry, fish
F108: 53 | H108: Inventory: Chemicals, fuel, oil, gas, wood and coal | I108: Items under this category caters for chemicals, fuel, oil, gas, wood and coal | J108: *Inventory: Chemicals, fuel, oil, gas, wood and coal: Chemicals *Inventory: Chemicals, fuel, oil, gas, wood and coal: Fuel, oil and lubricants *Inventory: Chemicals, fuel, oil, gas, wood and coal: Gas *Inventory: Chemicals, fuel, oil, gas, wood and coal: Wood and coal
F110: 54 | H110: Inventory: Learning and teaching supplies material | I110: This category is created for Education Sector, it caters for Media Collections and Learning and Teaching Support Materials purchased by the Department of Education (DoE) for distribution to the schools | J110: *Inventory: Learning and teaching supplies material: Media collections (library material; school library/media/films; school books/magazines) *Inventory: Learning and teaching supplies material: Learning supporting material (school material subjects; school stationery; school textbook/prescribed)
F112: 55 | H112: Inventory: Materials and supplies | I112: Materials and supplies include items such as building materials, hardware, painting materials and workshop accessories, etc. | J112: *Inventory: Materials and supplies: Building and construction material *Inventory: Materials and supplies: Camping material *Inventory: Materials and supplies: Disposable testing material non medical *Inventory: Materials and supplies: Electrical supplies *Inventory: Materials and supplies: Fencing material *Inventory: Materials and supplies: Hardware *Inventory: Materials and supplies: Irrigation material *Inventory: Materials and supplies: Notice boards and signs *Inventory: Materials and supplies: Operational health&safety kit *Inventory: Materials and supplies: road construction and supplies *Inventory: Materials and supplies: road signs *Inventory: Materials and supplies: sport and recreational consumables *Inventory: Materials and supplies: tents, flags and accessories *Inventory: Materials and supplies: workshop materials and supplies *Inventory: Materials and supplies: workshop testing material and supplies
F114: 56 | H114: Inventory: Medical supplies | I114: Medical supplies includes all medical related inventory items. Limited for use DOH AND DOD. This category will not be distributed for use by other departments. Similar expenses incurred by other departments will be allocated under Consumable Supplies: First Aid Kid or Contraceptives | J114: *Inventory: Medical supplies: Artificial aids *Inventory: Medical supplies: Application sets *Inventory: Medical supplies: Bandages and dressing *Inventory: Medical supplies: Blood-product and plasma *Inventory: Medical supplies: Catheters, tubes and urine bag *Inventory: Medical supplies: Contraceptives *Inventory: Medical supplies: Crutches *Inventory: Medical supplies: Dental consumables *Inventory: Medical supplies: Disposable nappies *Inventory: Medical supplies: First aid kit *Inventory: Medical supplies: Gloves, disposable sundries *Inventory: Medical supplies: Heart valves and pacemakers *Inventory: Medical supplies: HIV/aids test kits *Inventory: Medical supplies: Implantable sets *Inventory: Medical supplies: In-vitro diagnostic testing strips *Inventory: Medical supplies: Medical gas *Inventory: Medical supplies: Occupational therapy consumables *Inventory: Medical supplies: Optical items and hearing aids *Inventory: Medical supplies: Orthopaedic artificial limbs *Inventory: Medical supplies: Patient clothing *Inventory: Medical supplies: Radio-isotopes *Inventory: Medical supplies: Renal dialysis *Inventory: Medical supplies: Stoma therapy reqs *Inventory: Medical supplies: Surgical consumables *Inventory: Medical supplies: Surgical, implants prosthesis *Inventory: Medical supplies: Surgical/medical supplies *Inventory: Medical supplies: Sutures, ligature and skin staples *Inventory: Medical supplies: Syringes, needles *Inventory: Medical supplies: Therapeutic requisitions *Inventory: Medical supplies: Vinyl body bag *Inventory: Medical supplies: Wheelchair consumables *Inventory: Medical supplies: X-ray consumables
F116: 57 | H116: Inventory: Medicine | I116: A drug or other preparation used for the treatment or prevention of disease. Limited for use by DOH AND DOD. This category will not be distributed for use by other departments. | J116: *Inventory: Medicine: Animal medicine *Inventory: Medicine: Animal vaccines *Inventory: Medicine: Antiretroviral drugs *Inventory: Medicine: Anti-tuberculosis medicines *Inventory: Medicine: Contraceptives *Inventory: Medicine: Large volume parenterals *Inventory: Medicine:Medicine medical depot *Inventory: Medicine: Other medicine *Inventory: Medicine: Vaccines
F118: 58 | H118: Medsas inventory interface | I118: MEDSAS is a system used for the procurement, and management of pharmaceutical products, including medicines etc. This system is mainly used by the National and Provincial Departments of Health. | J118: *Medsas inventory interface: Miscellaneous variance *Medsas inventory interface: Price variance *Medsas inventory interface: Purchase variance *Medsas inventory interface: Stock issues *Medsas inventory interface: Stock purchase general *Medsas inventory interface: Stock purchase system *Medsas inventory interfaceS: Stores surpluses
F120: 59 | H120: Inventory: Other supplies | I120: Included in this category is Laboratory Chemical and Supplies, Military Stores, Ammunition and Security Supplies and Assets Held for Distribution | J120: *Inventory: Other supplies: Laboratory chemicals and supplies *Inventory: Other supplies: Military stores *Inventory: Other supplies: Assets for distribution *Inventory: Other supplies: Print supplies *Inventory: Other supplies: Household supplies
F122: 60 | H122: Consumables supplies | I122: This category caters for all consumable supplies | J122: *Consumables supplies: Animal food and medical supplies *Consumables supplies: Gifts and awards *Consumables supplies: Saddlery and other tackle *Consumables supplies: Uniform and clothing *Consumables supplies: Medical supplies *Consumables supplies: Household supplies *Maintenance of machinery and equipment: fuel and gas supplies *Consumables supplies: Fuel supplies *Consumables supplies: Materials and supplies *Consumables supplies: Contraceptives *Consumables supplies: Bags and accessories *Consumables supplies: Communication accessories *Consumables supplies: IT consumables *Consumables supplies: Laboratories consumables *Consumables supplies: Medical kit *Consumables supplies: Name tags *Consumables supplies: Occupational health safety kit *Consumables supplies: Photographic consumables *Consumables supplies: Security accessories consumables *Consumables supplies: Tent, flag and accessories *Consumables supplies: Stationery, printing and office supplies
F124: 61 | H124: Consumables: Stationery, printing and office supplies | I124: Included in this item is stationery and office consumables. Also included in this category is Audio Visual Consumables, Government Printers, Mag/News/Journals, Stationery, ART AND Drawings, Media Collections, PRINTER Cartridges, and PRINTING Paper | J124: *Consumables: Stationery, printing and office supplies: Audio visual consumables *Consumables: Stationery, printing and office supplies: Art and drawings *Consumables: Stationery, printing and office supplies: External printers *Consumables: Stationery, printing and office supplies: Magazines/Newspapers/Journals *Consumables: Stationery, printing and office supplies: Media collections *Consumables: Stationery, printing and office supplies: Printing cartridge *Consumables: Stationery, printing and office supplies: Printing paper *Consumables: Stationery, printing and office supplies: Stationery
F126: 62 | H126: Operating leases | I126: Operating leasing is a productive activity that involves renting capital assets for terms less than the expected service lives of the assets. It is a form of production in which the lessor normally lets the use of a capital equipment / asset in exchange for the lease payments. Operating leasing can be identified by the following characteristics: (a) the lessor normally maintains a stock of equipment in good working order which can be hired on demand or at short notice, (b) the equipment may be rented out for varying periods of time, and (c) the lessor is frequently responsible for the maintenance and repair of the equipment as part of the service provided to the lessee. | J126: Operating lease: Buildings Operating lease: Other fixed structures Operating lease: Other machinery and equipment Operating lease: Transport equipment Maintenance: Operating leases machinery
F128: 63 | H128: Rental and hiring | I128: Rental and hiring includes transactions that involves a once-off payment for the temporary use of an item which is owned by an external party. This is not the same as Lease payments as "Lease Payments" refer to series of payments made.
F130: 64 | H130: Property payments | I130: This category provides for all payments related to contractual obligations contributing to the functionality of, for example, building or land. for example, gardening services, cleaning services, municipal services, deeds, electricity compliance certificate, fire protection, etc. municipalities. | J130: *Property payments: Cleaning services *Property payments: Commission on municipal services *Property payments: Contracted maintenance property *Property payments: Deeds *Property payments: Electrical compliance certificate *Property payments: Fire protection *Property payments: First aid *Property payments: Gardening services *Property payments: Gas *Property payments: Laundry services *Property payments: Management fee *Property payments: Pest control/fumigation services *Property payments: Safeguard and security *Property payments: Municipal services (Electricity, Sewerage, Waste/Refuse removal, Water)
F132: 65 | H132: Transport provided as part of internal activities | I132: Expenses associated with transport provided by the entity itself in transporting people during the execution of its mandate. | J132: *Transport for excursions *Transport for public events *Transport: illegal immigrants deportation *Transport: land reform/restitution beneficiaries *Transport of children vagrants *Transport of patients & corps *Transport of scholars
F134: 66 | H134: Travel and subsistence | I134: Travel and subsistence includes all domestic and foreign travel related expenditure paid for employees and non-employees. This item specifically covers expenditure on accommodation cost, food and beverage, incidental cost, and car rental paid for official travelling purposes. The amount could also be paid by the entity directly to the travel agency responsible for making the travel arrangements or the service provider. | J134: *Travel and subsistence: Per diem out of town allowance *Travel and subsistence: Accommodation *Travel and subsistence: Daily allowance *Travel and subsistence: Food and beverage *Travel and subsistence: Incidental cost *Travel and subsistence: Transport *Travel and subsistence: Transport-shuttle services
F136: 67 | H136: Training and development | I136: Training and development provided to employees and non-employees as well as training materials not provided for separately under goods and services. | J136: *Training and development: Employees *Training and development: Material&manuals *Training and development: Non-employees
F138: 68 | H138: Operating payments | I138: Operating payments category caters for services that are related to the operations of the entity | J138: *Operating payments: Achievements and awards *Operating payments: Air charter services and landing rights *Operating payments: Cash discount (temporary) *Operating payments: Competency certificates / licences / permits *Operating payments: Courier and delivery services *Operating payments: Freight services transport goods *Operating payments: Harbour services, docking fees *Operating payments: Honoraria (voluntarily workers) *Operating payments: Laundry services *Operating payments: Non-life insurance premiums *Operating payments: Printing and publications *Operating payments: Professional bodies, membership and subscriptions *Operating payments: Resettlement cost *Operating payments: Road worthy tests *Operating payments: School boarding/tuition cost *Operating payments: Storage services *Operating payments: Warrantees and guarantees *Operating payments: Taking over contractual obligations *Operating payments: Witness and related cost
F140: 69 | H140: Venues and facilities | I140: Venue costs are those cost which are associated with obtaining a right to use that place/ site/location at that particular time. Facilities is anything that helps someone to perform their duties at an optimal level e.g. maintenance of computers and or making sure that all air-conditions are working. Included are the cost incurred from using venues and/or facilities not available within the normal business premises of the entity, normally specialist in nature. Facilities includes all the individual items e.g. chairs, tables, equipment, etc. that comes with the venue.
F142: 70 | H142: Interest | I142: This item includes the total value of interest payments. These are payments associated with debt, for example interest on borrowing and overdraft facilities. Interest payments on bills and bonds issued by other government units are also included here.
F144: 71 | H144: Dividends | I144: A dividend is a distribution of money or property paid by a corporation out of the corporation's profits to shareholders. Government units are not payers of dividends as a rule. Exceptions may be public corporations.
F146: 72 | H146: Rent on land | I146: Rent relates payments in respect of certain leases of land, subsoil assets, and other naturally occurring assets. Includes only rent of land, and royalties, exploration and rights of use. Rent of buildings are included in operating leases.
F148: 73 | H148: Transfers and subsidies | I148: This item consists of all unrequited, voluntary payments to other parties. Thus, an entry should be made under this item when government does not receive anything directly in return for the transfer to the other party and the transfer is voluntary. Both current and capital transfers are included in this item. An example of a capital transfer is a cash payment, which the unit is required to use toward the acquisition of a capital asset. All other transfers are current, for example, donations and grants, which the recipient is not obliged to use to acquire capital assets. The transfers paid are further categorised as; Subsidies Subsidies on production comprise all current, unrequited payments to businesses – both government and privately owned – on the basis of their level of production or quantity, or values of products produced, sold, imported or exported. Subsidies influence the level of production and / or pricing policies of the recipient. To be classified as a subsidy on production, the transfer must be current. Subsidies can be payable on specific products or on production in general. A subsidy on a product is a subsidy payable per unit of a good or service. The subsidy may be a specific amount of money per unit of quantity of a good or service, or it may be calculated ad valorem as a specified percentage of the price per unit. A subsidy may also be calculated as the difference between a specified target price and the market price actually paid by a buyer. A subsidy on a product usually becomes payable when the good or service is produced, sold, exported, or imported. But it may also be payable in other circumstances, such as when a good is transferred, leased, delivered, or used for own consumption or own capital formation. Subsidies on production consist of subsidies that enterprises receive for engaging in production but that are not related to specific products. Included are subsidies on payroll or workforce, which are payable on the total wage or salary bill, the size of the total workforce, or the employment of particular types of person; subsidies to reduce pollution; and payments of interest on behalf of corporations. Subsidies also include transfers to public corporations to compensate for losses they incur on their productive activities as a result of charging prices that are lower than their average costs of production because of deliberate government economic and social policy. If such losses have been accumulated over two or more years, however, the transfer is considered of a capital nature and classified as other transfers to public corporations and private enterprises.
F150: 74 | H150: Public and private corporations | I150: Public corporations are resident corporations and quasi-corporations that are subject to control by government units, Private corporations are all resident corporations and quasi-corporations that are not controlled by government.
F152: 75 | H152: Transfers to households: Social benefits | I152: These are transfers to protect the entire population or specific segments of the population against certain social risks: events that may adversely affect the welfare of the households concerned such as, loss of employment, poverty etc. Other government units can also pay social benefits, like the Unemployment Insurance Fund.
F154: 76 | H154: Other transfers to households | I154: This item includes all other unrequited payments made to individuals and households that are not for social benefits. To note is the inclusion of bursaries awarded to persons who are not employed by the public entity for the purpose of assisting them with tuition and other education and training related costs. They are transfers since the recipient has no obligation towards the benefactor
F156: 77 | H156: Technical reserves (social security funds only) | I156: Technical reserves are as a result of an actuarial evaluation. They consist of net equity of households in insurance reserves, prepaid premiums and reserves against outstanding claims.
F158: 78 | H158: Tax payments | I158: Tax payments include personal income tax, employer-paid payroll tax, real estate property tax, other personal property taxes, unemployment tax, business income tax, and sales and use tax.
F160: 79 | H160: Surplus/(deficit) for the year/ net cash and cash equivalents/assets-liabilities | I160: The formula checks if the above balances in the template are in accordance with the published audited financial statements
F162: 80 | H162: Other movements | I162: Any other non-cash movement not classified in the "Adjust surplus / (deficit) for accrual transactions" adjustments.
F164: 81 | H164: Other flows from Investing Activities | I164: Inflows and outflows of cash arising from acquisition and disposal of long-term financial assets and other investments not included in cash equivalents. Reason for disclosure of cash flows arising from investing activities The separate disclosure of cash flows arising from investing activities is important because the cash flows represent the extent to which cash outflows have been made for resources which are intended to contribute to the entity’s future service delivery. | J164: • Cash payments to acquire equity or debt instruments of other entities and interests in joint ventures (other than payments for those instruments considered to be cash equivalents or those held for dealing or trading purposes); • Cash receipts from sales of equity or debt instruments of other entities and interests in joint ventures (other than receipts for those instruments considered to be cash equivalents and those held for dealing or trading purposes); • Cash advances and loans made to other parties (other than advances and loans made by a public financial institution); • Cash receipts from the repayment of advances and loans made to other parties (other than advances and loans of a public financial institution); • Cash payments for futures contracts, forward contracts, option contracts and swap contracts except when the contracts are held for dealing or trading purposes, or the payments are classified as financing activities; and • Cash receipts from futures contracts, forward contracts, option contracts and swap contracts except when the contracts are held for dealing or trading purposes, or the receipts are classified as financing activities.
F166: 82 | H166: Buildings: residential | I166: Dwellings or residential are buildings that are used entirely or primarily as residences, including garages and other associated structures. Houseboats, barges, mobile homes, caravans and military personnel dwellings that are used as principal residences
F168: 83 | H168: Buildings: non-residential | I168: Non-residential buildings are all buildings other than dwellings. Examples of types of Buildings included in this category are office buildings, schools, hospitals, buildings for public entertainment, warehouse and industrial buildings, commercial building
F170: 84 | H170: Other fixed structures | I170: Other fixed structures consists of all fixed structures other than buildings. For example, roads, bridges and dams.
F172: 85 | H172: Transport equipment | I172: Transport equipment consists of equipment for moving people and objects. For example, aircrafts, aircraft engines, airport transport equipment, buses, cycles, emergency vehicles, mobile clinics, motor vehicles, railway rolling stock, ships and boats and engines, trailers and accessories and trucks. Furniture, Machinery, Computer and Office equipment i) Furniture and Office equipment This group of items provides for furniture and office equipment including items such as advertising boards, air conditioners, crockery and cutlery, domestic furniture, linen and soft furnishing, office equipment/furniture, paintings, sculptures, ornaments and school furniture. ii) Other Machinery and Equipment Consists of other machinery and equipment other than transport equipment. They are general and special purpose machinery i.e. electrical machinery, radio, television and communication equipment, furniture, watches and sports goods. iii) Computer Equipment This includes costs for desktop computers and terminals. Also included in this item are the once-off cost if separately identified for the operating system purchased with the hardware (e.g. Windows XP Professional, etc).
F174: 86 | H174: Heritage assets | I174: Heritage assets are assets of significant value that government intends to preserve indefinitely because they have unique history, cultural, educational, artistic or architectural significance. Examples are; archives, areas/land of historic significance, library materials, antiques and collectables, sculpture, paintings, sculptures, state jewellery, works of art, etc.
F176: 87 | H176: Biological assets | I176: Biological and cultivated assets are animals and plants that are used repeatedly or continuously for more than one year to produce other goods or services. Examples of animals to be included in this category are dairy cattle, draft animals, wool-producing, breeding stocks, game and animals used for transportation and entertainment. Examples of plants are trees, vines and shrubs cultivated for production of fruits, nuts, sap, resin, bark and leaf products. Slaughter animals are not cultivated assets, because they can only be used once.
F178: 88 | H178: Land and Subsoil assets | I178: Land is the ground itself, including the soil covering, associated surface water, and major improvements that cannot be physically separated from the land but not buildings on it and cultivated plantations etc. Subsoil assets consist of proven reserves of oil, gas, coal, metallic mineral reserves and nonmetallic mineral reserves, minerals and ores. Mine shafts, wells and other subsoil extraction facilities are fixed assets, rather than subsoil assets.
F180: 89 | H180: Investment Property | I180: Investment property is property (land or a building or part of a building or both) held (by the owner or by the lessee under a finance lease) to earn rentals or for capital appreciation or both. [IAS 40.5] Examples of investment property: [IAS 40.8], land held for long-term capital appreciation, land held for undetermined future use, building leased out under an operating lease, vacant building held to be leased out under an operating lease, property that is being constructed or developed for future use as investment property
F182: 90 | H182: Software and other intangible assets | I182: An intangible is an identifiable non-monetary asset without any physical substance. Examples of intangible fixed assets are mineral exploration rights; computer software; literary and artistic originals; and miscellaneous other intangible fixed assets. To qualify as a fixed asset, the item must be intended for use in production for more that one year and its use must be restricted to the units that have established ownership rights over it or to units licensed by the owner.
F184: 91 | H184: Domestic long term investments | I184: Net flows of cash made within the borders of South Africa arising from acquisition and/ disposal of assets that an entity intends to hold for more than a year.
F186: 92 | H186: Foreign long term investments | I186: Net flows of cash made from outside the borders of South Africa arising from acquisition and/ disposal of assets that an entity intends to hold for more than a year.
F188: 93 | H188: Interest | I188: Income associated with ownership of interest-bearing financial instruments, such as and bills and bonds issued by third parties. | J188: *Interest from financial derivatives
F190: 94 | H190: Dividends | I190: These are profit distributions receivable by public entities on equity participation in private and public sector entities. Dividends come in the form of revenue from shares and distribution of profits to the owner. Gains/losses associated with valuation changes should not be included in the amount reported here, these are recorded under the transactions in financial assets and liabilities category. | J190: *Dividends from shares and other equity
F192: 95 | H192: Outside shareholders interest | I192: Outside shareholders have no links with the company but have a financial Interest in its operating performance.
F194: 96 | H194: Deferred income | I194: Deferred income is the converse of accruals. It is income received during an accounting period, but which is not yet reported as earned. For example, a business may receive payment for a service or a product that has not yet been supplied. Thus cannot be recognised as income up until such time the condition is fulfilled.(from the template)
F196: 97 | H196: Borrowing activities | I196: in a cash flow environment is the lending of money by one institution to the next and this amounts to loans. A loan is an arrangement in which a lender gives money to a borrower, and the borrower agrees to repay the money, usually along with interest, at some future point(s) in time. There is usually a predetermined time for repaying a loan, and mostly the lender has to bear the risk that the borrower may not repay a loan. The loan could be obtained from either: (a)One of the local government institutions (Domestic loan denominated in Rand value) or (b)Through the market (searching for the most economical deal in the market. The market includes both local and foreign) i.One of the local financial services providers (Local or domestic loan denominated in Rand value) or ii.One of the international financial services providers (Foreign loan denominated in a foreign currency which comes with the risk of foreign exchange currency fluctuations). The agreed-upon loan repayment period determines further classification between long-term and short-term loans. Short term loans are loans payable within 12 months and long term loans are payable beyond 12 months period.
F198: 98 | H198: Repayment of finance leases | I198: A finance lease is a lease that transfers substantially all the risks and rewards of ownership of an asset. Title may or may not eventually be transferred. In substance, the lessee purchases an asset by way of a financing arrangement between itself (the lessee) and the lessor. This payment should be classified as a payment for capital assets in the budget format. The interest portion is classified as current interest, dividends and rent on land, interest paid finance leases in the budget format. Refer to Practice Note 5 of 2006/07 issued by the Office of the Accountant- General for specific rules regarding this type of transaction.
F200: 99 | H200: Other (e.g. issuance of shares, revaluations)
F202: 100 | H202: Interest and dividends or similar distributions | I202: Interest and dividends or similar distributions received and paid should be disclosed separately. The total amount of interest paid during a period is disclosed in the cash flow statement. Interest paid and interest and dividends (or similar distributions) received may be classified as either operating, investing, or financing activities. The classification of interest paid, and interest and dividends (or similar distributions) received should be driven by the source.
H203: STATEMENT OF FINANCIAL POSITION
F204: 101 | H204: Cash and cash equivalents | I204: Cash and cash equivalents are the most liquid assets found within the asset portion of a company's balance sheet. Cash equivalents are assets that are readily convertible into cash, such as money market holdings, short-term government bonds or Treasury bills, marketable securities and commercial paper.
F206: 102 | H206: Trade and other receivables from exchange transactions | I206: These are current asset representing money due for services performed or merchandise sold on credit after adjusting provision for doubtful debts. The provision for doubtful debts is subtracted from Accounts Receivable to arrive at what is called "net realizable receivables."
F208: 103 | H208: Other receivables from non-exchange transactions, including taxes, fines and transfers | I208: These are current asset representing money due from non-exchange activities such as fines. The provision for doubtful debts is subtracted from Accounts Receivable to arrive at what is called "net realizable receivables."
F210: 104 | H210: Prepayments | I210: The satisfaction of a debt or installment payment before its official due date. A prepayment can be for the entire balance or for any upcoming payment that is paid in advance of the date for which the borrower is contractually obligated to pay it. Examples of a prepayment come in the form of rent or early loan repayments.
F212: 105 | H212: VAT receivable | I212: VAT Receivables is the carrying amount due within one year of one operating cycle from tax authorities as of the balance sheet date representing VAT refunds of overpayment e.g. Input tax vs Output tax.
F214: 106 | H214: Income tax receivable | I214: Its carrying amount due within one year of one operating cycle from tax authorities as of the balance sheet date representing refunds of overpayments or recoveries based on agreed-upon resolutions of disputes.
F216: 107 | H216: Inventory | I216: Inventories are assets/ goods and services held for sale in the ordinary course of business (finshed goods), in the process of production for such sale (working in process), or in the form of materials or supplies to be consumed in the production process or in the rendering of service.Goods" in question will however have an aspect of service which was provided in the form of labour that went into the manufacture of whatever item is being produced
F218: 108 | H218: Short term loans | I218: Short term loans are non-derivative financial assets with fixed or determinable payments that are not quoted in an active market. Loans to other enterprises expected to be recovered within twelve months period are examples of assets falling into the loans and receivables category.
F220: 109 | H220: Accrued Investment Interest/Accrued interest | I220: A term used to describe an accrual accounting method when interest that is receivable has been recognized, but not yet received
F222: 110 | H222: Current investments | I222: Current investment is a purchase of an asset or item with the hope that it will generate income or appreciate and/sold at the higher price or that will expire within one year , such as bonds, stock, collectible annuities and real property.
F224: 111 | H224: Other current financial assets | I224: A current financial assets is any asset that is cash, equity instrument of another entity e.g. investment in the ordinary shares of another entity; a contractual right to receive cash or another financial asset from another entity (e.g. bonds); a contractual right to exchange financial instruments with another entity under conditions that are potentially favourable (e.g. an option to acquire shares in another company); a contract that will or may be settled in the entity's own equity instrument (Derivative or Non- derivative). These are expected to be realised in a period of less than twelve months.
F226: 112 | H226: Construction contracts and receivables | I226: These are construction contracts monies receivable over a short period.
F228: 113 | H228: Non Current Assets Held for Sale | I228: Non-current assets are reclassiﬁed as current assets when they are held for sale. A non-current asset is regarded as ‘held for sale’ if its carrying amount will be recovered principally through a sale transaction, rather than through continuing use. To be classiﬁed as a non-current asset held for sale: the asset must be available for immediate sale; and the sale must be highly probable. This requires management commitment to sell, active marketing at a reasonable price, and the expectation of a completed sale within one year.Non-current assets classified as held for sale shall not be depreciated. But Impairment must be considered both at the time of classification as held for sale and after classification as held for sale.
F230: 114 | H230: Finance lease receivable | I230: The present value of the lease receipts expected during the lease term
F232: 115 | H232: Statutory Receivables - Exchange | I232: These are receivables that arise from legislation, supporting regulations, or similar means and require settlement by another entity in cash or using another financial instrument. These receivables are in exchange for a good or a service. | J232: E.g property rates, levies, licences
F234: 116 | H234: Statutory Receivables - Non Exchange | I234: These are receivables that arise from legislation, supporting regulations, or similar means and require settlement by another entity in cash or using another financial instrument. This receivable is not in exchange of anything. | J234: Income tax, grants and transfers, fines and penalties
F236: 117 | H236: Operating Lease Asset | I236: The receivable arising from a contract that allows an external party to use an asset, but rights or ownership do not pass to the lessee. | J236: e.g lease receivable from an opeerating lease agreement.
F238: 118 | H238: Derivatives financial instruments | I238: A derivative is a financial instrument whose value changes in relation to changes in a variable, such as an interest rate, commodity price, credit rating, or foreign exchange rate. It also requires either a small or no initial investment, and it is settled at a future date. It allows an entity to speculate on or hedge against future changes in market factors at minimal initial cost. Examples of derivatives are call options, put options, forwards, futures, and swaps.
F240: 119 | H240: Non-current receivables from non-exchange transactions | I240: These are accounts or promissory notes due for payment to an entity other than from its normal operations that is not expected to be collected within one year of the balance sheet date. Examples of non-trade receivables are amounts owed to a company by its employees for loans or wage advances, tax refunds owed to it by taxing authorities, or insurance claims owed to it by an insurance company
F242: 120 | H242: Non-current receivables from exchange transactions | I242: These are accounts or promissory notes due for payment to an entity other than from its normal operations that is not expected to be collected within one year of the balance sheet date. Examples of non-trade receivables are amounts owed to a company by its employees for loans or wage advances, tax refunds owed to it by taxing authorities, or insurance claims owed to it by an insurance company
F244: 121 | H244: Non Current Receivables - Statutory Receivables - Exchange | I244: These are receivables that arise from legislation, supporting regulations, or similar means and require settlement by another entity in cash or using another financial instrument. These receivables are in exchange for a good or a service. | J244: E.g property rates, levies, licences
F246: 122 | H246: Non Current Receivables - Statutory Receivables - Non-Exchange | I246: These are receivables that arise from legislation, supporting regulations, or similar means and require settlement by another entity in cash or using another financial instrument. This receivable is not in exchange of anything. | J246: Income tax, grants and transfers, fines and penalties
F248: 123 | H248: Finance lease receivable | I248: The present value of the lease receipts expected during the lease term
F250: 124 | H250: Long term loan | I250: Long term loans and receivables are non-derivative financial assets with fixed or determinable payments that are not quoted in an active market. These are loans to other enterprises expected to be recoverd over twelve months period.
F252: 125 | H252: Other non-current financial assets | I252: A non curent financial assets is any asset that is cash, equity instrument of another entity e.g. investment in the ordinary shares of another entity; a contractual right to receive cash or another financial asset from another entity (e.g. bonds); a contractual right to exchange financial instruments with another entity under conditions that are potentially favourable (e.g. an option to acquire shares in another company); a contract that will or may be settled in the entity's own equity instrument (Derivative or Non- derivative). These are expected to be realised in a period of over twelve months.
F254: 126 | H254: Non-Current Investments | I254: Investments are long term shares such as real property, stocks, bonds, collectible annuities, mutual fund shares, etc., held by an entity in another company. An entity acquires these shares with the expectation of realizing income or capital gain, or both, in the long term future
F256: 127 | H256: Investments in Subsidiary / Municipal entity | I256: This is an investment in a subsidiary which is a company that is partly or completely owned by another company that holds a controlling interest in the subsidiary company
F258: 128 | H258: Investments in Joint Ventures | I258: This is an investment in a joint venture which is a business agreement in which parties agree to develop, for a finite time, a new entity and new assets by contributing equity. They exercise control over the enterprise and consequently share revenues, expenses and assets.
F260: 129 | H260: Investments in Associates | I260: This is an investment in an associate which is an entity over which an investor has significant influence, being the power to participate in the financial and operating policy decisions of the investee (but not control or joint control).
F262: 130 | H262: Deferred Tax Assets | I262: Deferred tax assets are amounts of income taxes recoverable in future periods in respect of deductible temporary differences; the carry forward of unused tax losses; and the carry forward of unused tax credits
F264: 131 | H264: Defined Benefit Plan Assets | I264: Defined Benefit Plans are plans in which the employer’s obligation is not limited to contribution toward a benefit, but rather based on the benefit promised to the employees. The amount could be determined with reference to a plan benefit formula, which stipulates the value of the benefit, a guarantee of a specified return on contribution, or informal practices that give rise to constructive obligation. Many defined benefit plans include early retirement provisions to encourage employees to retire early, before the attainment of normal retirement age (usually age 65). Companies would rather hire younger employees at lower wages.
F266: 132 | H266: Property, plant and equipment | I266: This is a term used in accounting for assets and property which cannot easily be converted into cash. These are items of value which the organization has bought and will use for an extended period of time; this normally include items such as land and buildings, motor vehicles, furniture, office equipment, computers, fixtures and fittings, and plant and machinery
F268: 133 | H268: Investment property | I268: These are properties not occupied by the owner held to earn rentals or for capital appreciation or both.
F270: 134 | H270: Intangible assets | I270: An intangible asset is an identifiable non-monetary asset without any physical substance. Examples of intangible assets are mineral exploration rights; computer software; literary and artistic originals; patents, copyrights, trademarks, trade names, licenses, goodwill and miscellaneous other items that lack physical substance but provide long term benefits to the company. To qualify as a fixed asset, the item must be intended for use in production for more that one year and its use must be restricted to the units that have established ownership rights over it or to units licensed by the owner.
F272: 135 | H272: Biological assets | I272: Biological and cultivated assets are animals and plants that are used repeatedly or continuously for more than one year to produce other goods or services. Examples of animals to be included in this category are dairy cattle, draft animals, wool-producing, breeding stocks, game and animals used for transportation and entertainment. Examples of plants are trees, vines and shrubs cultivated for production of fruits, nuts, sap, resin, bark and leaf products. Slaughter animals are not cultivated assets, because they can only be used once.
F274: 136 | H274: Heritage assets | I274: A heritage assets is an item that has value because of its contribution to a nation’s society, knowledge and/or culture. They are of such significant value that government intends to preserve indefinitely because they have unique history, cultural, educational, artistic or architectural significance. South African examples are archives, areas/land of historic significance and culture.
F276: 137 | H276: Living resources | I276: Living resources are those resources that undergo biological transformation. | J276: E.g animals and plants that are used or held for: research, conservation, recreation, agricultural activities, education/training and rehabilitation or breeding purposes.
F278: 138 | H278: Operating Lease Assets | I278: The receivable arising from a contract that allows an external party to use an asset, but rights or ownership do not pass to the lessee. | J278: e.g lease receivable from an opeerating lease agreement.
F280: 139 | H280: Bank overdraft | I280: A credit agreement made with a financial institution that permits an account holder to use or withdraw more than they have in their account, without exceeding a specified maximum negative balance. Establishing an overdraft facility with a bank can help an individual or small business with short term cash flowproblems, although the negative balance typically needs to be repaid within a month.
F282: 140 | H282: Trade and other payables from exchange transactions | I282: Accounts payable is an entity's short-term obligation to pay suppliers for products and services, which the entity purchased on credit. If accounts payable are not paid within the payment terms agreed to with the supplier, the payables are considered to be in default, which may trigger a penalty or interest payment, or the revocation or curtailment of additional credit from the supplier.
F284: 141 | H284: Benefits payable (for UIF only) | I284: This account group is used to record amounts due to eligible third party claimants within the current operating period. It consists of benefits to be paid to authorized or designated retirees within the current fiscal year.
F286: 142 | H286: Accrued interest | I286: Accrued interest is the amount of loan interest that has already occurred, but has not yet been paid to the lender by the borrower
F288: 143 | H288: VAT payable | I288: VAT registered businesses collect VAT on behalf of the government. Businesses add a certain percentage of the sales price as VAT and charge the full amount to the customer. For example, if a VAT registered dealer sells a car for R10, 000 and the VAT rate is 15 per cent, then the dealer charges the customer R11, 500. The dealer then forwards the R1, 500 to the government. The amount that the dealer is required to forward to the government is called VAT payable.
F290: 144 | H290: Income Tax Payable | I290: Income tax is a liability showing the income taxes now due, this includes the current portion (due) of any deferred taxes. It is paid by employees and people who are self-employed. It may also be payable if you aren't working if, for example, you have an income from a pension or savings.
F292: 145 | H292: Taxes and transfers payable | I292: Taxes and transfers payables are unrequited payments to other government units, corporations and households.Taxes are compulsory and there have no direct quid pro quo. Transfers can either be compulsory or voluntary
F294: 146 | H294: Current provisions(Other) | I294: Provision, generally, is to prepare in advance for an event that is projected to take place in the future. In accounting, it is an amount charged against profits for a specific liability (for example: bad debts, depreciation or taxes). A liability may be known, but the amount is often uncertain. This uncertainty may lead to an adjustment in a later income statement once the final amount of the liability is ascertained.
F296: 147 | H296: Current portion of unspent conditional grants and receipts | I296: A conditional grant is an allocation of money from one sphere of government to another, conditional on certain services being delivered or on compliance with specified requirements. It is payable within a specific period of time of less than a year.
F298: 148 | H298: Deferred income | I298: Deferred income is the converse of accruals. It is income received during an accounting period, but which is not yet reported as earned. For example, a business may receive payment for a service or a product that has not yet been supplied. Thus cannot be recognised as income up until such time the condition is fulfilled.
F300: 149 | H300: Current portion of long-term borrowings | I300: It is the amount of unpaid principal from long term loans or borrowings that has accrued in a normal operating cycle. | J300: E.g a portion or an instalment towards a long term loan that is paid or supoosed to be paid in that certain financial year. E.g an entity takes a long term loan from another entity and the agreement is that a quarter of that loan is to be paid every 3 years until the loan is paid up, within those financial years that the instalment is paid, it will be considered as current portion of long term loan.
F302: 150 | H302: Short-term loans | I302: Short-term loans are generally loans in which borrowers can receive cash quickly from a lender, typically a bank or a paycheck loan business. Usually, short-term loans are processed fast and the minimum amount of time for a short-term loan is about 3 months, and in some cases, short-term loans can extend to up to 1 year.
F304: 151 | H304: Other current financial liabilities | I304: A financial liability is a contractual obligation to deliver cash or similar to another entity or a potentially unfavourable exchange of financial assets or liabilities with another entity over a period of less than twelve months.
F306: 152 | H306: Current portion of finance lease liability | I306: A finance lease is a lease that is primarily a method of raising finance to pay for assets. It is also termed a capital lease. At the end of the lease, the ownership of the assets reverts to the lease. This is an estimated figure payable within twelve months period
F308: 153 | H308: Managed funds | I308: A fund in a public sector is a self-balancing set of financial books that is used to control and monitor the planned use of resources, often in compliance with legal and administrative requirements. Public-sector organizations use funds to demonstrate their fiscal accountability. The word "fund" in government has taken several meanings or connotations. It is sometimes used to refer an appropriation which is a legislative authorization to spend or an allotment which is an authorization by the Department of Budget and Management (DBM) to obligate, or as actual cash available | J308: E.g a fund manager manages a portfolio of investments such as shares and corporate bonds on behalf of the trust's beneficiaries.
F310: 154 | H310: Service Concession Arrangement | I310: It is an arrangement whereby a government or other public sector body contracts with a private operator to develop, operate and maintain an infrastructure asset. | J310: E.g an arrangement for building of a road, bridge, tunnel, airport etc
F312: 155 | H312: Derivatives financial instruments | I312: A derivative is a financial instrument whose value changes in relation to changes in a variable, such as an interest rate, commodity price, credit rating, or foreign exchange rate. It also requires either a small or no initial investment, and it is settled at a future date. It allows an entity to speculate on or hedge against future changes in market factors at minimal initial cost. Examples of derivatives are call options, put options, forwards, futures, and swaps. Examples of derivatives are call options, put options, forwards, futures, and swaps.
F314: 156 | H314: Deferred tax liabilities | I314: Deferred tax liability is the amount of income tax payable in future periods in respect of the taxable temporary differences. A deferred tax liability records the fact that the company will, in the future, pay more income tax because of a transaction that took place during the current period, such as an instalment sale receivable.
F316: 157 | H316: Unspent conditional grants and receipts | I316: A conditional grant is an allocation of money from one sphere of government to another. The grant is only recognised as revenue to the extent that the recipient/spending agency has complied with all of the criteria, conditions or obligations embodied in the agreement. The unspent conditional grants therefore represent the unspent portion of government grants, subsidies and contributions from the other spheres of government.
F318: 158 | H318: Benefits payable (UIF only) | I318: This account group is used to record amounts due to eligible third party claimants within the current operating period. It consists of benefits to be paid to authorized or designated retirees within the current fiscal year. The Non-current portion of this item represents the part recognised by the Fund in the year under review but only to be paid in future.
F320: 159 | H320: Long-term borrowings | I320: Borrowings comprise obligations under bank overdrafts, loans due to other group companies, redeemable debentures, bonds, commercial paper, bills of exchange and any other form of borrowing. These borrowings are payable over a period of twelve months. Accrued interest on borrowings should not be included here. Finance leases, although are borrowings too, should not be classified under this line.
F322: 160 | H322: Finance lease liability | I322: A finance lease is a lease that transfers substantially all the risks and rewards incidental to the ownership of an asset. The title may (through a bargain purchase option) or may not eventually be transferred to the lessee.
F324: 161 | H324: Operating Lease Liability | I324: An operating lease is the rental of an asset from a lessor, but not under the terms that would classify it as a capital lease. An operating lease tends to have a shorter duration than a capital lease, and the lessee does not have the option to acquire the asset through a bargain purchase option. The liability is the amount owed under the contract. Operating lease liability is the amount of money that a customer owes under the terms of a lease contract.
F326: 162 | H326: Other non-current financial liabilities | I326: A financial liability is any liability that is a contractual obligation to deliver cash or another financial asset to another entity or to exchange financial instruments with another entity under conditions that are potentially unfavourable. It is also a contract that will or may be settled in the entity's own equity instruments (could be a non-derivative for which the entity is/may be obliged to deliver a variable number of its own equity instruments or a derivative that will/may be settled other than by the exchange of fixed amount of cash for a fixed number of the entity's own equity instruments)
F328: 163 | H328: Non-current provisions(Post retirement benefits) | I328: Benefits provided by a company to retirees. Typical examples of potential benefits are pensions, life insurance, and health insurance.
F330: 164 | H330: Defined benefit plan obligations | I330: A defined benefit plan is a retirement benefit plan under which payments to former employees are fixed based on a formula that typically incorporates employee earnings and/or years of service. It has no direct relationship to the funding entity's payments to the fund from which payments are made
F332: 165 | H332: Deferred income | I332: Deferred income is the converse of accruals. It is income received during an accounting period, but which is not yet reported as earned. For example, a business may receive payment for a service or a product that has not yet been supplied. Thus cannot be recognised as income up until such time the condition is fulfilled.
F334: 166 | H334: Managed funds | I334: These are funds instituted by the fiscus to run activities across various government institutions to deliver on a particular national priority, e.g. poverty alleviation fund. Allocations are typically disbursed from those particular funds and are monitored from one central point. It is payable over a specific period of more than twelve months.
F336: 167 | H336: Service Concession Arrangement | I336: It is an arrangement whereby a government or other public sector body contracts with a private operator to develop, operate and maintain an infrastructure asset. | J336: E.g an arrangement for building of a road, bridge, tunnel, airport etc
F338: 168 | H338: Derivatives financial instruments | I338: A derivative is a financial instrument whose value changes in relation to changes in a variable, such as an interest rate, commodity price, credit rating, or foreign exchange rate. It also requires either a small or no initial investment, and it is settled at a future date. It allows an entity to speculate on or hedge against future changes in market factors at minimal initial cost. Examples of derivatives include structured debt obligations and deposits, swaps, futures, options, caps, floors, collars, forwards, and other various combinations.
F340: 169 | H340: Accumulated surplus / (deficit) | I340: Accumulated surplus refers to the portion of net income which is retained by the organization rather than distributed to its owners as dividends. Similarly, if the organization makes a loss, then that loss is retained and called variously accumulated losses or accumulated deficit. Accumulated surpluses and deficits are cumulative from year to year with losses offsetting earnings.
F342: 170 | H342: Reserves | I342: Capital, in economics, can mean: factories, machines, and other man-made inputs into a production process. In finance, capital is money and other property of a corporation or other enterprise used in transacting the business. Reserves are generally those accounts where retained earnings are set aside to satisfy dividends, improvements, contingencies, retirement of preferred stock, etc., thereby cannot be distributed for other uses. Included are Non-distributable reserves (other than share capital and share premium). It will include Capital Redemption reserves, contingency reserves and other capital reserves. Amounts attributable to minority interests (if applicable) should also be included in this category
F344: 171 | H344: Revaluation Reserve | I344: A revaluation reserve is a non-cash reserve created to reflect the true value of the asset when the market value of a certain category of asset is more or less than the value of such asset at which it is recorded in the books of account. | J344: For example, revaluation reserves are often used when an asset’s market value greatly fluctuates or is volatile due to currency relationships.
F346: 172 | H346: Translation Reserve | I346: Is a type of reserve that is created to account for foreign currency translation. | J346: For example, if your company has its headquarters in the US but has operations in the UK, you must translate the British pound into US dollar.
F348: 173 | H348: Share capital / capital fund | I348: Share capital is the proportion of a company’s equity that came from the sale of its shares to the shareholders for cash. | J348: Examples of share capital: authorized capital, issued capital, subscribed capital etc.
F350: 174 | H350: Capitalised value of pensions (for Comp Fund only) | I350: Whenever a compensation claim has been approved and registered as a permanent disability, the total amount payable will be calculated and capitalised, and the monthly pension payments will be made from that capitalised value amount up to the last month of pension ( normally is up to 68 years or when the beneficiary pass on, whichever comes first).
F352: 175 | H352: Non-Controlling Interests | I352: A non-controlling interest, also known as a minority interest, is an ownership position wherein a shareholder owns less than 50% of outstanding shares and has no control over decisions. Non-controlling interests are measured at the net asset value of entities and do not account for potential voting rights.
F354: 176 | H354: Consumer deposits | I354: Consumer deposits are refundable deposits paid by consumer on securing a contract for services. Examples are deposits for electricity and water.
F356: 177 | H356: Taxation | I356: A means by which governments finance their expenditure by imposing charges on citizens and corporate entities. Governments use taxation to encourage or discourage certain economic decisions. For example, reduction in taxable personal (or household) income by the amount paid as interest on home mortgage loans results in greater construction activity, and generates more jobs. See also taxation principles.
F358: 178 | H358: Payments received in advance | I358: The satisfaction of a debt or installment payment before its official due date. A prepayment can be for the entire balance or for any upcoming payment that is paid in advance of the date for which the borrower is contractually obligated to pay it. Examples of a prepayment come in the form of rent or early loan repayments.
H360: Special reserve grant | I360: Also known as a capital injection or a bailout, a special appropriation grant is when the government provides money and/or resources to a failing State owned entity. These actions help to prevent the consequences of that entity's potential downfall which may include bankruptcy and default on its financial obligations. Bailouts are typically only for entities or industries whose bankruptcies may have a severe adverse impact on the economy, not just a particular market sector.

Sheet Revenue
F6: PE No | G6: =Settings!$O$2 -> PE18
F7: Entity name | G7: =Settings!$E$2 -> CEF (Pty) Ltd | S7: =IF(S65<R65/2,"Complete outer year budget","") -> 
G9: Notes | I9: =MyYearM3 -> 2020/21 | J9: =MyYearM2 -> 2021/22 | K9: =MyYearM1 -> 2022/23 | M9: =MyYear0 -> 2023/24 | O9: =MyYearP1 -> 2024/25 | Q9: =MyYearP2 -> 2025/26 | S9: =MyYearP3 -> 2026/27
A10: ItemCat | B10: Item code | F10: Revenue | I10: =Hist_year2RestatedAudited -> Audited outcome | J10: =Hist_year2RestatedAudited -> Audited outcome | K10: =Hist_year1Budget -> Budget | L10: =Hist_year1Audited -> Audited outcome | M10: =Cur_YearBudgEst -> Budget estimate | N10: =Cur_YearApprovedBudg -> Approved budget | O10: =MTEF1BudgEst -> Budget estimate | P10: =MTEF1RevBudgEst -> Revised budget estimate | Q10: =MTEF2BudgEst -> Budget estimate | R10: =MTEF2RevBudgEst -> Revised budget estimate | S10: =MTEF3PlanBudgetEst -> Planning budget estimate
A11: 1 | F11: R Thousand
A12: 1 | B12: RE1 | F12: Revenue
A13: 1 | B13: RE11 | F13: Tax revenue | G13: 1 | I13: 0 | J13: 0 | K13: 0 | L13: 0 | M13: 0 | N13: 0 | O13: 0 | P13: 0 | Q13: 0 | R13: 0 | S13: 0
A14: 1 | B14: RE12 | F14: Sales of goods and services other than capital assets | G14: 2 | I14: =SUM(I15,I29,I30) -> 13161098 | J14: =SUM(J15,J29,J30) -> 15688048 | K14: 28974222.02 | L14: 33804764 | M14: 30040769.71 | N14: 50251901 | O14: 34755867.14 | P14: 49475348 | Q14: 36703812.83 | R14: 48231109 | S14: 54245944
A15: 1 | B15: RE121 | F15: Sales of goods and services produced by entity | G15: 3 | I15: =SUM(I16,I21,I26) -> 11999558 | J15: =SUM(J16,J21,J26) -> 14642567 | K15: 27755808.81 | L15: 32008273 | M15: 28681149.04 | N15: 48342414 | O15: 33282881.29 | P15: 47340023 | Q15: 35144226.79 | R15: 46116643 | S15: 52108325
A16: 1 | B16: RE1211 | F16: Administration fees | G16: 4 | I16: =SUM(I17:I20) -> 0 | J16: =SUM(J17:J20) -> 0 | K16: 0 | L16: 0 | M16: 0 | N16: 0 | O16: =SUM(O17:O20) -> 0 | P16: =SUM(P17:P20) -> 0 | Q16: =SUM(Q17:Q20) -> 0 | R16: =SUM(R17:R20) -> 0 | S16: =SUM(S17:S20) -> 0
A17: 1 | B17: RE12111 | F17: Please specify | I17: 0 | J17: 0 | K17: 0 | L17: 0 | M17: 0 | N17: 0 | O17: 0 | P17: 0 | Q17: 0 | R17: 0 | S17: 0
A18: 1 | B18: RE12112 | F18: Please specify | I18: 0 | J18: 0 | K18: 0 | L18: 0 | M18: 0 | N18: 0 | O18: 0 | P18: 0 | Q18: 0 | R18: 0 | S18: 0
A19: 1 | B19: RE12113 | F19: Please specify | I19: 0 | J19: 0 | K19: 0 | L19: 0 | M19: 0 | N19: 0 | O19: 0 | P19: 0 | Q19: 0 | R19: 0 | S19: 0
A20: 1 | B20: RE12114 | F20: Please specify | I20: 0 | J20: 0 | K20: 0 | L20: 0 | M20: 0 | N20: 0 | O20: 0 | P20: 0 | Q20: 0 | R20: 0 | S20: 0
A21: 1 | B21: RE1212 | F21: Sales by market establishments | G21: 5 | I21: =SUM(I22:I25) -> 11999558 | J21: =SUM(J22:J25) -> 14642567 | K21: 27755808.81 | L21: 32008273 | M21: 28681149.04 | N21: 48342414 | O21: =SUM(O22:O25) -> 33282881.29 | P21: =SUM(P22:P25) -> 47340023 | Q21: =SUM(Q22:Q25) -> 35144226.79 | R21: =SUM(R22:R25) -> 46116643 | S21: =SUM(S22:S25) -> 52108325
A22: 1 | B22: RE12121 | F22: Sale of goods and services( Coal, Fuel storage, Petroleum products) | I22: 10338944 | J22: 13235141 | K22: 26112663 | L22: 26668775 | M22: 26970403 | N22: 43522889 | O22: 31530552 | P22: 45193033 | Q22: 33359671 | R22: 43724503 | S22: 49480296
A23: 1 | B23: RE12122 | F23: Coal | I23: 0 | J23: 656109 | K23: 1003487.363 | L23: 1426738 | M23: 1006042.079 | N23: 1669423 | O23: 1026162.921 | P23: 1491675 | Q23: 1046686.179 | R23: 1667266 | S23: 1875962
A24: 1 | B24: RE12123 | F24: Other income | I24: 1660614 | J24: 751317 | K24: 479316.7469 | L24: 3912760 | M24: 490936 | N24: 335773 | O24: 494184 | P24: 336821 | Q24: 514490 | R24: 359662 | S24: 370212
A25: 1 | B25: RE12124 | F25: Fuel Storage | I25: 0 | J25: 0 | K25: 160341.698 | L25: 0 | M25: 213767.9618 | N25: 2814329 | O25: 231982.3737 | P25: 318494 | Q25: 223379.6085 | R25: 365212 | S25: 381855
A26: 1 | B26: RE1213 | F26: Other sales | G26: 6 | I26: =SUM(I27:I28) -> 0 | J26: =SUM(J27:J28) -> 0 | K26: =SUM(K27:K28) -> 0 | L26: =SUM(L27:L28) -> 0 | M26: 0 | N26: =SUM(N27:N28) -> 0 | O26: 0 | P26: =SUM(P27:P28) -> 0 | Q26: 0 | R26: =SUM(R27:R28) -> 0 | S26: =SUM(S27:S28) -> 0
A27: 1 | B27: RE12131 | F27: User charges | I27: 0 | J27: 0 | K27: 0 | L27: 0 | M27: 0 | N27: 0 | O27: 0 | P27: 0 | Q27: 0 | R27: 0 | S27: 0
A28: 1 | B28: RE12132 | F28: Sales other than user charges | I28: 0 | J28: 0 | K28: 0 | L28: 0 | M28: 0 | N28: 0 | O28: 0 | P28: 0 | Q28: 0 | R28: 0 | S28: 0
B29: RE1214 | F29: Sales of scrap, waste, arms and other used current goods | G29: 7 | I29: 0 | J29: 0 | K29: 0 | L29: 0 | M29: 0 | N29: 0 | O29: 0 | P29: 0 | Q29: 0 | R29: 0 | S29: 0
A30: 1 | B30: RE122 | F30: Entity revenue other than sales | I30: =SUM(I31,I32,I36,I40) -> 1161540 | J30: 1045481 | K30: 1218413.208 | L30: 1796491 | M30: 1359620.673 | N30: 1909487 | O30: 1472985.846 | P30: 2135325 | Q30: 1559586.046 | R30: 2114466 | S30: 2137619
A31: 1 | B31: RE1221 | F31: Fines penalties and forfeits | G31: 19 | I31: 0 | J31: 0 | K31: 0 | L31: 0 | M31: 0 | N31: 0 | O31: 0 | P31: 0 | Q31: 0 | R31: 0 | S31: 0
A32: 1 | B32: RE1222 | F32: Gains from | I32: =SUM(I33:I35) -> 0 | J32: =SUM(J33:J35) -> 0 | K32: 0 | L32: 0 | M32: 0 | N32: 0 | O32: 0 | P32: 0 | Q32: 0 | R32: 0 | S32: 0
A33: 1 | B33: RE12221 | F33: Sale of fixed assets | I33: 0 | J33: 0 | K33: 0 | L33: 0 | M33: 0 | N33: 0 | O33: 0 | P33: 0 | Q33: 0 | R33: 0 | S33: 0
A34: 1 | B34: RE12222 | F34: Adjustments to fair value of assets | I34: 0 | J34: 0 | K34: 0 | L34: 0 | M34: 0 | N34: 0 | O34: 0 | P34: 0 | Q34: 0 | R34: 0 | S34: 0
A35: 1 | B35: RE12223 | F35: Other | I35: 0 | J35: 0 | K35: 0 | L35: 0 | M35: 0 | N35: 0 | O35: 0 | P35: 0 | Q35: 0 | R35: 0 | S35: 0
A36: 1 | B36: RE1223 | F36: Interest, dividends and rent on land | G36: 20 | I36: =SUM(I37:I39) -> 813408 | J36: =SUM(J37:J39) -> 593496 | K36: 1218413.208 | L36: 1018900 | M36: 1359620.673 | N36: 1909487 | O36: 1472985.846 | P36: 2135325 | Q36: 1559586.046 | R36: 2114466 | S36: 2137619
A37: 1 | B37: RE12231 | F37: Interest | G37: 21 | I37: 813408 | J37: 593467 | K37: 509613.208 | L37: 1017678 | M37: 628420.673 | N37: 1117487 | O37: 677385.8461 | P37: 1335325 | Q37: 751186.0463 | R37: 1306066 | S37: 1285931
A38: 1 | B38: RE12232 | F38: Dividends | G38: 22 | I38: 0 | J38: 29 | K38: 708800 | L38: 1222 | M38: 731200 | N38: 792000 | O38: 795600 | P38: 800000 | Q38: 808400 | R38: 808400 | S38: 851688
A39: 1 | B39: RE12233 | F39: Rent on land | G39: 23 | I39: 0 | J39: 0 | K39: 0 | L39: 0 | M39: 0 | N39: 0 | O39: 0 | P39: 0 | Q39: 0 | R39: 0 | S39: 0
A40: 1 | B40: RE1224 | F40: Unclassified revenue | G40: 24 | I40: =SUM(I41:I43) -> 348132 | J40: =SUM(J41:J43) -> 451985 | K40: 0 | L40: =SUM(L41:L43) -> 777591 | M40: 0 | N40: =SUM(N41:N43) -> 0 | O40: 0 | P40: =SUM(P41:P43) -> 0 | Q40: 0 | R40: =SUM(R41:R43) -> 0 | S40: =SUM(S41:S43) -> 0
A41: 1 | B41: RE12241 | F41: Realisation of deferred income (other than transfers) | I41: 0 | J41: 0 | K41: 0 | L41: 0 | M41: 0 | N41: 0 | O41: 0 | P41: 0 | Q41: 0 | R41: 0 | S41: 0
A42: 1 | B42: RE12242 | F42: Income from equity accounted associates | I42: 348132 | J42: 451985 | K42: 0 | L42: 777591 | M42: 0 | N42: 0 | O42: 0 | P42: 0 | Q42: 0 | R42: 0 | S42: 0
A43: 1 | B43: RE12243 | F43: Other income | I43: 0 | J43: 0 | K43: 0 | L43: 0 | M43: 0 | N43: 0 | O43: 0 | P43: 0 | Q43: 0 | R43: 0 | S43: 0
A44: 1 | B44: RE13 | F44: Transfers received | G44: 8 | I44: =SUM(I45:I46,I54,I60:I62) -> 0 | J44: 0 | K44: 0 | L44: 0 | M44: 0 | N44: 0 | O44: 0 | P44: 0 | Q44: 0 | R44: 0 | S44: 0
A45: 4 | B45: RE131 | F45: Social contributions received (social security funds only) | I45: 0 | J45: 0 | K45: 0 | L45: 0 | M45: 0 | N45: 0 | O45: 0 | P45: 0 | Q45: 0 | R45: 0 | S45: 0
A46: 1 | B46: RE132 | F46: Other government units | G46: 9 | I46: =SUM(I47,I51:I53) -> 0 | J46: =SUM(J47,J51:J53) -> 0 | K46: =SUM(K47,K51:K53) -> 0 | L46: =SUM(L47,L51:L53) -> 0 | M46: 0 | N46: =SUM(N47,N51:N53) -> 0 | O46: 0 | P46: =SUM(P47,P51:P53) -> 0 | Q46: 0 | R46: =SUM(R47,R51:R53) -> 0 | S46: =SUM(S47,S51:S53) -> 0
A47: 1 | B47: RE1321 | F47: National government | G47: 10 | I47: =SUM(I48:I50) -> 0 | J47: =SUM(J48:J50) -> 0 | K47: =SUM(K48:K50) -> 0 | L47: =SUM(L48:L50) -> 0 | M47: 0 | N47: =SUM(N48:N50) -> 0 | O47: 0 | P47: =SUM(P48:P50) -> 0 | Q47: 0 | R47: =SUM(R48:R50) -> 0 | S47: =SUM(S48:S50) -> 0
A48: 1 | B48: RE13211 | F48: Departmental transfers | I48: 0 | J48: 0 | K48: 0 | L48: 0 | M48: 0 | N48: 0 | O48: 0 | P48: 0 | Q48: 0 | R48: 0 | S48: 0
A49: 1 | B49: RE13212 | F49: Realisation of deferred transfers | I49: 0 | J49: 0 | K49: 0 | L49: 0 | M49: 0 | N49: 0 | O49: 0 | P49: 0 | Q49: 0 | R49: 0 | S49: 0
A50: 1 | B50: RE13213 | F50: Other government units | I50: 0 | J50: 0 | K50: 0 | L50: 0 | M50: 0 | N50: 0 | O50: 0 | P50: 0 | Q50: 0 | R50: 0 | S50: 0
A51: 1 | B51: RE1322 | F51: Departmental agencies and accounts | G51: 13 | I51: 0 | J51: 0 | K51: 0 | L51: 0 | M51: 0 | N51: 0 | O51: 0 | P51: 0 | Q51: 0 | R51: 0 | S51: 0
A52: 1 | B52: RE1323 | F52: Provincial governments | G52: 14 | I52: 0 | J52: 0 | K52: 0 | L52: 0 | M52: 0 | N52: 0 | O52: 0 | P52: 0 | Q52: 0 | R52: 0 | S52: 0
A53: 1 | B53: RE1324 | F53: Local governments | G53: 15 | I53: 0 | J53: 0 | K53: 0 | L53: 0 | M53: 0 | N53: 0 | O53: 0 | P53: 0 | Q53: 0 | R53: 0 | S53: 0
A54: 2 | B54: RE133 | F54: Skills development (SETAS only) | I54: =SUM(I55,I59) -> 0 | J54: =SUM(J55,J59) -> 0 | K54: 0 | L54: 0 | M54: 0 | N54: 0 | O54: 0 | P54: 0 | Q54: 0 | R54: 0 | S54: 0
A55: 2 | B55: RE1331 | F55: Skills development levies | I55: =SUM(I56:I58) -> 0 | J55: =SUM(J56:J58) -> 0 | K55: 0 | L55: 0 | M55: 0 | N55: 0 | O55: 0 | P55: 0 | Q55: 0 | R55: 0 | S55: 0
A56: 2 | B56: RE13311 | F56: Admin - 10.5% | I56: 0 | J56: 0 | K56: 0 | L56: 0 | M56: 0 | N56: 0 | O56: 0 | P56: 0 | Q56: 0 | R56: 0 | S56: 0
A57: 2 | B57: RE13312 | F57: Employer grant fund levy - 20% | I57: 0 | J57: 0 | K57: 0 | L57: 0 | M57: 0 | N57: 0 | O57: 0 | P57: 0 | Q57: 0 | R57: 0 | S57: 0
A58: 2 | B58: RE13313 | F58: Discretionary grants - 49.5% | I58: 0 | J58: 0 | K58: 0 | L58: 0 | M58: 0 | N58: 0 | O58: 0 | P58: 0 | Q58: 0 | R58: 0 | S58: 0
A59: 2 | B59: RE1332 | F59: National skills fund | I59: 0 | J59: 0 | K59: 0 | L59: 0 | M59: 0 | N59: 0 | O59: 0 | P59: 0 | Q59: 0 | R59: 0 | S59: 0
A60: 1 | B60: RE134 | F60: Higher education institutions | G60: 16 | I60: 0 | J60: 0 | K60: 0 | L60: 0 | M60: 0 | N60: 0 | O60: 0 | P60: 0 | Q60: 0 | R60: 0 | S60: 0
A61: 1 | B61: RE136 | F61: Foreign governments and international organisations | G61: 17 | I61: 0 | J61: 0 | K61: 0 | L61: 0 | M61: 0 | N61: 0 | O61: 0 | P61: 0 | Q61: 0 | R61: 0 | S61: 0
A62: 1 | B62: RE135 | F62: Local non-government donors | G62: 18 | I62: 0 | J62: 0 | K62: 0 | L62: 0 | M62: 0 | N62: 0 | O62: 0 | P62: 0 | Q62: 0 | R62: 0 | S62: 0
A63: 1 | B63: RE14 | F63: Tax benefit | G63: 25 | I63: 76699 | J63: 0 | K63: 0 | L63: 0 | M63: 0 | N63: 0 | O63: 0 | P63: 0 | Q63: 0 | R63: 0 | S63: 0
A64: 1 | B64: RE15 | F64: Outside shareholders interest | G64: 26 | I64: 0 | J64: 0 | K64: 0 | L64: 0 | M64: 0 | N64: 0 | O64: 0 | P64: 0 | Q64: 0 | R64: 0 | S64: 0
A65: 1 | B65: RE16 | F65: Total revenue | I65: =SUM(I13:I14,I44,I63:I64) -> 13237797 | J65: =SUM(J13:J14,J44,J63:J64) -> 15688048 | K65: 28974222.02 | L65: 33804764 | M65: 30040769.71 | N65: 50251901 | O65: 34755867.14 | P65: 49475348 | Q65: 36703812.83 | R65: 48231109 | S65: 54245944 | U65: =IF(S65<R65/2,"Complete outer year budget","") -> 
A66: 1
A67: 1 | F67: Check
A68: 1 | F68: Total revenue | I68: =I65 -> 13237797 | J68: 15688048 | K68: 28974222.02 | L68: 33804764 | M68: =M65 -> 30040769.71 | N68: 50251901 | O68: =O65 -> 34755867.14 | P68: 49475348 | Q68: 36703812.83 | R68: 48231109 | S68: 54245944
A69: 1 | F69: Total expenses | I69: ='Expend summary'!I140 -> 12697565.41 | J69: ='Expend summary'!J140 -> 15625491 | K69: ='Expend summary'!K140 -> 29294817.82 | L69: ='Expend summary'!L140 -> 31262870.28 | M69: ='Expend summary'!M140 -> 30591943.69 | N69: ='Expend summary'!N140 -> 47811490 | O69: ='Expend summary'!P140 -> 33426888.75 | P69: ='Expend summary'!Q140 -> 47893547.89 | Q69: ='Expend summary'!S140 -> 35403713.86 | R69: ='Expend summary'!T140 -> 44137175 | S69: ='Expend summary'!V140 -> 51021587
A70: 1 | F70: Surplus / (Deficit) | I70: =I68-I69 -> 540231.588 | J70: =J68-J69 -> 62557 | K70: =K68-K69 -> -320595.808 | L70: =L68-L69 -> 2541893.718 | M70: -551173.979 | N70: 2440411 | O70: =O68-O69 -> 1328978.392 | P70: 1581800.112 | Q70: 1300098.977 | R70: 4093934 | S70: 3224357
A71: 1 | F71: Annual report Surplus / (Deficit) | J71: 62557 | L71: 2541894
A72: 1 | F72: Differences | J72: =ROUND(IF(J70-J71>0,IF(J70-J71<1,0,J70-J71),J70-J71),0) -> 0 | L72: =ROUND(IF(L70-L71>0,IF(L70-L71<1,0,L70-L71),L70-L71),0) -> 0
A73: 1

Sheet Admin
F6: PE No | G6: =Settings!O2 -> PE18
F7: Entity name | G7: =Settings!$E$2 -> CEF (Pty) Ltd
F9: Performance and operations information
A10: ItemCat | B10: Item code | C10: Hide/unhide | F10: Activity/Output/Outcome/Efficiency Indicator | G10: Priorities | I10: =MyYearM3 -> 2020/21 | J10: =MyYearM2 -> 2021/22 | K10: =MyYearM1 -> 2022/23 | L10: =MyYear0 -> 2023/24 | M10: =MyYearP1 -> 2024/25 | N10: =MyYearP2 -> 2025/26 | O10: =MyYearP3 -> 2026/27 | P10: Related Objectives | Q10: Add to 'Performance Indicators' Sheet | R10: Comments
A11: 1 | F11: Profitability reported profft/loss from 2019 gross profit margin, cost reduction portoflio management | G11: 0 | I11: Gross profit margin 15%, cost reducton 80% of gross profit, portfolio management 12% ROI | J11: Gross profit margin 18%, cost reducton 60% of gross profit, portfolio management 14% ROI | K11: Gross Margin 10% | L11: Gross Margin 11% | M11: Gross Margin 12% | N11: 0 | O11: 0 | P11: Administration | Q11: No | R11: 0
A12: 1 | F12: Solvency (% Improvement Year on Year) | G12: Priority 2: Economic Transformation and Job Creation | I12: 0% | J12: 0% | K12: 0% | L12: 0% | M12: 0% | N12: 0 | O12: 0 | P12: Administration | Q12: No | R12: 0
A13: 1 | F13: Liquidity (current ratio) from 2019 operating cashflow ratio | G13: Priority 2: Economic Transformation and Job Creation | I13: 0.26 | J13: 1,6:1 | K13: 1,6:1 | L13: 0.15:1 | M13: 0.43:1 | N13: 0 | O13: 0 | P13: Administration | Q13: No | R13: 0
A14: 1 | F14: Solvency debt to equity | G14: Priority 2: Economic Transformation and Job Creation | I14: 40% debt: 60% equity | J14: 40% debt: 60% equity | K14: 40% debt: 60% equity | L14: 40% debt: 60% equity | M14: 40% debt: 60% equity | N14: 0 | O14: 0 | P14: Administration | Q14: No | R14: 0
A15: 1 | F15: Governance model/efficient decision making | G15: Priority 6: Social Cohesion and Safer Communities | I15: Continued implementation of the Group Operating Model | J15: Integration and optimization of the revised Group operating model | K15: Review of operating model due to merger | L15: Review of operating model due to merger | M15: Implementation of new operating model due to merger | N15: 0 | O15: 0 | P15: Administration | Q15: No | R15: 0
A16: 1 | F16: return on capital employed | G16: Priority 2: Economic Transformation and Job Creation | I16: 0 | J16: 12 percent | K16: 13 percent | L16: 14 percent | M16: 15 percent | N16: 0 | O16: 0 | P16: Administration | Q16: No | R16: 0
A17: 1 | F17: Overheads / Gross Profit | G17: Priority 2: Economic Transformation and Job Creation | I17: 1531% | J17: 539% | K17: 139% | L17: 120% | M17: 120% | N17: 0 | O17: 0 | P17: Administration | Q17: No | R17: 0
A18: 1 | F18: Operating Profit /(Loss) Margin | G18: Priority 1: A Capable, Ethical and Developmental State | I18: -13% | J18: -11% | K18: 9% | L18: 9% | M18: 11% | N18: 0 | O18: 0 | P18: Administration | Q18: No | R18: 0
A19: 1 | F19: Audit report | G19: Priority 1: A Capable, Ethical and Developmental State | I19: Unqualified as a result implementation of integrated internal audit plan. Decrease fruitless and wasteful expenditure. Curb irregular spend | J19: Unqualified as a result implementation of integrated internal audit plan. Decrease fruitless and wasteful expenditure. Curb irregular spend | K19: Unqualified as a result implementation of integrated internal audit plan. Decrease fruitless and wasteful expenditure. Curb irregular spend | L19: Unqualified as a result implementation of integrated internal audit plan. Decrease fruitless and wasteful expenditure. Curb irregular spend | M19: Clean audit | N19: 0 | O19: 0 | P19: Administration | Q19: No | R19: 0
A20: 1 | F20: Employment equity/high performance culture | G20: Priority 2: Economic Transformation and Job Creation | I20: Implement 80% of Group EVP Initiatives | J20: Cultural entropy / HPO: 30% of program cumulative | K20: Cultural entropy / HPO: 60% of program cumulative | L20: Cultural entropy / HPO: 75% of program cumulative | M20: Cultural entropy / HPO: 90% of program cumulative | N20: 0 | O20: 0 | P20: Administration | Q20: No | R20: 0
A21: 1 | F21: Discretionary spend BBBEE | G21: Priority 2: Economic Transformation and Job Creation | I21: 0 | J21: B-BBEE Score Level 3 | K21: B-BBEE Score Level 2 | L21: B-BBEE Score Level 1 | M21: B-BBEE Score Level 1 | N21: 0 | O21: 0 | P21: Administration | Q21: No | R21: 0
A22: 1 | F22: Stakeholder management-reputation | G22: Priority 6: Social Cohesion and Safer Communities | I22: Implement 100% of Brand Strategy Initiatives and survey impact/Maintenance of Stakeholder relation for Short term projects. 75% implementation Stakeholder Plan for long term Projects | J22: Implement Brand & Stakeholder Strategy (20% of 5yr plan) | K22: Implement Brand & Stakeholder Strategy (40% of 5yr plan) | L22: Implement Brand & Stakeholder Strategy (60% of 5yr plan) | M22: Implement Brand & Stakeholder Strategy (75% of 5yr plan) | N22: 0 | O22: 0 | P22: Administration | Q22: No | R22: 0
A23: 1 | F23: Innovation | G23: Priority 7: A Better Africa and World | I23: 0 | J23: Start of Phase 2 of the merger project | K23: Legal incorporation of SANPC as part of merger | L23: Operationallizing of SA NPC | M23: Operationallizing of SA NPC | N23: 0 | O23: 0 | P23: Administration | Q23: No | R23: 0
A24: 1 | F24: Transformation | G24: Priority 4: Consolidating the Social Wage through Reliable and Quality Basic Services | I24: 80% Level 2 LFC equivalent /80% Shareholder Satisfaction index | J24: 100% Level 2 LFC equivalent /90% Shareholder Satisfaction index | K24: Shared Services Integration : 50% of program cumulative | L24: Shared Services Integration : 75% of program cumulative | M24: Shared Services Integration : 80% of program cumulative | N24: 0 | O24: 0 | P24: Administration | Q24: No | R24: 0
A25: 1 | F25: ERM and governance maturity | G25: Priority 6: Social Cohesion and Safer Communities | I25: Achieve basic level - 40%/60% Implementation of the Revised Governance Framework as per approved Roadmap. Impact Assessment-(MOI's and TOR) | J25: Basic ERM Maturity level | K25: Developing ERM Maturity level | L25: Established ERM Maturity level | M25: Established ERM Maturity level | N25: 0 | O25: 0 | P25: Administration | Q25: No | R25: 0
A26: 1 | F26: Notes:
A27: 1 | F27: Performance indicators are an explanation of objectives performance.
A28: 1 | F28: 1. They are specific measurements that track progress towards achieving the goals and objectives of an institution.
A29: 1 | F29: 2. Institutions should use performance indicators in the 2022/23 Annual Performance Plans and those in the 2023 ENE.
A30: 1 | F30: 3. Institutions should also indicate instances where targets are not affected by budget baseline reprioritisation.
A31: 1
A32: 1 | I32: =MyYearM3 -> 2020/21 | J32: =MyYearM2 -> 2021/22 | K32: =MyYearM1 -> 2022/23 | M32: =MyYear0 -> 2023/24 | P32: =MyYearP1 -> 2024/25 | S32: =MyYearP2 -> 2025/26 | V32: =MyYearP3 -> 2026/27
A33: 1 | F33: Expenses | I33: =Hist_year3RestatedAudited -> Audited outcome | J33: =Hist_year2RestatedAudited -> Audited outcome | K33: =Hist_year1Budget -> Budget | L33: =Hist_year1Audited -> Audited outcome | M33: =Cur_YearBudgEst -> Budget estimate | N33: =Cur_YearApprovedBudg -> Approved budget | O33: =Cur_YearChangeFrRevBudg -> Changes from budget estimate | P33: =MTEF1BudgEst -> Budget estimate | Q33: =MTEF1RevBudgEst -> Revised budget estimate | R33: =MTEF1_ChangeFrBudgEst -> Changes from budget estimate | S33: =MTEF2BudgEst -> Budget estimate | T33: =MTEF2RevBudgEst -> Revised budget estimate | U33: =MTEF2_ChangeFrBudgEst -> Changes from budget estimate | V33: =MTEF3PlanBudgetEst -> Planning budget estimate
A34: 1
A35: 1 | F35: Rand thousand
A36: 1 | F36: Objective/Activity
A37: 1 | F37: Administration | I37: 473728 | J37: 233973 | K37: 659917.6486 | L37: 205694 | M37: 308452.417 | N37: 706763 | O37: =SUM(N37-M37) -> 398310.583 | P37: 326467.71 | Q37: 456108 | R37: =SUM(Q37-P37) -> 129640.29 | S37: 341426.6483 | T37: 499131 | U37: =SUM(T37-S37) -> 157704.3517 | V37: 522548
A38: 1 | F38: Economic classification
A39: 1 | B39: EX11 | F39: Current payments | I39: =SUM(I40,I43,I98:I99,I105) -> 450860 | J39: 223731 | K39: 646099.8963 | L39: 191877 | M39: 308451.9198 | N39: 680527 | O39: =SUM(N39-M39) -> 372075.0802 | P39: =SUM(P40,P43,P98:P99,P105) -> 323239.2864 | Q39: 455725 | R39: =SUM(Q39-P39) -> 132485.7136 | S39: =SUM(S40,S43,S98:S99,S105) -> 338353.2651 | T39: 499131 | U39: =SUM(T39-S39) -> 160777.7349 | V39: =SUM(V40,V43,V98:V99,V105) -> 522548
A40: 1 | B40: EX111 | F40: Compensation of employees | I40: =SUM(I41:I42) -> 102390 | J40: 103048 | K40: 150890.5201 | L40: 124420 | M40: 153706.1567 | N40: 191967 | O40: =SUM(N40-M40) -> 38260.84334 | P40: =SUM(P41:P42) -> 165568.4239 | Q40: 202112 | R40: =SUM(Q40-P40) -> 36543.57609 | S40: =SUM(S41:S42) -> 177100.3943 | T40: 217463 | U40: =SUM(T40-S40) -> 40362.60565 | V40: =SUM(V41:V42) -> 231955
A41: 1 | B41: EX1111 | F41: Salaries and wages | I41: 102390 | J41: 103048 | K41: 150890.5201 | L41: 124420 | M41: 153706.1567 | N41: 191967 | O41: =SUM(N41-M41) -> 38260.84334 | P41: 165568.4239 | Q41: 202112 | R41: =SUM(Q41-P41) -> 36543.57609 | S41: 177100.3943 | T41: 217463 | U41: =SUM(T41-S41) -> 40362.60565 | V41: 231955
A42: 1 | B42: EX1112 | F42: Social contributions | I42: 0 | J42: 0 | K42: 0 | L42: 0 | M42: 0 | N42: 0 | O42: 0 | P42: 0 | Q42: 0 | R42: 0 | S42: 0 | T42: 0 | U42: 0 | V42: 0
A43: 1 | B43: EX112 | F43: Goods and services | I43: =SUM(I45:I54,I58:I61,I73,I75:I97) -> 223223 | J43: =SUM(J45:J54,J58:J61,J73,J75:J97) -> 101537 | K43: =SUM(K45:K54,K58:K61,K73,K75:K97) -> 481079.5497 | L43: 48065 | M43: 135033.5924 | N43: 450213 | O43: 315179.4076 | P43: =SUM(P45:P54,P58:P61,P73,P75:P97) -> 140573.9229 | Q43: 197425 | R43: =SUM(R45:R54,R58:R61,R73,R75:R97) -> 56851.07705 | S43: 146018.8287 | T43: 199946 | U43: 53927.17131 | V43: 206453 | W43: 0
A44: 1 | B44: EX000 | F44: Of which 1
A45: 1 | B45: EX1133 | F45: Administrative fees | I45: 4278 | J45: 7770 | K45: 10423.9 | L45: 0 | M45: 10686.29983 | N45: 16042 | O45: =SUM(N45-M45) -> 5355.700168 | P45: 11156.49702 | Q45: 13022 | R45: =SUM(Q45-P45) -> 1865.502975 | S45: 11658.53939 | T45: 12574 | U45: =SUM(T45-S45) -> 915.4606093 | V45: 13140
A46: 1 | B46: EX1134 | F46: Advertising | I46: 466 | J46: 0 | K46: 12040 | L46: 0 | M46: 0 | N46: 14040 | O46: 14040 | P46: 0 | Q46: 42 | R46: 42 | S46: 0 | T46: 44 | U46: 44 | V46: 46
A47: 1 | B47: EX1135 | F47: Minor assets | I47: 0 | J47: 0 | K47: 0 | L47: 0 | M47: 0 | N47: 0 | O47: 0 | P47: 0 | Q47: 0 | R47: 0 | S47: 1 | T47: 0 | U47: -1 | V47: 0
A48: 1 | B48: EX1136 | F48: Audit costs: External | I48: 3239 | J48: 3898 | K48: 4180 | L48: 5457 | M48: 4355.56 | N48: 5280 | O48: 924.44 | P48: 4547.20464 | Q48: 5518 | R48: 970.79536 | S48: 4751.828849 | T48: 5766 | U48: 1014.171151 | V48: 6025
A49: 1 | B49: EX1139 | F49: Bursaries: Employees | I49: 0 | J49: 2500 | K49: 2500 | L49: 0 | M49: 2605 | N49: 2750 | O49: 145 | P49: 2719.62 | Q49: 2874 | R49: 154.38 | S49: 2842.0029 | T49: 3003 | U49: 160.9971 | V49: 3138
A50: 1 | B50: EX1140 | F50: Catering: Internal activities | I50: 148 | J50: 1423 | K50: 1157.9 | L50: 0 | M50: 1193.62438 | N50: 2210 | O50: 1016.37562 | P50: 1246.143853 | Q50: 2310 | R50: 1063.856147 | S50: 1302.220326 | T50: 2414 | U50: 1111.779674 | V50: 2522
A51: 1 | B51: EX1122 | F51: Communication (G&S) | I51: 1789 | J51: 933 | K51: 1544 | L51: 0 | M51: 1588.008 | N51: 2000 | O51: 411.992 | P51: 1657.880352 | Q51: 2090 | R51: 432.119648 | S51: 1732.484968 | T51: 2184 | U51: 451.5150322 | V51: 2282
A52: 1 | B52: EX1123 | F52: Computer services | I52: 0 | J52: 0 | K52: 0 | L52: 0 | M52: 0 | N52: 0 | O52: 0 | P52: 0 | Q52: 0 | R52: 0 | S52: 1 | T52: 0 | U52: -1 | V52: 0
A53: 1 | B53: EX1124 | F53: Consultants: Business and advisory services | I53: 128037 | J53: 20032 | K53: 258985 | L53: 12723 | M53: 61807.77 | N53: 243006 | O53: 181198.23 | P53: 62327.31188 | Q53: 126001 | R53: 63673.68812 | S53: 62882.04091 | T53: 127217 | U53: 64334.95909 | V53: 128515
A54: 1 | B54: EX1180 | F54: Infrastructure and planning services | I54: =SUM(I55:I57) -> 0 | J54: 0 | K54: 0 | L54: 0 | M54: 0 | N54: 0 | O54: =SUM(N54-M54) -> 0 | P54: =SUM(P55:P57) -> 0 | Q54: 0 | R54: =SUM(Q54-P54) -> 0 | S54: =SUM(S55:S57) -> 0 | T54: 0 | U54: =SUM(T54-S54) -> 0 | V54: =SUM(V55:V57) -> 0
A55: 1 | B55: EX11801 | F55: Maintenance and repairs: Buildings: Consultants | I55: 0 | J55: 0 | K55: 0 | L55: 0 | M55: 0 | N55: 0 | O55: =SUM(N55-M55) -> 0 | P55: 0 | Q55: 0 | R55: =SUM(Q55-P55) -> 0 | S55: 0 | T55: 0 | U55: 0 | V55: 0
A56: 1 | B56: EX11802 | F56: Maintenance and repairs: Other fixed structures: Consultants | I56: 0 | J56: 0 | K56: 0 | L56: 0 | M56: 0 | N56: 0 | O56: 0 | P56: 0 | Q56: 0 | R56: 0 | S56: 0 | T56: 0 | U56: 0 | V56: 0
A57: 1 | B57: EX11803 | F57: Other | I57: 0 | J57: 0 | K57: 0 | L57: 0 | M57: 0 | N57: 0 | O57: 0 | P57: 0 | Q57: 0 | R57: 0 | S57: 0 | T57: 0 | U57: 0 | V57: 0
A58: 1 | B58: EX1164 | F58: Laboratory services | I58: 0 | J58: 0 | K58: 0 | L58: 0 | M58: 0 | N58: 0 | O58: 0 | P58: 0 | Q58: 0 | R58: 0 | S58: 0 | T58: 0 | U58: 0 | V58: 0
A59: 1 | B59: EX1162 | F59: Legal services (G&S) | I59: 12354 | J59: 20000 | K59: 24000 | L59: 0 | M59: 6200 | N59: 25990 | O59: 19790 | P59: 6472.8 | Q59: 9170 | R59: 2697.2 | S59: 6764.076 | T59: 9582 | U59: 2817.924 | V59: 10013
A60: 1 | B60: EX1165 | F60: Science and technological services | I60: 0 | J60: 0 | K60: 0 | L60: 0 | M60: 0 | N60: 0 | O60: 0 | P60: 0 | Q60: 0 | R60: 0 | S60: 0 | T60: 0 | U60: 0 | V60: 0
A61: 1 | B61: EX1125 | F61: Contractors | I61: =SUM(I62:I66,I72) -> 4480 | J61: 0 | K61: 6853 | L61: 3972 | M61: 4980 | N61: 10044 | O61: =SUM(N61-M61) -> 5064 | P61: =SUM(P62:P66,P72) -> 5199 | Q61: 10496 | R61: =SUM(Q61-P61) -> 5297 | S61: =SUM(S62:S66,S72) -> 5433 | T61: 10968 | U61: 5535 | V61: =SUM(V62:V66,V72) -> 11462
A62: 1 | B62: EX11251 | F62: Maintenance and repairs of other fixed structures | I62: 4480 | J62: 0 | K62: 6853 | L62: 3972 | M62: 4980 | N62: 10044 | O62: 5064 | P62: 5199 | Q62: 10496 | R62: 5297 | S62: 5433 | T62: 10968 | U62: 5535 | V62: 11462
A63: 1 | B63: EX11252 | F63: Maintenance and repairs of other machinery and equipment | I63: 0 | J63: 0 | K63: 0 | L63: 0 | M63: 0 | N63: 0 | O63: 0 | P63: 0 | Q63: 0 | R63: 0 | S63: 0 | T63: 0 | U63: 0 | V63: 0
A64: 1 | B64: EX11253 | F64: Maintenance and repairs of heritage buildings | I64: 0 | J64: 0 | K64: 0 | L64: 0 | M64: 0 | N64: 0 | O64: 0 | P64: 0 | Q64: 0 | R64: 0 | S64: 0 | T64: 0 | U64: 0 | V64: 0
A65: 1 | B65: EX11254 | F65: Maintenance and repairs of other heritage fixed structures | I65: 0 | J65: 0 | K65: 0 | L65: 0 | M65: 0 | N65: 0 | O65: 0 | P65: 0 | Q65: 0 | R65: 0 | S65: 0 | T65: 0 | U65: 0 | V65: 0
A66: 5 | B66: EX11255 | F66: South african social security agency payment contractors | I66: =SUM(I67:I71) -> 0 | J66: 0 | K66: 0 | L66: 0 | M66: 0 | N66: 0 | O66: 0 | P66: =SUM(P67:P71) -> 0 | Q66: 0 | R66: 0 | S66: =SUM(S67:S71) -> 0 | T66: 0 | U66: 0 | V66: =SUM(V67:V71) -> 0
A67: 5 | B67: EX112551 | F67: SASSA Admin fees | I67: 0 | J67: 0 | K67: 0 | L67: 0 | M67: 0 | N67: 0 | O67: =SUM(N67-M67) -> 0 | P67: 0 | Q67: 0 | R67: =SUM(Q67-P67) -> 0 | S67: 0 | T67: 0 | U67: =SUM(T67-S67) -> 0 | V67: 0
A68: 5 | B68: EX112552 | F68: SASSA Bankcard fees | I68: 0 | J68: 0 | K68: 0 | L68: 0 | M68: 0 | N68: 0 | O68: 0 | P68: 0 | Q68: 0 | R68: 0 | S68: 0 | T68: 0 | U68: 0 | V68: 0
A69: 5 | B69: EX112553 | F69: SASSA registration fees | I69: 0 | J69: 0 | K69: 0 | L69: 0 | M69: 0 | N69: 0 | O69: 0 | P69: 0 | Q69: 0 | R69: 0 | S69: 0 | T69: 0 | U69: 0 | V69: 0
A70: 5 | B70: EX112554 | F70: SASSA beneficiary fees | I70: 0 | J70: 0 | K70: 0 | L70: 0 | M70: 0 | N70: 0 | O70: 0 | P70: 0 | Q70: 0 | R70: 0 | S70: 0 | T70: 0 | U70: 0 | V70: 0
A71: 5 | B71: EX112555 | F71: SASSA help desk fees | I71: 0 | J71: 0 | K71: 0 | L71: 0 | M71: 0 | N71: 0 | O71: 0 | P71: 0 | Q71: 0 | R71: 0 | S71: 0 | T71: 0 | U71: 0 | V71: 0
A72: 1 | B72: EX11256 | F72: Other | I72: 0 | J72: 0 | K72: 0 | L72: 0 | M72: 0 | N72: 0 | O72: 0 | P72: 0 | Q72: 0 | R72: 0 | S72: 0 | T72: 0 | U72: 0 | V72: 0
A73: 1 | B73: EX1121 | F73: Agency and support/outsourced services | I73: 0 | J73: 10544 | K73: 0 | L73: 0 | M73: 0 | N73: 0 | O73: 0 | P73: 0 | Q73: 0 | R73: 0 | S73: 0 | T73: 0 | U73: 0 | V73: 0
A74: 5 | B74: EX11211 | F74: Of Which: Medical assessments | I74: 0 | J74: 0 | K74: 0 | L74: 0 | M74: 0 | N74: 0 | O74: 0 | P74: 0 | Q74: 0 | R74: 0 | S74: 0 | T74: 0 | U74: 0 | V74: 0
A75: 1 | B75: EX1161 | F75: Entertainment | I75: 5 | J75: 91 | K75: 405 | L75: 405 | M75: 422 | N75: 0 | O75: -422 | P75: 441 | Q75: 0 | R75: -441 | S75: 460 | T75: 0 | U75: -460 | V75: 0
A76: 1 | B76: EX1166 | F76: Fleet services (including government motor transport) | I76: 0 | J76: 0 | K76: 0 | L76: 0 | M76: 0 | N76: 0 | O76: 0 | P76: 0 | Q76: 0 | R76: 0 | S76: 0 | T76: 0 | U76: 0 | V76: 0
A77: 1 | B77: EX1167 | F77: Housing | I77: 0 | J77: 0 | K77: 0 | L77: 0 | M77: 0 | N77: 0 | O77: 0 | P77: 0 | Q77: 0 | R77: 0 | S77: 0 | T77: 0 | U77: 0 | V77: 0
A78: 1 | B78: EX1168 | F78: Inventory: Clothing material and accessories | I78: 0 | J78: 0 | K78: 0 | L78: 0 | M78: 0 | N78: 0 | O78: 0 | P78: 0 | Q78: 0 | R78: 0 | S78: 0 | T78: 0 | U78: 0 | V78: 0
A79: 1 | B79: EX1169 | F79: Inventory: Farming supplies | I79: 0 | J79: 0 | K79: 0 | L79: 0 | M79: 0 | N79: 0 | O79: 0 | P79: 0 | Q79: 0 | R79: 0 | S79: 0 | T79: 0 | U79: 0 | V79: 0
A80: 1 | B80: EX1170 | F80: Inventory: Food and food supplies | I80: 0 | J80: 0 | K80: 0 | L80: 0 | M80: 0 | N80: 0 | O80: 0 | P80: 0 | Q80: 0 | R80: 0 | S80: 0 | T80: 0 | U80: 0 | V80: 0
A81: 1 | B81: EX1171 | F81: Inventory: Fuel, oil and gas | I81: 0 | J81: 0 | K81: 0 | L81: 0 | M81: 0 | N81: 0 | O81: 0 | P81: 0 | Q81: 0 | R81: 0 | S81: 0 | T81: 0 | U81: 0 | V81: 0
A82: 1 | B82: EX1172 | F82: Inventory: Learner and teacher support material | I82: 0 | J82: 0 | K82: 0 | L82: 0 | M82: 0 | N82: 0 | O82: 0 | P82: 0 | Q82: 0 | R82: 0 | S82: 0 | T82: 0 | U82: 0 | V82: 0
A83: 1 | B83: EX1126 | F83: Inventory: Materials and supplies | I83: 0 | J83: 0 | K83: 0 | L83: 0 | M83: 0 | N83: 0 | O83: 0 | P83: 0 | Q83: 0 | R83: 0 | S83: 0 | T83: 0 | U83: 0 | V83: 0
A84: 1 | B84: EX1173 | F84: Inventory: Medical supplies | I84: 0 | J84: 0 | K84: 0 | L84: 0 | M84: 0 | N84: 0 | O84: 0 | P84: 0 | Q84: 0 | R84: 0 | S84: 0 | T84: 0 | U84: 0 | V84: 0
A85: 1 | B85: EX1174 | F85: Inventory: Medicine | I85: 0 | J85: 0 | K85: 0 | L85: 0 | M85: 0 | N85: 0 | O85: 0 | P85: 0 | Q85: 0 | R85: 0 | S85: 0 | T85: 0 | U85: 0 | V85: 0
A86: 1 | B86: EX1175 | F86: Medsas inventory interface | I86: 0 | J86: 0 | K86: 0 | L86: 0 | M86: 0 | N86: 0 | O86: 0 | P86: 0 | Q86: 0 | R86: 0 | S86: 0 | T86: 0 | U86: 0 | V86: 0
A87: 1 | B87: EX1176 | F87: Inventory: Other supplies | I87: 0 | J87: 0 | K87: 0 | L87: 0 | M87: 0 | N87: 0 | O87: 0 | P87: 0 | Q87: 0 | R87: 0 | S87: 0 | T87: 0 | U87: 0 | V87: 0
A88: 1 | B88: EX1177 | F88: Consumable supplies | I88: 0 | J88: 0 | K88: 0 | L88: 0 | M88: 0 | N88: 0 | O88: 0 | P88: 0 | Q88: 0 | R88: 0 | S88: 0 | T88: 0 | U88: 0 | V88: 0
A89: 1 | B89: EX1144 | F89: Consumables: Stationery, printing and office supplies | I89: 1437 | J89: 1996 | K89: 1846 | L89: 1277 | M89: 1964.7404 | N89: 1019 | O89: -945.7404 | P89: 2050.384978 | Q89: 1047 | R89: -1003.384978 | S89: 2141.762302 | T89: 1094 | U89: -1047.762302 | V89: 1143
A90: 1 | B90: EX1127 | F90: Operating leases | I90: 198 | J90: 472 | K90: 496.8 | L90: 6765 | M90: 517.6656 | N90: 401 | O90: -116.6656 | P90: 540.4428864 | Q90: 419 | R90: -121.4428864 | S90: 564.7628163 | T90: 438 | U90: -126.7628163 | V90: 430
A91: 1 | B91: EX1178 | F91: Rental and hiring | I91: 0 | J91: 0 | K91: 0 | L91: 0 | M91: 0 | N91: 0 | O91: 0 | P91: 0 | Q91: 0 | R91: 0 | S91: 0 | T91: 0 | U91: 0 | V91: 0
A92: 1 | B92: EX1145 | F92: Property payments | I92: 3483 | J92: 5130 | K92: 5590 | L92: 3593 | M92: 5824.78 | N92: 1746 | O92: -4078.78 | P92: 6081.07032 | Q92: 1825 | R92: -4256.07032 | S92: 6354.718484 | T92: 1907 | U92: -4447.718484 | V92: 1992
A93: 1 | B93: EX1179 | F93: Transport provided: Internal activities | I93: 0 | J93: 20 | K93: 21.6 | L93: 0 | M93: 22.5072 | N93: 0 | O93: -22.5072 | P93: 23.4975168 | Q93: 0 | R93: -23.4975168 | S93: 24.55490506 | T93: 0 | U93: -24.55490506 | V93: 0
A94: 1 | B94: EX1131 | F94: Travel and subsistence | I94: 1640 | J94: 9904 | K94: 10239 | L94: 3581 | M94: 8494.059926 | N94: 10976 | O94: 2481.940074 | P94: 8867.798563 | Q94: 11251 | R94: 2383.201437 | S94: 9266.849498 | T94: 11758 | U94: 2491.150502 | V94: 12289
A95: 1 | B95: EX1130 | F95: Training and development | I95: 489 | J95: 5104 | K95: 11409.67536 | L95: 0 | M95: 9539.117455 | N95: 14557 | O95: 5017.882545 | P95: 10014.63509 | Q95: 9557 | R95: -457.6350887 | S95: 10512.82288 | T95: 9998 | U95: -514.8228796 | V95: 10456
A96: 1 | B96: EX1132 | F96: Operating payments | I96: 61180 | J96: 11720 | K96: 129387.6743 | L96: 10292 | M96: 14832.45962 | N96: 100152 | O96: 85319.54038 | P96: 17228.63584 | Q96: 1803 | R96: -15425.63584 | S96: 19325.16446 | T96: 999 | U96: -18326.16446 | V96: 3000
A97: 1 | B97: EX1146 | F97: Venues and facilities | I97: 0 | J97: 0 | K97: 0 | L97: 0 | M97: 0 | N97: 0 | O97: 0 | P97: 0 | Q97: 0 | R97: 0 | S97: 0 | T97: 0 | U97: 0 | V97: 0
A98: 1 | B98: EX113 | F98: Depreciation | I98: 11034 | J98: 11626 | K98: 11627 | L98: 8843 | M98: 10479 | N98: 11627 | O98: 1148 | P98: 9038 | Q98: 10479 | R98: 1441 | S98: 7954 | T98: 9038 | U98: 1084 | V98: 7954
A99: 1 | B99: EX114 | F99: Losses from | I99: =SUM(I100:I101,I104) -> 0 | J99: 0 | K99: 1550 | L99: 0 | M99: 1734 | N99: 0 | O99: =SUM(N99-M99) -> -1734 | P99: =SUM(P100:P101,P104) -> 1769 | Q99: 0 | R99: =SUM(Q99-P99) -> -1769 | S99: =SUM(S100:S101,S104) -> 1804 | T99: 0 | U99: =SUM(T99-S99) -> -1804 | V99: =SUM(V100:V101,V104) -> 0
A100: 1 | B100: EX1141 | F100: Sale of fixed assets | I100: 0 | J100: 0 | K100: 0 | L100: 0 | M100: 0 | N100: 0 | O100: 0 | P100: 0 | Q100: 0 | R100: 0 | S100: 0 | T100: 0 | U100: =SUM(T100-S100) -> 0 | V100: 0
A101: 1 | B101: EX1142 | F101: Impairments and adjustments to fair value | I101: =SUM(I102:I103) -> 0 | J101: 0 | K101: 1550 | L101: 0 | M101: 1734 | N101: 0 | O101: -1734 | P101: =SUM(P102:P103) -> 1769 | Q101: 0 | R101: -1769 | S101: =SUM(S102:S103) -> 1804 | T101: 0 | U101: -1804 | V101: =SUM(V102:V103) -> 0
A102: 1 | B102: EX11421 | F102: Adjustments to fair value of assets | I102: 0 | J102: 0 | K102: 0 | L102: 0 | M102: 0 | N102: 0 | O102: 0 | P102: 0 | Q102: 0 | R102: 0 | S102: 0 | T102: 0 | U102: =SUM(T102-S102) -> 0 | V102: 0
A103: 1 | B103: EX11422 | F103: Impairments to assets | I103: 0 | J103: 0 | K103: 1550 | L103: 0 | M103: 1734 | N103: 0 | O103: -1734 | P103: 1769 | Q103: 0 | R103: -1769 | S103: 1804 | T103: 0 | U103: -1804 | V103: 0
A104: 1 | B104: EX1143 | F104: Other | I104: 0 | J104: 0 | K104: 0 | L104: 0 | M104: 0 | N104: 0 | O104: 0 | P104: 0 | Q104: 0 | R104: 0 | S104: 0 | T104: 0 | U104: 0 | V104: 0
A105: 1 | B105: EX115 | F105: Interest, dividends and rent on land | I105: =SUM(I106:I108) -> 114213 | J105: 7520 | K105: 952.8264889 | L105: 10549 | M105: 7499.170732 | N105: 26720 | O105: 19220.82927 | P105: =SUM(P106:P108) -> 6289.93957 | Q105: 45709 | R105: 39419.06043 | S105: =SUM(S106:S108) -> 5476.04209 | T105: 72684 | U105: 67207.95791 | V105: =SUM(V106:V108) -> 76186
A106: 1 | B106: EX1151 | F106: Interest | I106: 114213 | J106: 7520 | K106: 952.8264889 | L106: 10549 | M106: 7499.170732 | N106: 26720 | O106: 19220.82927 | P106: 6289.93957 | Q106: 45709 | R106: 39419.06043 | S106: 5476.04209 | T106: 72684 | U106: =SUM(T106-S106) -> 67207.95791 | V106: 76186
A107: 1 | B107: EX1152 | F107: Dividends | I107: 0 | J107: 0 | K107: 0 | L107: 0 | M107: 0 | N107: 0 | O107: 0 | P107: 0 | Q107: 0 | R107: 0 | S107: 0 | T107: 0 | U107: 0 | V107: 0
A108: 1 | B108: EX1153 | F108: Rent on land | I108: 0 | J108: 0 | K108: 0 | L108: 0 | M108: 0 | N108: 0 | O108: 0 | P108: 0 | Q108: 0 | R108: 0 | S108: 0 | T108: 0 | U108: 0 | V108: 0
A109: 1 | B109: EX12 | F109: Transfers and subsidies | I109: =SUM(I110,I121,I132:I135) -> 0 | J109: 0 | K109: 0 | L109: 0 | M109: 0 | N109: 0 | O109: 0 | P109: =SUM(P110,P121,P132:P135) -> 0 | Q109: 0 | R109: 0 | S109: =SUM(S110,S121,S132:S135) -> 0 | T109: 0 | U109: 0 | V109: =SUM(V110,V121,V132:V135) -> 0
A110: 2 | B110: EX121 | F110: Employer Grant (SETAs only) | I110: =SUM(I111,I117,I120) -> 0 | J110: 0 | K110: 0 | L110: 0 | M110: 0 | N110: 0 | O110: 0 | P110: =SUM(P111,P117,P120) -> 0 | Q110: 0 | R110: 0 | S110: =SUM(S111,S117,S120) -> 0 | T110: 0 | U110: 0 | V110: =SUM(V111,V117,V120) -> 0
A111: 1 | B111: EX122 | F111: Other government units | I111: =SUM(I112:I116) -> 0 | J111: 0 | K111: 0 | L111: 0 | M111: 0 | N111: 0 | O111: 0 | P111: =SUM(P112:P116) -> 0 | Q111: 0 | R111: 0 | S111: =SUM(S112:S116) -> 0 | T111: 0 | U111: 0 | V111: =SUM(V112:V116) -> 0
A112: 1 | B112: EX1221 | F112: National government | I112: 0 | J112: 0 | K112: 0 | L112: 0 | M112: 0 | N112: 0 | O112: 0 | P112: 0 | Q112: 0 | R112: 0 | S112: 0 | T112: 0 | U112: =SUM(T112-S112) -> 0 | V112: 0
A113: 1 | B113: EX1222 | F113: Departmental agencies and accounts | I113: 0 | J113: 0 | K113: 0 | L113: 0 | M113: 0 | N113: 0 | O113: 0 | P113: 0 | Q113: 0 | R113: 0 | S113: 0 | T113: 0 | U113: 0 | V113: 0
A114: 1 | B114: EX1223 | F114: Provinces | I114: 0 | J114: 0 | K114: 0 | L114: 0 | M114: 0 | N114: 0 | O114: 0 | P114: 0 | Q114: 0 | R114: 0 | S114: 0 | T114: 0 | U114: 0 | V114: 0
A115: 1 | B115: EX1224 | F115: Municipalities | I115: 0 | J115: 0 | K115: 0 | L115: 0 | M115: 0 | N115: 0 | O115: 0 | P115: 0 | Q115: 0 | R115: 0 | S115: 0 | T115: 0 | U115: 0 | V115: 0
A116: 2 | B116: EX1225 | F116: National Skills Fund | I116: 0 | J116: 0 | K116: 0 | L116: 0 | M116: 0 | N116: 0 | O116: 0 | P116: 0 | Q116: 0 | R116: 0 | S116: 0 | T116: 0 | U116: 0 | V116: 0
A117: 1 | B117: EX123 | F117: Public corporations and private enterprises (subsidies and other transfers) | I117: =SUM(I118:I119) -> 0 | J117: 0 | K117: 0 | L117: 0 | M117: 0 | N117: 0 | O117: 0 | P117: =SUM(P118:P119) -> 0 | Q117: 0 | R117: 0 | S117: =SUM(S118:S119) -> 0 | T117: 0 | U117: 0 | V117: =SUM(V118:V119) -> 0
A118: 1 | B118: EX1231 | F118: Public corporations | I118: 0 | J118: 0 | K118: 0 | L118: 0 | M118: 0 | N118: 0 | O118: 0 | P118: 0 | Q118: 0 | R118: 0 | S118: 0 | T118: 0 | U118: =SUM(T118-S118) -> 0 | V118: 0
A119: 1 | B119: EX1232 | F119: Private enterprises | I119: 0 | J119: 0 | K119: 0 | L119: 0 | M119: 0 | N119: 0 | O119: 0 | P119: 0 | Q119: 0 | R119: 0 | S119: 0 | T119: 0 | U119: 0 | V119: 0
A120: 2 | B120: EX124 | F120: Households and non government units | I120: 0 | J120: 0 | K120: 0 | L120: 0 | M120: 0 | N120: 0 | O120: 0 | P120: 0 | Q120: 0 | R120: 0 | S120: 0 | T120: 0 | U120: 0 | V120: 0
A121: 2 | B121: EX125 | F121: Discretionary Grant (SETAs only) | I121: =SUM(I122,I128,I131) -> 0 | J121: 0 | K121: 0 | L121: 0 | M121: 0 | N121: 0 | O121: 0 | P121: =SUM(P122,P128,P131) -> 0 | Q121: 0 | R121: 0 | S121: =SUM(S122,S128,S131) -> 0 | T121: 0 | U121: 0 | V121: =SUM(V122,V128,V131) -> 0
A122: 2 | B122: EX126 | F122: Other government units | I122: =SUM(I123:I127) -> 0 | J122: 0 | K122: 0 | L122: 0 | M122: 0 | N122: 0 | O122: 0 | P122: =SUM(P123:P127) -> 0 | Q122: 0 | R122: 0 | S122: =SUM(S123:S127) -> 0 | T122: 0 | U122: 0 | V122: =SUM(V123:V127) -> 0
A123: 2 | B123: EX1261 | F123: National government | I123: 0 | J123: 0 | K123: 0 | L123: 0 | M123: 0 | N123: 0 | O123: 0 | P123: 0 | Q123: 0 | R123: 0 | S123: 0 | T123: 0 | U123: =SUM(T123-S123) -> 0 | V123: 0
A124: 2 | B124: EX1262 | F124: Departmental agencies and accounts | I124: 0 | J124: 0 | K124: 0 | L124: 0 | M124: 0 | N124: 0 | O124: 0 | P124: 0 | Q124: 0 | R124: 0 | S124: 0 | T124: 0 | U124: 0 | V124: 0
A125: 2 | B125: EX1263 | F125: Provinces | I125: 0 | J125: 0 | K125: 0 | L125: 0 | M125: 0 | N125: 0 | O125: 0 | P125: 0 | Q125: 0 | R125: 0 | S125: 0 | T125: 0 | U125: 0 | V125: 0
A126: 2 | B126: EX1264 | F126: Municipalities | I126: 0 | J126: 0 | K126: 0 | L126: 0 | M126: 0 | N126: 0 | O126: 0 | P126: 0 | Q126: 0 | R126: 0 | S126: 0 | T126: 0 | U126: 0 | V126: 0
A127: 2 | B127: EX1265 | F127: National Skills Fund | I127: 0 | J127: 0 | K127: 0 | L127: 0 | M127: 0 | N127: 0 | O127: 0 | P127: 0 | Q127: 0 | R127: 0 | S127: 0 | T127: 0 | U127: 0 | V127: 0
A128: 2 | B128: EX127 | F128: Public corporations and private enterprises (subsidies and other transfers) | I128: =SUM(I129:I130) -> 0 | J128: 0 | K128: 0 | L128: 0 | M128: 0 | N128: 0 | O128: 0 | P128: =SUM(P129:P130) -> 0 | Q128: 0 | R128: 0 | S128: =SUM(S129:S130) -> 0 | T128: 0 | U128: 0 | V128: =SUM(V129:V130) -> 0
A129: 2 | B129: EX1271 | F129: Public corporations | I129: 0 | J129: 0 | K129: 0 | L129: 0 | M129: 0 | N129: 0 | O129: 0 | P129: 0 | Q129: 0 | R129: 0 | S129: 0 | T129: 0 | U129: =SUM(T129-S129) -> 0 | V129: 0
A130: 2 | B130: EX1272 | F130: Private enterprises | I130: 0 | J130: 0 | K130: 0 | L130: 0 | M130: 0 | N130: 0 | O130: 0 | P130: 0 | Q130: 0 | R130: 0 | S130: 0 | T130: 0 | U130: 0 | V130: 0
A131: 2 | B131: EX128 | F131: Households and non government units | I131: 0 | J131: 0 | K131: 0 | L131: 0 | M131: 0 | N131: 0 | O131: 0 | P131: 0 | Q131: 0 | R131: 0 | S131: 0 | T131: 0 | U131: 0 | V131: 0
A132: 1 | B132: EX129 | F132: Higher education institutions | I132: 0 | J132: 0 | K132: 0 | L132: 0 | M132: 0 | N132: 0 | O132: 0 | P132: 0 | Q132: 0 | R132: 0 | S132: 0 | T132: 0 | U132: 0 | V132: 0
A133: 1 | B133: EX130 | F133: Foreign governments and international organisations | I133: 0 | J133: 0 | K133: 0 | L133: 0 | M133: 0 | N133: 0 | O133: 0 | P133: 0 | Q133: 0 | R133: 0 | S133: 0 | T133: 0 | U133: 0 | V133: 0
A134: 1 | B134: EX131 | F134: Non-profit institutions | I134: 0 | J134: 0 | K134: 0 | L134: 0 | M134: 0 | N134: 0 | O134: 0 | P134: 0 | Q134: 0 | R134: 0 | S134: 0 | T134: 0 | U134: 0 | V134: 0
A135: 1 | B135: EX132 | F135: Households | I135: =SUM(I136:I137) -> 0 | J135: 0 | K135: 0 | L135: 0 | M135: 0 | N135: 0 | O135: =SUM(N135-M135) -> 0 | P135: =SUM(P136:P137) -> 0 | Q135: 0 | R135: =SUM(Q135-P135) -> 0 | S135: =SUM(S136:S137) -> 0 | T135: 0 | U135: =SUM(T135-S135) -> 0 | V135: =SUM(V136:V137) -> 0
A136: 1 | B136: EX1301 | F136: Social benefits | I136: 0 | J136: 0 | K136: 0 | L136: 0 | M136: 0 | N136: 0 | O136: =SUM(N136-M136) -> 0 | P136: 0 | Q136: 0 | R136: =SUM(Q136-P136) -> 0 | S136: 0 | T136: 0 | U136: =SUM(T136-S136) -> 0 | V136: 0
A137: 1 | B137: EX1302 | F137: Other transfers to households | I137: 0 | J137: 0 | K137: 0 | L137: 0 | M137: 0 | N137: 0 | O137: 0 | P137: 0 | Q137: 0 | R137: 0 | S137: 0 | T137: 0 | U137: 0 | V137: 0
A138: 1 | B138: EX13 | F138: Tax payment | I138: 22868 | J138: 10242 | K138: 13817.28241 | L138: 13817.28241 | M138: 0 | N138: 26236 | O138: 26236 | P138: 3228.142335 | Q138: 383 | R138: -2845.142335 | S138: 3072.902222 | T138: 0 | U138: -3072.902222 | V138: 0
A139: 1 | B139: EX14 | F139: Outside shareholders Interest | I139: 0 | J139: 0 | K139: 0 | L139: 0 | M139: 0 | N139: 0 | O139: 0 | P139: 0 | Q139: 0 | R139: 0 | S139: 0 | T139: 0 | U139: 0 | V139: 0
A140: 1 | B140: EX15 | F140: Total Expenditure | I140: =SUM(I39,I109,I138:I139) -> 473728 | J140: 233973 | K140: 659917.1787 | L140: 205694.2824 | M140: 308451.9198 | N140: 706763 | O140: 398311.0802 | P140: =SUM(P39,P109,P138:P139) -> 326467.4288 | Q140: =SUM(Q39,Q109,Q138:Q139) -> 456108 | R140: 129640.5712 | S140: =SUM(S39,S109,S138:S139) -> 341426.1673 | T140: =SUM(T39,T109,T138:T139) -> 499131 | U140: 157704.8327 | V140: =SUM(V39,V109,V138:V139) -> 522548
A141: 1
A142: 1 | F142: Objective less Expenditure | I142: =ROUND(IF(I37-I140>0,IF(I37-I140<1,0,I37-I140),I37-I140),0) -> 0 | J142: 0 | L142: 0 | M142: 0 | N142: 0 | O142: =ROUND(IF(O37-O140>0,IF(O37-O140<1,0,O37-O140),O37-O140),0) -> 0 | P142: 0 | Q142: 0 | R142: 0 | S142: 0 | T142: 0 | U142: 0 | V142: 0
A143: 1

Sheet 2
F6: PE No | G6: =Settings!O2 -> PE18
F7: Entity name | G7: =Settings!$E$2 -> CEF (Pty) Ltd
F9: Performance and operations information
A10: ItemCat | B10: Item code | C10: Hide/unhide | F10: Activity/Output/Outcome/Efficiency Indicator | G10: Priorities | I10: =MyYearM3 -> 2020/21 | J10: =MyYearM2 -> 2021/22 | K10: =MyYearM1 -> 2022/23 | L10: =MyYear0 -> 2023/24 | M10: =MyYearP1 -> 2024/25 | N10: =MyYearP2 -> 2025/26 | O10: =MyYearP3 -> 2026/27 | P10: Related Objectives | Q10: Add to 'Performance Indicators' Sheet | R10: Comments
A11: 1 | F11: Monitoring and evaluation of commercial sustainability initiatives | G11: Priority 1: A Capable, Ethical and Developmental State | I11: Net Loss of R274 million per annum | J11: Net loss of R200 million per annum | K11: Net loss of R67 million per annum | L11: Net profit of R244 million per annum | M11: Net profit of R267 million per annum | N11: Net profit of R282 million per annum | O11: Net profit of R509 million per annum | P11: Clean and renewable energy | Q11: No | R11: 0
A12: 1 | F12: Phase 2 of the Cabinet approved merger project implementation | G12: Priority 1: A Capable, Ethical and Developmental State | I12: Execution of merger within stated timelines | J12: Execution of merger within stated timelines | K12: Obtained Cabinet approval for SA NPC incorporation and transition plan by Q1 of FY 2022/23 | L12: SA NPC Incorporation | M12: Implement 100 % of Phase 2 of the merger project | N12: Implement 100 % of Phase 2 of the merger project | O12: Implement 100 % of Phase 2 of the merger project | P12: Clean and renewable energy and Oil pollution | Q12: No | R12: 0
A13: 1 | F13: Development of the project pipeline as per CEF mandate. Strategic acquisition of brownfield assets to grow the exiting O&G operations along the energy value chain (initial investments in downstream assets) | G13: Priority 1: A Capable, Ethical and Developmental State | I13: 0% Increase in asset value | J13: 0% Increase in asset value | K13: 2% Increase in asset value | L13: Two Board approved business development opportunities commercial proposals by Q4 of 2023/24 | M13: Two Board approved business development opportunities commercial proposals by Q4 of 2024/25 | N13: Two Board approved business development opportunities commercial proposals by Q4 of 20235/26 | O13: Two Board approved business development opportunities commercial proposals by Q4 of 2026/27 | P13: Clean and renewable energy | Q13: No | R13: 0
A14: 1 | F14: Return on Investment (ROI) | G14: Priority 1: A Capable, Ethical and Developmental State | I14: Return on Investment (ROI) = 6% | J14: Return on Investment (ROI) = 6% | K14: Return on Investment (ROI) = 8% | L14: Return on Investment (ROI) = 9% | M14: Return on Investment (ROI) = 15% | N14: Return on Investment (ROI) = 15% | O14: 0 | P14: Clean and renewable energy | Q14: No | R14: 0
A15: 1 | F15: Update Enterprise ICT Strategy | G15: Priority 3: Education, Skills and Health | I15: Future state IT architecture definition | J15: o Automation rate > 20% | K15: A framework for digital transformation showing processes to be prioritized, expected results and phasing over the planning period | L15: Board approved ICT strategy | M15: Implement 30% of ICT Strategy | N15: Implement 60% of ICT Strategy | O15: Implement 90% of ICT Strategy | P15: Clean and renewable energy | Q15: No | R15: 0
A16: 1 | F16: Implement the CEF Group Master Brand Strategy. Developing the brand architecture and a brand strategy to enhance the reputation with external stakeholders | G16: Priority 4: Consolidating the Social Wage through Reliable and Quality Basic Services | I16: Craft Brand & Stakeholder Strategy | J16: Implement Brand & Stakeholder Strategy (20% of 5yr plan) | K16: Continue with implementation of corporate brand architecture and a brand strategy | L16: Achieve Brand Reputation Score of 50% | M16: Achieve Brand Reputation Score of 70% | N16: Achieve Brand Reputation Score of 80% | O16: Achieve Brand Reputation Score of 80% | P16: Clean and renewable energy | Q16: No | R16: 0
A17: 1 | F17: Conduct extensive business opportunity market research | G17: Priority 1: A Capable, Ethical and Developmental State | I17: 0 | J17: 0 | K17: 0 | L17: Two Board-approved s54 applications | M17: One Board-approved s54 applications during Q4 | N17: One Board-approved s54 applications during Q4 | O17: One Board-approved s54 applications during Q4 | P17: Clean and renewable energy | Q17: No | R17: 0
A18: 1 | F18: Execution of the CEF SOC repositioning Shared service model | G18: Priority 1: A Capable, Ethical and Developmental State | I18: On time delivery of priority projects | J18: On time delivery of priority projects | K18: On time delivery of priority projects | L18: Implementation of the approved CEF SOC repositioning shared services roadmap Phase 1 (10% standardization) | M18: Implementation of the approved CEF SOC repositioning shared services roadmap Phase 1 (50% standardization) | N18: Completion of Phase 1 of CEF SOC repositioning Shared Services model | O18: Implementation of Phase 2 of CEF SOC repositioning Shared Services model | P18: Clean and renewable energy | Q18: No | R18: 0
A19: 1 | F19: Maximize returns on the cash investments | G19: Priority 1: A Capable, Ethical and Developmental State | I19: 0 | J19: Strategic investment in O&G assets and infrastructure | K19: 4% return on cash investments | L19: NACM rate | M19: 7.46% return on cash investments | N19: 7.46% return on cash investments | O19: 7.47% return on cash investments | P19: Clean and renewable energy | Q19: No | R19: 0
A20: 1 | F20: Implement the dividend policy and SLA on services rendered to subsidiaries | G20: Priority 1: A Capable, Ethical and Developmental State | I20: 0 | J20: Assess subsidiaries’ ability to repay loans/pay dividends | K20: Collect 100% dividends and service fees from subsidiaries | L20: Dividend Income | M20: Collect 100% dividends due from subsidiaries | N20: Collect 100% dividends due from subsidiaries | O20: Collect 100% dividends due from subsidiaries | P20: Clean and renewable energy | Q20: No | R20: 0
A21: 1 | F21: 0 | G21: 0 | I21: 0 | J21: 0 | K21: 0 | L21: 0 | M21: 0 | N21: 0 | O21: 0 | P21: 0 | Q21: 0 | R21: 0
A22: 1 | F22: 0 | G22: 0 | I22: 0 | J22: 0 | K22: 0 | L22: 0 | M22: 0 | N22: 0 | O22: 0 | P22: 0 | Q22: 0 | R22: 0
A23: 1 | F23: 0 | G23: 0 | I23: 0 | J23: 0 | K23: 0 | L23: 0 | M23: 0 | N23: 0 | O23: 0 | P23: 0 | Q23: 0 | R23: 0
A24: 1 | F24: 0 | G24: 0 | I24: 0 | J24: 0 | K24: 0 | L24: 0 | M24: 0 | N24: 0 | O24: 0 | P24: 0 | Q24: 0 | R24: 0
A25: 1 | F25: 0 | G25: 0 | I25: 0 | J25: 0 | K25: 0 | L25: 0 | M25: 0 | N25: 0 | O25: 0 | P25: 0 | Q25: 0 | R25: 0
A26: 1 | F26: Notes:
A27: 1 | F27: Performance indicators are an explanation of objectives performance.
A28: 1 | F28: 1. They are specific measurements that track progress towards achieving the goals and objectives of an institution.
A29: 1 | F29: 2. Institutions should use performance indicators in the 2022/23 Annual Performance Plans and those in the 2023 ENE.
A30: 1 | F30: 3. Institutions should also indicate instances where targets are not affected by budget baseline reprioritisation.
A31: 1
A32: 1 | I32: =MyYearM3 -> 2020/21 | J32: =MyYearM2 -> 2021/22 | K32: =MyYearM1 -> 2022/23 | M32: =MyYear0 -> 2023/24 | P32: =MyYearP1 -> 2024/25 | S32: =MyYearP2 -> 2025/26 | V32: =MyYearP3 -> 2026/27
A33: 1 | F33: Expenses | I33: =Hist_year3RestatedAudited -> Audited outcome | J33: =Hist_year2RestatedAudited -> Audited outcome | K33: =Hist_year1Budget -> Budget | L33: =Hist_year1Audited -> Audited outcome | M33: =Cur_YearBudgEst -> Budget estimate | N33: =Cur_YearApprovedBudg -> Approved budget | O33: =Cur_YearChangeFrRevBudg -> Changes from budget estimate | P33: =MTEF1BudgEst -> Budget estimate | Q33: =MTEF1RevBudgEst -> Revised budget estimate | R33: =MTEF1_ChangeFrBudgEst -> Changes from budget estimate | S33: =MTEF2BudgEst -> Budget estimate | T33: =MTEF2RevBudgEst -> Revised budget estimate | U33: =MTEF2_ChangeFrBudgEst -> Changes from budget estimate | V33: =MTEF3PlanBudgetEst -> Planning budget estimate
A34: 1
A35: 1 | F35: Rand thousand
A36: 1 | F36: Objective/Activity
A37: 1 | F37: Clean and renewable energy | I37: 1647 | J37: 8990 | K37: 45791.9422 | L37: 37568 | M37: 39980.66886 | N37: 40386 | O37: =SUM(N37-M37) -> 405.3311364 | P37: 105110.6937 | Q37: 38133 | R37: =SUM(Q37-P37) -> -66977.69375 | S37: 105203.2106 | T37: 40115 | U37: =SUM(T37-S37) -> -65088.21062 | V37: 42251
A38: 1 | F38: Economic classification
A39: 1 | B39: EX11 | F39: Current payments | I39: =SUM(I40,I43,I98:I99,I105) -> 1646.908 | J39: 8990 | K39: 45791.9422 | L39: 37568 | M39: 39980.66886 | N39: 40386 | O39: =SUM(N39-M39) -> 405.3311364 | P39: =SUM(P40,P43,P98:P99,P105) -> 105110.6937 | Q39: 38133 | R39: =SUM(Q39-P39) -> -66977.69375 | S39: =SUM(S40,S43,S98:S99,S105) -> 105203.2106 | T39: 40115 | U39: =SUM(T39-S39) -> -65088.21062 | V39: =SUM(V40,V43,V98:V99,V105) -> 42251
A40: 1 | B40: EX111 | F40: Compensation of employees | I40: =SUM(I41:I42) -> 0 | J40: 0 | K40: 0 | L40: 0 | M40: 0 | N40: 0 | O40: =SUM(N40-M40) -> 0 | P40: =SUM(P41:P42) -> 0 | Q40: 0 | R40: =SUM(Q40-P40) -> 0 | S40: =SUM(S41:S42) -> 0 | T40: 0 | U40: =SUM(T40-S40) -> 0 | V40: =SUM(V41:V42) -> 0
A41: 1 | B41: EX1111 | F41: Salaries and wages | I41: 0 | J41: 0 | K41: 0 | L41: 0 | M41: 0 | N41: 0 | O41: =SUM(N41-M41) -> 0 | P41: 0 | Q41: 0 | R41: =SUM(Q41-P41) -> 0 | S41: 0 | T41: 0 | U41: =SUM(T41-S41) -> 0 | V41: 0
A42: 1 | B42: EX1112 | F42: Social contributions | I42: 0 | J42: 0 | K42: 0 | L42: 0 | M42: 0 | N42: 0 | O42: 0 | P42: 0 | Q42: 0 | R42: 0 | S42: 0 | T42: 0 | U42: 0 | V42: 0
A43: 1 | B43: EX112 | F43: Goods and services | I43: =SUM(I45:I54,I58:I61,I73,I75:I97) -> 1636.908 | J43: =SUM(J45:J54,J58:J61,J73,J75:J97) -> 8990 | K43: 7991.942196 | L43: 7419 | M43: 2180.668864 | N43: 6599 | O43: 4418.331136 | P43: 2065.041625 | Q43: 2606 | R43: 540.9583752 | S43: 2157.558498 | T43: 2658 | U43: 500.4415021 | V43: 2760 | W43: =SUM(W45:W54,W58:W61,W73,W75:W97) -> 0
A44: 1 | B44: EX000 | F44: Of which 1
A45: 1 | B45: EX1133 | F45: Administrative fees | I45: 0 | J45: 0 | K45: 0 | L45: 0 | M45: 0 | N45: 0 | O45: =SUM(N45-M45) -> 0 | P45: 0 | Q45: 0 | R45: =SUM(Q45-P45) -> 0 | S45: 0 | T45: 0 | U45: =SUM(T45-S45) -> 0 | V45: 0
A46: 1 | B46: EX1134 | F46: Advertising | I46: 0 | J46: 0 | K46: 0 | L46: 0 | M46: 0 | N46: 0 | O46: 0 | P46: 0 | Q46: 0 | R46: 0 | S46: 0 | T46: 0 | U46: 0 | V46: 0
A47: 1 | B47: EX1135 | F47: Minor assets | I47: 0 | J47: 0 | K47: 0 | L47: 0 | M47: 0 | N47: 0 | O47: 0 | P47: 0 | Q47: 0 | R47: 0 | S47: 0 | T47: 0 | U47: 0 | V47: 0
A48: 1 | B48: EX1136 | F48: Audit costs: External | I48: 233.644 | J48: 270 | K48: 544.4512 | L48: 285 | M48: 568.5750245 | N48: 289 | O48: -279.5750245 | P48: 428.54176 | Q48: 302 | R48: -126.54176 | S48: 447.4161392 | T48: 316 | U48: -131.4161392 | V48: 329
A49: 1 | B49: EX1139 | F49: Bursaries: Employees | I49: 0 | J49: 0 | K49: 0 | L49: 0 | M49: 0 | N49: 0 | O49: 0 | P49: 0 | Q49: 0 | R49: 0 | S49: 0 | T49: 0 | U49: 0 | V49: 0
A50: 1 | B50: EX1140 | F50: Catering: Internal activities | I50: 0 | J50: 0 | K50: 0 | L50: 0 | M50: 0 | N50: 0 | O50: 0 | P50: 0 | Q50: 0 | R50: 0 | S50: 0 | T50: 0 | U50: 0 | V50: 0
A51: 1 | B51: EX1122 | F51: Communication (G&S) | I51: 0 | J51: 0 | K51: 0 | L51: 0 | M51: 0 | N51: 0 | O51: 0 | P51: 0 | Q51: 0 | R51: 0 | S51: 0 | T51: 0 | U51: 0 | V51: 0
A52: 1 | B52: EX1123 | F52: Computer services | I52: 0 | J52: 0 | K52: 0 | L52: 0 | M52: 0 | N52: 0 | O52: 0 | P52: 0 | Q52: 0 | R52: 0 | S52: 0 | T52: 0 | U52: 0 | V52: 0
A53: 1 | B53: EX1124 | F53: Consultants: Business and advisory services | I53: 195.5 | J53: 533 | K53: 4500 | L53: 0 | M53: 0 | N53: 4000 | O53: 4000 | P53: 0 | Q53: 0 | R53: 0 | S53: 0 | T53: 0 | U53: 0 | V53: 0
A54: 1 | B54: EX1180 | F54: Infrastructure and planning services | I54: =SUM(I55:I57) -> 0 | J54: 0 | K54: 0 | L54: 0 | M54: 0 | N54: 0 | O54: =SUM(N54-M54) -> 0 | P54: =SUM(P55:P57) -> 0 | Q54: 0 | R54: =SUM(Q54-P54) -> 0 | S54: =SUM(S55:S57) -> 0 | T54: 0 | U54: 0 | V54: =SUM(V55:V57) -> 0
A55: 1 | B55: EX11801 | F55: Maintenance and repairs: Buildings: Consultants | I55: 0 | J55: 0 | K55: 0 | L55: 0 | M55: 0 | N55: 0 | O55: =SUM(N55-M55) -> 0 | P55: 0 | Q55: 0 | R55: =SUM(Q55-P55) -> 0 | S55: 0 | T55: 0 | U55: 0 | V55: 0
A56: 1 | B56: EX11802 | F56: Maintenance and repairs: Other fixed structures: Consultants | I56: 0 | J56: 0 | K56: 0 | L56: 0 | M56: 0 | N56: 0 | O56: 0 | P56: 0 | Q56: 0 | R56: 0 | S56: 0 | T56: 0 | U56: 0 | V56: 0
A57: 1 | B57: EX11803 | F57: Other | I57: 0 | J57: 0 | K57: 0 | L57: 0 | M57: 0 | N57: 0 | O57: 0 | P57: 0 | Q57: 0 | R57: 0 | S57: 0 | T57: 0 | U57: 0 | V57: 0
A58: 1 | B58: EX1164 | F58: Laboratory services | I58: 0 | J58: 0 | K58: 0 | L58: 0 | M58: 0 | N58: 0 | O58: 0 | P58: 0 | Q58: 0 | R58: 0 | S58: 0 | T58: 0 | U58: 0 | V58: 0
A59: 1 | B59: EX1162 | F59: Legal services (G&S) | I59: 0 | J59: 42 | K59: 1000 | L59: 0 | M59: 1000 | N59: 1000 | O59: 0 | P59: 1000 | Q59: 1000 | R59: 0 | S59: 1045 | T59: 1045 | U59: 0 | V59: 1092
A60: 1 | B60: EX1165 | F60: Science and technological services | I60: 0 | J60: 0 | K60: 0 | L60: 0 | M60: 0 | N60: 0 | O60: 0 | P60: 0 | Q60: 0 | R60: 0 | S60: 0 | T60: 0 | U60: 0 | V60: 0
A61: 1 | B61: EX1125 | F61: Contractors | I61: =SUM(I62:I66,I72) -> 0 | J61: 0 | K61: 0 | L61: 0 | M61: 0 | N61: 0 | O61: =SUM(N61-M61) -> 0 | P61: =SUM(P62:P66,P72) -> 0 | Q61: 0 | R61: =SUM(Q61-P61) -> 0 | S61: =SUM(S62:S66,S72) -> 0 | T61: 0 | U61: 0 | V61: =SUM(V62:V66,V72) -> 0
A62: 1 | B62: EX11251 | F62: Maintenance and repairs of other fixed structures | I62: 0 | J62: 0 | K62: 0 | L62: 0 | M62: 0 | N62: 0 | O62: 0 | P62: 0 | Q62: 0 | R62: 0 | S62: 0 | T62: 0 | U62: 0 | V62: 0
A63: 1 | B63: EX11252 | F63: Maintenance and repairs of other machinery and equipment | I63: 0 | J63: 0 | K63: 0 | L63: 0 | M63: 0 | N63: 0 | O63: 0 | P63: 0 | Q63: 0 | R63: 0 | S63: 0 | T63: 0 | U63: 0 | V63: 0
A64: 1 | B64: EX11253 | F64: Maintenance and repairs of heritage buildings | I64: 0 | J64: 0 | K64: 0 | L64: 0 | M64: 0 | N64: 0 | O64: 0 | P64: 0 | Q64: 0 | R64: 0 | S64: 0 | T64: 0 | U64: 0 | V64: 0
A65: 1 | B65: EX11254 | F65: Maintenance and repairs of other heritage fixed structures | I65: 0 | J65: 0 | K65: 0 | L65: 0 | M65: 0 | N65: 0 | O65: 0 | P65: 0 | Q65: 0 | R65: 0 | S65: 0 | T65: 0 | U65: 0 | V65: 0
A66: 5 | B66: EX11255 | F66: South african social security agency payment contractors | I66: =SUM(I67:I71) -> 0 | J66: 0 | K66: 0 | L66: 0 | M66: 0 | N66: 0 | O66: 0 | P66: =SUM(P67:P71) -> 0 | Q66: 0 | R66: 0 | S66: =SUM(S67:S71) -> 0 | T66: 0 | U66: 0 | V66: =SUM(V67:V71) -> 0
A67: 5 | B67: EX112551 | F67: SASSA Admin fees | I67: 0 | J67: 0 | K67: 0 | L67: 0 | M67: 0 | N67: 0 | O67: =SUM(N67-M67) -> 0 | P67: 0 | Q67: 0 | R67: =SUM(Q67-P67) -> 0 | S67: 0 | T67: 0 | U67: =SUM(T67-S67) -> 0 | V67: 0
A68: 5 | B68: EX112552 | F68: SASSA Bankcard fees | I68: 0 | J68: 0 | K68: 0 | L68: 0 | M68: 0 | N68: 0 | O68: 0 | P68: 0 | Q68: 0 | R68: 0 | S68: 0 | T68: 0 | U68: 0 | V68: 0
A69: 5 | B69: EX112553 | F69: SASSA registration fees | I69: 0 | J69: 0 | K69: 0 | L69: 0 | M69: 0 | N69: 0 | O69: 0 | P69: 0 | Q69: 0 | R69: 0 | S69: 0 | T69: 0 | U69: 0 | V69: 0
A70: 5 | B70: EX112554 | F70: SASSA beneficiary fees | I70: 0 | J70: 0 | K70: 0 | L70: 0 | M70: 0 | N70: 0 | O70: 0 | P70: 0 | Q70: 0 | R70: 0 | S70: 0 | T70: 0 | U70: 0 | V70: 0
A71: 5 | B71: EX112555 | F71: SASSA help desk fees | I71: 0 | J71: 0 | K71: 0 | L71: 0 | M71: 0 | N71: 0 | O71: 0 | P71: 0 | Q71: 0 | R71: 0 | S71: 0 | T71: 0 | U71: 0 | V71: 0
A72: 1 | B72: EX11256 | F72: Other | I72: 0 | J72: 0 | K72: 0 | L72: 0 | M72: 0 | N72: 0 | O72: 0 | P72: 0 | Q72: 0 | R72: 0 | S72: 0 | T72: 0 | U72: 0 | V72: 0
A73: 1 | B73: EX1121 | F73: Agency and support/outsourced services | I73: 0 | J73: 0 | K73: 0 | L73: 0 | M73: 0 | N73: 0 | O73: 0 | P73: 0 | Q73: 0 | R73: 0 | S73: 0 | T73: 0 | U73: 0 | V73: 0
A74: 5 | B74: EX11211 | F74: Of Which: Medical assessments | I74: 0 | J74: 0 | K74: 0 | L74: 0 | M74: 0 | N74: 0 | O74: 0 | P74: 0 | Q74: 0 | R74: 0 | S74: 0 | T74: 0 | U74: 0 | V74: 0
A75: 1 | B75: EX1161 | F75: Entertainment | I75: 0 | J75: 0 | K75: 0 | L75: 0 | M75: 0 | N75: 0 | O75: 0 | P75: 0 | Q75: 0 | R75: 0 | S75: 0 | T75: 0 | U75: 0 | V75: 0
A76: 1 | B76: EX1166 | F76: Fleet services (including government motor transport) | I76: 0 | J76: 0 | K76: 0 | L76: 0 | M76: 0 | N76: 0 | O76: 0 | P76: 0 | Q76: 0 | R76: 0 | S76: 0 | T76: 0 | U76: 0 | V76: 0
A77: 1 | B77: EX1167 | F77: Housing | I77: 0 | J77: 0 | K77: 0 | L77: 0 | M77: 0 | N77: 0 | O77: 0 | P77: 0 | Q77: 0 | R77: 0 | S77: 0 | T77: 0 | U77: 0 | V77: 0
A78: 1 | B78: EX1168 | F78: Inventory: Clothing material and accessories | I78: 0 | J78: 0 | K78: 0 | L78: 0 | M78: 0 | N78: 0 | O78: 0 | P78: 0 | Q78: 0 | R78: 0 | S78: 0 | T78: 0 | U78: 0 | V78: 0
A79: 1 | B79: EX1169 | F79: Inventory: Farming supplies | I79: 0 | J79: 0 | K79: 0 | L79: 0 | M79: 0 | N79: 0 | O79: 0 | P79: 0 | Q79: 0 | R79: 0 | S79: 0 | T79: 0 | U79: 0 | V79: 0
A80: 1 | B80: EX1170 | F80: Inventory: Food and food supplies | I80: 0 | J80: 0 | K80: 0 | L80: 0 | M80: 0 | N80: 0 | O80: 0 | P80: 0 | Q80: 0 | R80: 0 | S80: 0 | T80: 0 | U80: 0 | V80: 0
A81: 1 | B81: EX1171 | F81: Inventory: Fuel, oil and gas | I81: 0 | J81: 0 | K81: 0 | L81: 0 | M81: 0 | N81: 0 | O81: 0 | P81: 0 | Q81: 0 | R81: 0 | S81: 0 | T81: 0 | U81: 0 | V81: 0
A82: 1 | B82: EX1172 | F82: Inventory: Learner and teacher support material | I82: 0 | J82: 0 | K82: 0 | L82: 0 | M82: 0 | N82: 0 | O82: 0 | P82: 0 | Q82: 0 | R82: 0 | S82: 0 | T82: 0 | U82: 0 | V82: 0
A83: 1 | B83: EX1126 | F83: Inventory: Materials and supplies | I83: 0 | J83: 0 | K83: 0 | L83: 0 | M83: 0 | N83: 0 | O83: 0 | P83: 0 | Q83: 0 | R83: 0 | S83: 0 | T83: 0 | U83: 0 | V83: 0
A84: 1 | B84: EX1173 | F84: Inventory: Medical supplies | I84: 0 | J84: 0 | K84: 0 | L84: 0 | M84: 0 | N84: 0 | O84: 0 | P84: 0 | Q84: 0 | R84: 0 | S84: 0 | T84: 0 | U84: 0 | V84: 0
A85: 1 | B85: EX1174 | F85: Inventory: Medicine | I85: 0 | J85: 0 | K85: 0 | L85: 0 | M85: 0 | N85: 0 | O85: 0 | P85: 0 | Q85: 0 | R85: 0 | S85: 0 | T85: 0 | U85: 0 | V85: 0
A86: 1 | B86: EX1175 | F86: Medsas inventory interface | I86: 0 | J86: 0 | K86: 0 | L86: 0 | M86: 0 | N86: 0 | O86: 0 | P86: 0 | Q86: 0 | R86: 0 | S86: 0 | T86: 0 | U86: 0 | V86: 0
A87: 1 | B87: EX1176 | F87: Inventory: Other supplies | I87: 0 | J87: 0 | K87: 0 | L87: 0 | M87: 0 | N87: 0 | O87: 0 | P87: 0 | Q87: 0 | R87: 0 | S87: 0 | T87: 0 | U87: 0 | V87: 0
A88: 1 | B88: EX1177 | F88: Consumable supplies | I88: 0 | J88: 0 | K88: 0 | L88: 0 | M88: 0 | N88: 0 | O88: 0 | P88: 0 | Q88: 0 | R88: 0 | S88: 0 | T88: 0 | U88: 0 | V88: 0
A89: 1 | B89: EX1144 | F89: Consumables: Stationery, printing and office supplies | I89: 13.005 | J89: 47 | K89: 101.6 | L89: 0 | M89: 56.8932 | N89: 0 | O89: -56.8932 | P89: 59.3965008 | Q89: 0 | R89: -59.3965008 | S89: 62.06934334 | T89: 0 | U89: -62.06934334 | V89: 0
A90: 1 | B90: EX1127 | F90: Operating leases | I90: 1131.183 | J90: 1205 | K90: 1277.078796 | L90: 1271 | M90: 0 | N90: 0 | O90: 0 | P90: 0 | Q90: 0 | R90: 0 | S90: 0 | T90: 0 | U90: 0 | V90: 0
A91: 1 | B91: EX1178 | F91: Rental and hiring | I91: 0 | J91: 0 | K91: 0 | L91: 0 | M91: 0 | N91: 0 | O91: 0 | P91: 0 | Q91: 0 | R91: 0 | S91: 0 | T91: 0 | U91: 0 | V91: 0
A92: 1 | B92: EX1145 | F92: Property payments | I92: 13.005 | J92: 47 | K92: 0 | L92: 0 | M92: 0 | N92: 0 | O92: 0 | P92: 0 | Q92: 0 | R92: 0 | S92: 0 | T92: 0 | U92: 0 | V92: 0
A93: 1 | B93: EX1179 | F93: Transport provided: Internal activities | I93: 0 | J93: 0 | K93: 0 | L93: 0 | M93: 0 | N93: 0 | O93: 0 | P93: 0 | Q93: 0 | R93: 0 | S93: 0 | T93: 0 | U93: 0 | V93: 0
A94: 1 | B94: EX1131 | F94: Travel and subsistence | I94: 0 | J94: 0 | K94: 510 | L94: 0 | M94: 531.42 | N94: 531 | O94: -0.42 | P94: 554.80248 | Q94: 555 | R94: 0.19752 | S94: 579.7685916 | T94: 580 | U94: 0.2314084 | V94: 606
A95: 1 | B95: EX1130 | F95: Training and development | I95: 0 | J95: 0 | K95: 0 | L95: 0 | M95: 0 | N95: 755 | O95: 755 | P95: 0 | Q95: 727 | R95: 727 | S95: 0 | T95: 694 | U95: 694 | V95: 733
A96: 1 | B96: EX1132 | F96: Operating payments | I96: 50.571 | J96: 6846 | K96: 58.8122 | L96: 5863 | M96: 23.7806391 | N96: 24 | O96: 0.219360905 | P96: 22.300884 | Q96: 22 | R96: -0.300884 | S96: 23.30442378 | T96: 23 | U96: -0.30442378 | V96: 0
A97: 1 | B97: EX1146 | F97: Venues and facilities | I97: 0 | J97: 0 | K97: 0 | L97: 0 | M97: 0 | N97: 0 | O97: 0 | P97: 0 | Q97: 0 | R97: 0 | S97: 0 | T97: 0 | U97: 0 | V97: 0
A98: 1 | B98: EX113 | F98: Depreciation | I98: 0 | J98: 0 | K98: 0 | L98: 0 | M98: 0 | N98: 0 | O98: 0 | P98: 0 | Q98: 0 | R98: 0 | S98: 0 | T98: 0 | U98: 0 | V98: 0
A99: 1 | B99: EX114 | F99: Losses from | I99: =SUM(I100:I101,I104) -> 10 | J99: 0 | K99: 0 | L99: 0 | M99: 0 | N99: 0 | O99: =SUM(N99-M99) -> 0 | P99: =SUM(P100:P101,P104) -> 0 | Q99: 0 | R99: =SUM(Q99-P99) -> 0 | S99: =SUM(S100:S101,S104) -> 0 | T99: 0 | U99: =SUM(T99-S99) -> 0 | V99: =SUM(V100:V101,V104) -> 0
A100: 1 | B100: EX1141 | F100: Sale of fixed assets | I100: 0 | J100: 0 | K100: 0 | L100: 0 | M100: 0 | N100: 0 | O100: 0 | P100: 0 | Q100: 0 | R100: 0 | S100: 0 | T100: 0 | U100: =SUM(T100-S100) -> 0 | V100: 0
A101: 1 | B101: EX1142 | F101: Impairments and adjustments to fair value | I101: =SUM(I102:I103) -> 10 | J101: 0 | K101: 0 | L101: 0 | M101: 0 | N101: 0 | O101: 0 | P101: =SUM(P102:P103) -> 0 | Q101: 0 | R101: 0 | S101: =SUM(S102:S103) -> 0 | T101: 0 | U101: 0 | V101: =SUM(V102:V103) -> 0
A102: 1 | B102: EX11421 | F102: Adjustments to fair value of assets | I102: 10 | J102: 0 | K102: 0 | L102: 0 | M102: 0 | N102: 0 | O102: 0 | P102: 0 | Q102: 0 | R102: 0 | S102: 0 | T102: 0 | U102: =SUM(T102-S102) -> 0 | V102: 0
A103: 1 | B103: EX11422 | F103: Impairments to assets | I103: 0 | J103: 0 | K103: 0 | L103: 0 | M103: 0 | N103: 0 | O103: 0 | P103: 0 | Q103: 0 | R103: 0 | S103: 0 | T103: 0 | U103: 0 | V103: 0
A104: 1 | B104: EX1143 | F104: Other | I104: 0 | J104: 0 | K104: 0 | L104: 0 | M104: 0 | N104: 0 | O104: 0 | P104: 0 | Q104: 0 | R104: 0 | S104: 0 | T104: 0 | U104: 0 | V104: 0
A105: 1 | B105: EX115 | F105: Interest, dividends and rent on land | I105: =SUM(I106:I108) -> 0 | J105: 0 | K105: 37800 | L105: 30149 | M105: 37800 | N105: 33787 | O105: -4013 | P105: =SUM(P106:P108) -> 103045.6521 | Q105: 35527 | R105: -67518.65212 | S105: =SUM(S106:S108) -> 103045.6521 | T105: 37457 | U105: -65588.65212 | V105: =SUM(V106:V108) -> 39491
A106: 1 | B106: EX1151 | F106: Interest | I106: 0 | J106: 0 | K106: 37800 | L106: 30149 | M106: 37800 | N106: 33787 | O106: -4013 | P106: 103045.6521 | Q106: 35527 | R106: -67518.65212 | S106: 103045.6521 | T106: 37457 | U106: =SUM(T106-S106) -> -65588.65212 | V106: 39491
A107: 1 | B107: EX1152 | F107: Dividends | I107: 0 | J107: 0 | K107: 0 | L107: 0 | M107: 0 | N107: 0 | O107: 0 | P107: 0 | Q107: 0 | R107: 0 | S107: 0 | T107: 0 | U107: 0 | V107: 0
A108: 1 | B108: EX1153 | F108: Rent on land | I108: 0 | J108: 0 | K108: 0 | L108: 0 | M108: 0 | N108: 0 | O108: 0 | P108: 0 | Q108: 0 | R108: 0 | S108: 0 | T108: 0 | U108: 0 | V108: 0
A109: 1 | B109: EX12 | F109: Transfers and subsidies | I109: =SUM(I110,I121,I132:I135) -> 0 | J109: 0 | K109: 0 | L109: 0 | M109: 0 | N109: 0 | O109: 0 | P109: =SUM(P110,P121,P132:P135) -> 0 | Q109: 0 | R109: 0 | S109: =SUM(S110,S121,S132:S135) -> 0 | T109: 0 | U109: 0 | V109: =SUM(V110,V121,V132:V135) -> 0
A110: 2 | B110: EX121 | F110: Employer Grant (SETAs only) | I110: =SUM(I111,I117,I120) -> 0 | J110: 0 | K110: 0 | L110: 0 | M110: 0 | N110: 0 | O110: 0 | P110: =SUM(P111,P117,P120) -> 0 | Q110: 0 | R110: 0 | S110: =SUM(S111,S117,S120) -> 0 | T110: 0 | U110: 0 | V110: =SUM(V111,V117,V120) -> 0
A111: 1 | B111: EX122 | F111: Other government units | I111: =SUM(I112:I116) -> 0 | J111: 0 | K111: 0 | L111: 0 | M111: 0 | N111: 0 | O111: 0 | P111: =SUM(P112:P116) -> 0 | Q111: 0 | R111: 0 | S111: =SUM(S112:S116) -> 0 | T111: 0 | U111: 0 | V111: =SUM(V112:V116) -> 0
A112: 1 | B112: EX1221 | F112: National government | I112: 0 | J112: 0 | K112: 0 | L112: 0 | M112: 0 | N112: 0 | O112: 0 | P112: 0 | Q112: 0 | R112: 0 | S112: 0 | T112: 0 | U112: =SUM(T112-S112) -> 0 | V112: 0
A113: 1 | B113: EX1222 | F113: Departmental agencies and accounts | I113: 0 | J113: 0 | K113: 0 | L113: 0 | M113: 0 | N113: 0 | O113: 0 | P113: 0 | Q113: 0 | R113: 0 | S113: 0 | T113: 0 | U113: 0 | V113: 0
A114: 1 | B114: EX1223 | F114: Provinces | I114: 0 | J114: 0 | K114: 0 | L114: 0 | M114: 0 | N114: 0 | O114: 0 | P114: 0 | Q114: 0 | R114: 0 | S114: 0 | T114: 0 | U114: 0 | V114: 0
A115: 1 | B115: EX1224 | F115: Municipalities | I115: 0 | J115: 0 | K115: 0 | L115: 0 | M115: 0 | N115: 0 | O115: 0 | P115: 0 | Q115: 0 | R115: 0 | S115: 0 | T115: 0 | U115: 0 | V115: 0
A116: 2 | B116: EX1225 | F116: National Skills Fund | I116: 0 | J116: 0 | K116: 0 | L116: 0 | M116: 0 | N116: 0 | O116: 0 | P116: 0 | Q116: 0 | R116: 0 | S116: 0 | T116: 0 | U116: 0 | V116: 0
A117: 1 | B117: EX123 | F117: Public corporations and private enterprises (subsidies and other transfers) | I117: =SUM(I118:I119) -> 0 | J117: 0 | K117: 0 | L117: 0 | M117: 0 | N117: 0 | O117: 0 | P117: =SUM(P118:P119) -> 0 | Q117: 0 | R117: 0 | S117: =SUM(S118:S119) -> 0 | T117: 0 | U117: 0 | V117: =SUM(V118:V119) -> 0
A118: 1 | B118: EX1231 | F118: Public corporations | I118: 0 | J118: 0 | K118: 0 | L118: 0 | M118: 0 | N118: 0 | O118: 0 | P118: 0 | Q118: 0 | R118: 0 | S118: 0 | T118: 0 | U118: =SUM(T118-S118) -> 0 | V118: 0
A119: 1 | B119: EX1232 | F119: Private enterprises | I119: 0 | J119: 0 | K119: 0 | L119: 0 | M119: 0 | N119: 0 | O119: 0 | P119: 0 | Q119: 0 | R119: 0 | S119: 0 | T119: 0 | U119: 0 | V119: 0
A120: 2 | B120: EX124 | F120: Households and non government units | I120: 0 | J120: 0 | K120: 0 | L120: 0 | M120: 0 | N120: 0 | O120: 0 | P120: 0 | Q120: 0 | R120: 0 | S120: 0 | T120: 0 | U120: 0 | V120: 0
A121: 2 | B121: EX125 | F121: Discretionary Grant (SETAs only) | I121: =SUM(I122,I128,I131) -> 0 | J121: 0 | K121: 0 | L121: 0 | M121: 0 | N121: 0 | O121: 0 | P121: =SUM(P122,P128,P131) -> 0 | Q121: 0 | R121: 0 | S121: =SUM(S122,S128,S131) -> 0 | T121: 0 | U121: 0 | V121: =SUM(V122,V128,V131) -> 0
A122: 2 | B122: EX126 | F122: Other government units | I122: =SUM(I123:I127) -> 0 | J122: 0 | K122: 0 | L122: 0 | M122: 0 | N122: 0 | O122: 0 | P122: =SUM(P123:P127) -> 0 | Q122: 0 | R122: 0 | S122: =SUM(S123:S127) -> 0 | T122: 0 | U122: 0 | V122: =SUM(V123:V127) -> 0
A123: 2 | B123: EX1261 | F123: National government | I123: 0 | J123: 0 | K123: 0 | L123: 0 | M123: 0 | N123: 0 | O123: 0 | P123: 0 | Q123: 0 | R123: 0 | S123: 0 | T123: 0 | U123: =SUM(T123-S123) -> 0 | V123: 0
A124: 2 | B124: EX1262 | F124: Departmental agencies and accounts | I124: 0 | J124: 0 | K124: 0 | L124: 0 | M124: 0 | N124: 0 | O124: 0 | P124: 0 | Q124: 0 | R124: 0 | S124: 0 | T124: 0 | U124: 0 | V124: 0
A125: 2 | B125: EX1263 | F125: Provinces | I125: 0 | J125: 0 | K125: 0 | L125: 0 | M125: 0 | N125: 0 | O125: 0 | P125: 0 | Q125: 0 | R125: 0 | S125: 0 | T125: 0 | U125: 0 | V125: 0
A126: 2 | B126: EX1264 | F126: Municipalities | I126: 0 | J126: 0 | K126: 0 | L126: 0 | M126: 0 | N126: 0 | O126: 0 | P126: 0 | Q126: 0 | R126: 0 | S126: 0 | T126: 0 | U126: 0 | V126: 0
A127: 2 | B127: EX1265 | F127: National Skills Fund | I127: 0 | J127: 0 | K127: 0 | L127: 0 | M127: 0 | N127: 0 | O127: 0 | P127: 0 | Q127: 0 | R127: 0 | S127: 0 | T127: 0 | U127: 0 | V127: 0
A128: 2 | B128: EX127 | F128: Public corporations and private enterprises (subsidies and other transfers) | I128: =SUM(I129:I130) -> 0 | J128: 0 | K128: 0 | L128: 0 | M128: 0 | N128: 0 | O128: 0 | P128: =SUM(P129:P130) -> 0 | Q128: 0 | R128: 0 | S128: =SUM(S129:S130) -> 0 | T128: 0 | U128: 0 | V128: =SUM(V129:V130) -> 0
A129: 2 | B129: EX1271 | F129: Public corporations | I129: 0 | J129: 0 | K129: 0 | L129: 0 | M129: 0 | N129: 0 | O129: 0 | P129: 0 | Q129: 0 | R129: 0 | S129: 0 | T129: 0 | U129: =SUM(T129-S129) -> 0 | V129: 0
A130: 2 | B130: EX1272 | F130: Private enterprises | I130: 0 | J130: 0 | K130: 0 | L130: 0 | M130: 0 | N130: 0 | O130: 0 | P130: 0 | Q130: 0 | R130: 0 | S130: 0 | T130: 0 | U130: 0 | V130: 0
A131: 2 | B131: EX128 | F131: Households and non government units | I131: 0 | J131: 0 | K131: 0 | L131: 0 | M131: 0 | N131: 0 | O131: 0 | P131: 0 | Q131: 0 | R131: 0 | S131: 0 | T131: 0 | U131: 0 | V131: 0
A132: 1 | B132: EX129 | F132: Higher education institutions | I132: 0 | J132: 0 | K132: 0 | L132: 0 | M132: 0 | N132: 0 | O132: 0 | P132: 0 | Q132: 0 | R132: 0 | S132: 0 | T132: 0 | U132: 0 | V132: 0
A133: 1 | B133: EX130 | F133: Foreign governments and international organisations | I133: 0 | J133: 0 | K133: 0 | L133: 0 | M133: 0 | N133: 0 | O133: 0 | P133: 0 | Q133: 0 | R133: 0 | S133: 0 | T133: 0 | U133: 0 | V133: 0
A134: 1 | B134: EX131 | F134: Non-profit institutions | I134: 0 | J134: 0 | K134: 0 | L134: 0 | M134: 0 | N134: 0 | O134: 0 | P134: 0 | Q134: 0 | R134: 0 | S134: 0 | T134: 0 | U134: 0 | V134: 0
A135: 1 | B135: EX132 | F135: Households | I135: =SUM(I136:I137) -> 0 | J135: 0 | K135: 0 | L135: 0 | M135: 0 | N135: 0 | O135: =SUM(N135-M135) -> 0 | P135: =SUM(P136:P137) -> 0 | Q135: 0 | R135: =SUM(Q135-P135) -> 0 | S135: =SUM(S136:S137) -> 0 | T135: 0 | U135: 0 | V135: =SUM(V136:V137) -> 0
A136: 1 | B136: EX1301 | F136: Social benefits | I136: 0 | J136: 0 | K136: 0 | L136: 0 | M136: 0 | N136: 0 | O136: 0 | P136: 0 | Q136: 0 | R136: 0 | S136: 0 | T136: 0 | U136: 0 | V136: 0
A137: 1 | B137: EX1302 | F137: Other transfers to households | I137: 0 | J137: 0 | K137: 0 | L137: 0 | M137: 0 | N137: 0 | O137: 0 | P137: 0 | Q137: 0 | R137: 0 | S137: 0 | T137: 0 | U137: 0 | V137: 0
A138: 1 | B138: EX13 | F138: Tax payment | I138: 0 | J138: 0 | K138: 0 | L138: 0 | M138: 0 | N138: 0 | O138: 0 | P138: 0 | Q138: 0 | R138: 0 | S138: 0 | T138: 0 | U138: 0 | V138: 0
A139: 1 | B139: EX14 | F139: Outside shareholders Interest | I139: 0 | J139: 0 | K139: 0 | L139: 0 | M139: 0 | N139: 0 | O139: 0 | P139: 0 | Q139: 0 | R139: 0 | S139: 0 | T139: 0 | U139: 0 | V139: 0
A140: 1 | B140: EX15 | F140: Total Expenditure | I140: =SUM(I39,I109,I138:I139) -> 1646.908 | J140: 8990 | K140: 45791.9422 | L140: 37568 | M140: 39980.66886 | N140: 40386 | O140: =SUM(N140-M140) -> 405.3311364 | P140: =SUM(P39,P109,P138:P139) -> 105110.6937 | Q140: =SUM(Q39,Q109,Q138:Q139) -> 38133 | R140: =SUM(Q140-P140) -> -66977.69375 | S140: =SUM(S39,S109,S138:S139) -> 105203.2106 | T140: =SUM(T39,T109,T138:T139) -> 40115 | U140: =SUM(T140-S140) -> -65088.21062 | V140: =SUM(V39,V109,V138:V139) -> 42251
A141: 1
A142: 1 | F142: Objective less Expenditure | I142: =ROUND(IF(I37-I140>0,IF(I37-I140<1,0,I37-I140),I37-I140),0) -> 0 | J142: 0 | L142: 0 | M142: 0 | N142: 0 | O142: =ROUND(IF(O37-O140>0,IF(O37-O140<1,0,O37-O140),O37-O140),0) -> 0 | P142: 0 | Q142: 0 | R142: 0 | S142: 0 | T142: 0 | U142: 0 | V142: 0
A143: 1

Sheet 3
F6: PE No | G6: =Settings!O2 -> PE18
F7: Entity name | G7: =Settings!$E$2 -> CEF (Pty) Ltd
F9: Performance and operations information
A10: ItemCat | B10: Item code | C10: Hide/unhide | F10: Activity/Output/Outcome/Efficiency Indicator | G10: Priorities | I10: =MyYearM3 -> 2020/21 | J10: =MyYearM2 -> 2021/22 | K10: =MyYearM1 -> 2022/23 | L10: =MyYear0 -> 2023/24 | M10: =MyYearP1 -> 2024/25 | N10: =MyYearP2 -> 2025/26 | O10: =MyYearP3 -> 2026/27 | P10: Related Objectives | Q10: Add to 'Performance Indicators' Sheet | R10: Comments
A11: 1 | F11: Net Profit after Tax | G11: Priority 1: A Capable, Ethical and Developmental State | I11: 0 | J11: 0 | K11: -R202 Million as profit after tax | L11: R1.84 Billion as profit after Tax | M11: R1.49 Billion as profit after Tax | N11: R2.65 Billion as profit after Tax | O11: R1.72 Billion as profit after Tax | P11: Oil and gas, national oil company | Q11: Yes | R11: 0
A12: 1 | F12: Number of reportable environmental incidents at PetroSA per year, including Section 30 of NEMA | G12: Priority 7: A Better Africa and World | I12: Improve HSEQ Leadership and Legal accountability | J12: Develop Environmental Sustainability Program and Execute | K12: Achieve ISO14001 International Environmental Certification | L12: 5 | M12: 5 | N12: 5 | O12: 5 | P12: Oil and Gas, National Oil Company | Q12: No | R12: 0
A13: 1 | F13: Disabling injury frequency rate | G13: Priority 6: Social Cohesion and Safer Communities | I13: <0.40 | J13: <0.40 | K13: <0.41 | L13: <0.42 | M13: <0.43 | N13: <0.43 | O13: <0.44 | P13: Oil and gas, national oil company | Q13: No | R13: 0
A14: 1 | F14: Number of fatalities caused by operation per year | G14: Priority 3: Education, Skills and Health | I14: 0 | J14: 0 | K14: 0 | L14: 0 | M14: 0 | N14: 0 | O14: 0 | P14: Oil and gas, national oil company | Q14: No | R14: 0
A15: 1 | F15: Diversify value offering | G15: Priority 2: Economic Transformation and Job Creation | I15: 0 | J15: 0 | K15: Implement the Lubricants business through partnership | L15: 450 tons (LPG sales) | M15: 480 tons (LPG sales) | N15: 525 tons (LPG sales) | O15: 600 tons (LPG sales) | P15: Oil and gas, national oil company | Q15: No | R15: This will be pursued again as turnaround gains momentum
A16: 1 | F16: Complete feasibility phase for Fast Power project | G16: Priority 1: A Capable, Ethical and Developmental State | I16: 0 | J16: 0 | K16: 0 | L16: Feasibility report issued by 31 October 2023 | M16: Fast Power: Detailed Project Development | N16: Fast Power: Shareholder Approval, and Customer support | O16: Fast Power: S54 Approval | P16: Oil and gas, national oil company | Q16: No | R16: This will be pursued again as turnaround gains momentum
A17: 1 | F17: Bulk consumer relationships | G17: Priority 2: Economic Transformation and Job Creation | I17: 0 | J17: Secure fuel supply contracts with SOEs (e.g. Transnet/Eskom) & state departments (e.g. ECDA) | K17: Operationalize fuel supply to SOEs | L17: Fuel supply to SOEs | M17: Fuel supply to SOEs | N17: Fuel supply to SOEs | O17: Fuel supply to SOEs | P17: Oil and gas, national oil company | Q17: No | R17: This will be pursued again as turnaround gains momentum
A18: 1 | F18: To improve partnership & stakeholder engagement | G18: Priority 4: Consolidating the Social Wage through Reliable and Quality Basic Services | I18: 0 | J18: 0 | K18: 0 | L18: 75% Implementation of Approved Plan by 31 March 2024 | M18: 80% Implementation of Approved Plan by 31 March 2025 | N18: 80% Implementation of Approved Plan by 31 March 2026 | O18: 80% Implementation of Approved Plan by 31 March 2027 | P18: Oil and gas, national oil company | Q18: No | R18: This will be pursued again as turnaround gains momentum
A19: 1 | F19: Restart of the GTL Operation | G19: Priority 1: A Capable, Ethical and Developmental State | I19: Provide Funding, logistics & Strategic alliances by 30 Sept 2020. | J19: 0 | K19: Support Acquisition of Brownfields Crude Oil Refinery | L19: Mobilization for the refurbishment | M19: GTL Refurbishment in progress | N19: GTL Refurbishment in progress | O19: GTL Operation restart | P19: Oil and gas, national oil company | Q19: No | R19: This will be pursued again as turnaround gains momentum
A20: 1 | F20: Sustain existing market share through imports of finished products | G20: Priority 2: Economic Transformation and Job Creation | I20: 0 | J20: 0 | K20: Lobby state to mandate 10% of national demand of fuel imports by PetroSA | L20: 3.35 Billion litres of finished product | M20: 3.48 Billion litres of finished product | N20: 3.62 Billion litres of finished product | O20: 3.77 Billion litres of finished product | P20: Oil and gas, national oil company | Q20: No | R20: This will be pursued again as turnaround gains momentum
A21: 1 | F21: 0 | G21: 0 | I21: 0 | J21: 0 | K21: 0 | L21: 0 | M21: 0 | N21: 0 | O21: 0 | P21: Oil and gas, national oil company | Q21: No | R21: 0
A22: 1 | F22: 0 | G22: 0 | I22: 0 | J22: 0 | K22: 0 | L22: 0 | M22: 0 | N22: 0 | O22: 0 | P22: Oil and gas, national oil company | Q22: No | R22: 0
A23: 1 | F23: 0 | G23: 0 | I23: 0 | J23: 0 | K23: 0 | L23: 0 | M23: 0 | N23: 0 | O23: 0 | P23: Oil and gas, national oil company | Q23: No | R23: 0
A24: 1 | F24: 0 | G24: 0 | I24: 0 | J24: 0 | K24: 0 | L24: 0 | M24: 0 | N24: 0 | O24: 0 | P24: 0 | Q24: 0 | R24: 0
